Workbook

Sheet Index
A1: Key | B1: Description | C1: Department | D1: Appropriation Use
A2: 10-49 | B2: Agricultural Resources, Planning, and Regulation | C2: Agriculture | D2: Direct State Services
A3: 14-52 | B3: Economic Regulation | C3: Banking And Insurance | D3: Direct State Services
A4: 16-55 | B4: Social Services Programs | C4: Children And Families | D4: Direct State Services
A5: 22-41 | B5: Community Development Management | C5: Community Affairs | D5: Direct State Services
A6: 22-55 | B6: Social Services Programs | C6: Community Affairs | D6: Direct State Services
A7: 22-75 | B7: State Subsidies and Financial Aid | C7: Community Affairs | D7: Direct State Services
A8: 22-76 | B8: Management and Administration | C8: Community Affairs | D8: Direct State Services
A9: 26-16 | B9: Detention and Rehabilitation | C9: Corrections | D9: Direct State Services
A10: 26-16-7020 | B10: Bureau of State Use Industries | C10: Corrections | D10: Revolving Funds
A11: 26-16-7025 | B11: System-Wide Program Support | C11: Corrections | D11: Direct State Services
A12: 26-16-7030 | B12: Bureau of State Farm Operations | C12: Corrections | D12: Revolving Funds
A13: 26-17 | B13: Parole | C13: Corrections | D13: Direct State Services
A14: 34-31 | B14: Direct Educational Services and Assistance | C14: Education | D14: Direct State Services
A15: 34-32 | B15: Operation and Support of Educational Institutions | C15: Education | D15: Direct State Services
A16: 34-33 | B16: Supplemental Education and Training Programs | C16: Education | D16: Direct State Services
A17: 34-34 | B17: Educational Support Services | C17: Education | D17: Direct State Services
A18: 34-35 | B18: Education Administration and Management | C18: Education | D18: Direct State Services
A19: 42-42 | B19: Natural Resource Management | C19: Environmental Protection | D19: Direct State Services
A20: 42-43 | B20: Science and Technical Programs | C20: Environmental Protection | D20: Direct State Services
A21: 42-44 | B21: Site Remediation and Waste Management | C21: Environmental Protection | D21: Direct State Services
A22: 42-45 | B22: Environmental Regulation | C22: Environmental Protection | D22: Direct State Services
A23: 42-46 | B23: Environmental Planning and Administration | C23: Environmental Protection | D23: Direct State Services
A24: 42-47 | B24: Compliance and Enforcement | C24: Environmental Protection | D24: Direct State Services
A25: 46-21 | B25: Health Services | C25: Health And Senior Services | D25: Direct State Services
A26: 46-22 | B26: Health Planning and Evaluation | C26: Health And Senior Services | D26: Direct State Services
A27: 54-23 | B27: Mental Health Services | C27: Human Services | D27: Direct State Services
A28: 54-23-7700 | B28: Division of Mental Health Services | C28: Human Services | D28: Direct State Services
A29: 54-24-7540 | B29: Division of Medical Assistance and Health Services | C29: Human Services | D29: Direct State Services
A30: 54-26 | B30: Aging Services | C30: Human Services | D30: Direct State Services
A31: 54-27-7545 | B31: Division of Disability Services | C31: Human Services | D31: Direct State Services
A32: 54-32 | B32: Operation and Support of Educational Institutions | C32: Human Services | D32: Direct State Services
A33: 54-32-7601 | B33: Community Programs | C33: Human Services | D33: Direct State Services
A34: 54-33-7560 | B34: Commission for the Blind and Visually Impaired | C34: Human Services | D34: Direct State Services
A35: 54-53-7550 | B35: Division of Family Development | C35: Human Services | D35: Direct State Services
A36: 54-55-7580 | B36: Division of the Deaf and Hard of Hearing | C36: Human Services | D36: Direct State Services
A37: 62-53 | B37: Economic Assistance and Security | C37: Labor And Workforce Development | D37: Direct State Services
A38: 62-54 | B38: Manpower and Employment Services | C38: Labor And Workforce Development | D38: Direct State Services
A39: 62-74 | B39: General Government Services | C39: Labor And Workforce Development | D39: Direct State Services
A40: 66-12 | B40: Law Enforcement | C40: Law And Public Safety | D40: Direct State Services
A41: 66-13 | B41: Special Law Enforcement Activities | C41: Law And Public Safety | D41: Direct State Services
A42: 66-18 | B42: Juvenile Services | C42: Law And Public Safety | D42: Direct State Services
A43: 66-74 | B43: General Government Services | C43: Law And Public Safety | D43: Direct State Services
A44: 66-82 | B44: Protection of Citizens' Rights | C44: Law And Public Safety | D44: Direct State Services
A45: 67-14 | B45: Military Services | C45: Military And Veterans' Affairs | D45: Direct State Services
A46: 67-83-3610 | B46: Veterans' Program Support | C46: Military And Veterans' Affairs | D46: Direct State Services
A47: 67-83-3630 | B47: Menlo Park Veterans' Memorial Home | C47: Military And Veterans' Affairs | D47: Direct State Services
A48: 67-83-3640 | B48: Paramus Veterans' Memorial Home | C48: Military And Veterans' Affairs | D48: Direct State Services
A49: 67-83-3650 | B49: Vineland Veterans' Memorial Home | C49: Military And Veterans' Affairs | D49: Direct State Services
A50: 74-37 | B50: Cultural and Intellectual Development Services | C50: State | D50: Direct State Services
A51: 74-37-2541 | B51: Division of State Library | C51: State | D51: Direct State Services
A52: 74-74 | B52: General Government Services | C52: State | D52: Direct State Services
A53: 74-36 | B53: Higher Educational Services | C53: State | D53: Direct State Services
A54: 74-36-2405 | B54: Higher Education Student Assistance Authority | C54: State | D54: Direct State Services
A55: 74-36-2410 | B55: Rutgers, The State University | C55: State | D55: Direct State Services
A56: 74-36-2415 | B56: Agricultural Experiment Station | C56: State | D56: Direct State Services
A57: 74-36-2416 | B57: Rutgers University - Camden | C57: State | D57: Direct State Services
A58: 74-36-2417 | B58: Rutgers University - Newark | C58: State | D58: Direct State Services
A59: 74-36-2430 | B59: New Jersey Institute of Technology | C59: State | D59: Direct State Services
A60: 74-36-2440 | B60: Thomas A. Edison State College | C60: State | D60: Direct State Services
A61: 74-36-2445 | B61: Rowan University | C61: State | D61: Direct State Services
A62: 74-36-2450 | B62: New Jersey City University | C62: State | D62: Direct State Services
A63: 74-36-2455 | B63: Kean University | C63: State | D63: Direct State Services
A64: 74-36-2460 | B64: William Paterson University of New Jersey | C64: State | D64: Direct State Services
A65: 74-36-2465 | B65: Montclair State University | C65: State | D65: Direct State Services
A66: 74-36-2470 | B66: The College of New Jersey | C66: State | D66: Direct State Services
A67: 74-36-2475 | B67: Ramapo College of New Jersey | C67: State | D67: Direct State Services
A68: 74-36-2480 | B68: Stockton University | C68: State | D68: Direct State Services
A69: 74-36-2485 | B69: University Hospital | C69: State | D69: Direct State Services
A70: 78-11 | B70: Vehicular Safety | C70: Transportation | D70: Direct State Services
A71: 78-61 | B71: State and Local Highway Facilities | C71: Transportation | D71: Direct State Services
A72: 78-62 | B72: Public Transportation | C72: Transportation | D72: Direct State Services
A73: 82-52 | B73: Economic Regulation | C73: Treasury | D73: Direct State Services
A74: 82-72 | B74: Governmental Review and Oversight | C74: Treasury | D74: Direct State Services
A75: 82-73 | B75: Financial Administration | C75: Treasury | D75: Direct State Services
A76: 82-74 | B76: General Government Services | C76: Treasury | D76: Direct State Services
A77: 82-74-2026 | B77: Office of Administrative Law | C77: Treasury | D77: Direct State Services
A78: 82-74-2034 | B78: Office of Information Technology | C78: Treasury | D78: Direct State Services
A79: 82-74-2052 | B79: State Central Motor Pool | C79: Treasury | D79: Revolving Funds
A80: 82-74-2057 | B80: Distribution Center | C80: Treasury | D80: Revolving Funds
A81: 82-75 | B81: State Subsidies and Financial Aid | C81: Treasury | D81: Direct State Services
A82: 82-82 | B82: Protection of Citizens' Rights | C82: Treasury | D82: Direct State Services
A83: 82-82-2096 | B83: Corrections Ombudsperson | C83: Treasury | D83: Direct State Services
A84: 82-82-2097 | B84: Division of Elder Advocacy | C84: Treasury | D84: Direct State Services
A85: 82-82-2098 | B85: Division of Rate Counsel | C85: Treasury | D85: Direct State Services
A86: 94-74-9410 | B86: Employee Benefits | C86: Interdepartmental Accounts | D86: Direct State Services
A87: 98-15 | B87: Judicial Services | C87: The Judiciary | D87: Direct State Services

Sheet 01-71-0001
A1: Fiscal Year: | B1: 2017
A2: Fund Category: | B2: DSS | C2: Direct State Services
A3: Department: | B3: 01 | C3: Legislature
A4: Statewide Program: | B4: 71 | C4: Legislative Activities
A5: Organization: | B5: 0001 | C5: Senate
A6: Number of Columns: | B6: 4
K7: Budget | M7: Budget
C8: Actual | D8: F | E8: Actual | F8: F | G8: Budgeted | H8: F | I8: Revised | J8: F | K8: Estimate | L8: F | M8: Estimate | N8: F
C9: ="FY " & FiscalYear - 3 -> FY 2014 | D9: N | E9: ="FY " & FiscalYear - 2 -> FY 2015 | F9: N | G9: ="FY " & FiscalYear - 1 -> FY 2016 | H9: N | I9: ="FY " & FiscalYear - 1 -> FY 2016 | J9: N | K9: ="FY " & FiscalYear -> FY 2017 | L9: N | M9: ="FY " & FiscalYear + 1 -> FY 2018 | N9: N
A10: PERSONNEL DATA
A11: Position Data
A12: Filled positions by funding source
A13: State supported | C13: 40 | E13: 41 | I13: 45
A14: Total positions | C14: 40 | E14: 41 | I14: 45
A15: Filled positions by program class
A16: Senate | C16: 40 | E16: 41 | I16: 45
A17: Total positions | C17: 40 | E17: 41 | I17: 45
A19: Notes:
A20: Actual payroll counts are reported for fiscal years 2014 and 2015 as of December and revised fiscal 2016 as of January. Not included are the 40 Senators and part-time positions. The funded position count for fiscal 2017 will be determined by the Legislature.

Sheet 01-71-0002
A1: Fiscal Year: | B1: 2017
A2: Fund Category: | B2: DSS | C2: Direct State Services
A3: Department: | B3: 01 | C3: Legislature
A4: Statewide Program: | B4: 71 | C4: Legislative Activities
A5: Organization: | B5: 0002 | C5: General Assembly
A6: Number of Columns: | B6: 4
K7: Budget | M7: Budget
C8: Actual | D8: F | E8: Actual | F8: F | G8: Budgeted | H8: F | I8: Revised | J8: F | K8: Estimate | L8: F | M8: Estimate | N8: F
C9: ="FY " & FiscalYear - 3 -> FY 2014 | D9: N | E9: ="FY " & FiscalYear - 2 -> FY 2015 | F9: N | G9: ="FY " & FiscalYear - 1 -> FY 2016 | H9: N | I9: ="FY " & FiscalYear - 1 -> FY 2016 | J9: N | K9: ="FY " & FiscalYear -> FY 2017 | L9: N | M9: ="FY " & FiscalYear + 1 -> FY 2018 | N9: N
A10: PERSONNEL DATA
A11: Position Data
A12: Filled positions by funding source
A13: State supported | C13: 44 | E13: 50 | I13: 49
A14: Total positions | C14: 44 | E14: 50 | I14: 49
A15: Filled positions by program class
A16: General Assembly | C16: 44 | E16: 50 | I16: 49
A17: Total positions | C17: 44 | E17: 50 | I17: 49
A19: Notes:
A20: Actual payroll counts are reported for fiscal years 2014 and 2015 as of December and revised fiscal 2016 as of January. Not included are the 80 State Assemblypersons and part-time positions. The funded position count for fiscal 2017 will be determined by the Legislature.

Sheet 01-71-0003
A1: Fiscal Year: | B1: 2017
A2: Fund Category: | B2: DSS | C2: Direct State Services
A3: Department: | B3: 01 | C3: Legislature
A4: Statewide Program: | B4: 71 | C4: Legislative Activities
A5: Organization: | B5: 0003 | C5: Office of Legislative Services
A6: Number of Columns: | B6: 4
K7: Budget | M7: Budget
C8: Actual | D8: F | E8: Actual | F8: F | G8: Budgeted | H8: F | I8: Revised | J8: F | K8: Estimate | L8: F | M8: Estimate | N8: F
C9: ="FY " & FiscalYear - 3 -> FY 2014 | D9: N | E9: ="FY " & FiscalYear - 2 -> FY 2015 | F9: N | G9: ="FY " & FiscalYear - 1 -> FY 2016 | H9: N | I9: ="FY " & FiscalYear - 1 -> FY 2016 | J9: N | K9: ="FY " & FiscalYear -> FY 2017 | L9: N | M9: ="FY " & FiscalYear + 1 -> FY 2018 | N9: N
A10: PERSONNEL DATA
A11: Position Data
A12: Filled positions by funding source
A13: State supported | C13: 350 | E13: 345 | I13: 345
A14: Total positions | C14: 350 | E14: 345 | I14: 345
A15: Filled positions by program class
A16: Legislative Support Services | C16: 350 | E16: 345 | I16: 345
A17: Total positions | C17: 350 | E17: 345 | I17: 345
A19: Notes:
A20: Actual payroll counts are reported for fiscal years 2014 and 2015 as of December and revised fiscal 2016 as of January. The funded position count for fiscal 2017 will be determined by the Legislature.

Sheet 01-77
A1: Fiscal Year: | B1: 2017
A2: Fund Category: | B2: DSS | C2: Direct State Services
A3: Department: | B3: 01 | C3: Legislature
A4: Statewide Program: | B4: 77 | C4: Legislative Commissions and Committees
A5: Organization:
A6: Number of Columns: | B6: 4
K7: Budget | M7: Budget
C8: Actual | D8: F | E8: Actual | F8: F | G8: Budgeted | H8: F | I8: Revised | J8: F | K8: Estimate | L8: F | M8: Estimate | N8: F
C9: ="FY " & FiscalYear - 3 -> FY 2014 | D9: N | E9: ="FY " & FiscalYear - 2 -> FY 2015 | F9: N | G9: ="FY " & FiscalYear - 1 -> FY 2016 | H9: N | I9: ="FY " & FiscalYear - 1 -> FY 2016 | J9: N | K9: ="FY " & FiscalYear -> FY 2017 | L9: N | M9: ="FY " & FiscalYear + 1 -> FY 2018 | N9: N
A10: PERSONNEL DATA
A11: Position Data
A12: Filled positions by funding source
A13: State supported | C13: 49 | E13: 45 | I13: 44
A14: Total positions | C14: 49 | E14: 45 | I14: 44
A15: Filled positions by program class
A16: Legislative Commissions | C16: 49 | E16: 45 | I16: 44
A17: Total positions | C17: 49 | E17: 45 | I17: 44
A20: Notes:
A21: Actual payroll counts are reported for fiscal years 2014 and 2015 as of December and revised fiscal 2016 as of January. The funded position count for fiscal 2017 will be determined by the Legislature.

Sheet 06-76
A1: Fiscal Year: | B1: 2017
A2: Fund Category: | B2: DSS | C2: Direct State Services
A3: Department: | B3: 06 | C3: Chief Executive
A4: Statewide Program: | B4: 76 | C4: Management and Administration
A5: Organization:
A6: Number of Columns: | B6: 4
K7: Budget | M7: Budget
C8: Actual | D8: F | E8: Actual | F8: F | G8: Budgeted | H8: F | I8: Revised | J8: F | K8: Estimate | L8: F | M8: Estimate | N8: F
C9: ="FY " & FiscalYear - 3 -> FY 2014 | D9: N | E9: ="FY " & FiscalYear - 2 -> FY 2015 | F9: N | G9: ="FY " & FiscalYear - 1 -> FY 2016 | H9: N | I9: ="FY " & FiscalYear - 1 -> FY 2016 | J9: N | K9: ="FY " & FiscalYear -> FY 2017 | L9: N | M9: ="FY " & FiscalYear + 1 -> FY 2018 | N9: N
A10: PERSONNEL DATA
A11: Position Data
A12: Filled positions by funding source
A13: State supported | C13: 112 | E13: 112 | G13: 112 | I13: 112 | K13: 112
A14: Total positions | C14: 112 | E14: 112 | G14: 112 | I14: 112 | K14: 112
A15: Filled positions by program class
A16: Executive Management | C16: 112 | E16: 112 | G16: 112 | I16: 112 | K16: 112
A17: Total positions | C17: 112 | E17: 112 | G17: 112 | I17: 112 | K17: 112
A19: Notes:
A20: Actual payroll counts are reported for fiscal years 2014 and 2015 as of December and revised fiscal 2016 as of January. The budget estimate for fiscal 2017 reflects the number of positions funded.

Sheet 10-49
A1: Fiscal Year: | B1: 2017
A2: Fund Category: | B2: DSS | C2: Direct State Services
A3: Department: | B3: 10 | C3: Department Of Agriculture
A4: Statewide Program: | B4: 49 | C4: Agricultural Resources, Planning, and Regulation
A5: Organization:
A6: Number of Columns: | B6: 4
K7: Budget | M7: Budget
C8: Actual | D8: F | E8: Actual | F8: F | G8: Budgeted | H8: F | I8: Revised | J8: F | K8: Estimate | L8: F | M8: Estimate | N8: F
C9: ="FY " & FiscalYear - 3 -> FY 2014 | D9: N | E9: ="FY " & FiscalYear - 2 -> FY 2015 | F9: N | G9: ="FY " & FiscalYear - 1 -> FY 2016 | H9: N | I9: ="FY " & FiscalYear - 1 -> FY 2016 | J9: N | K9: ="FY " & FiscalYear -> FY 2017 | L9: N | M9: ="FY " & FiscalYear + 1 -> FY 2018 | N9: N
A10: PROGRAM DATA
A11: Animal Disease Control
A12: Regulatory licenses | C12: 45 | E12: 45 | G12: 45 | I12: 45 | K12: 45
A13: General, special and other laboratory exams | C13: 31068 | E13: 32000 | G13: 33000 | I13: 32000 | K13: 32000
A14: Plant Pest and Disease Control
A15: Nurseries and dealers certified free of plant pests | C15: 1250 | E15: 1250 | G15: 1250 | I15: 1250 | K15: 1250
A16: Nursery acreage certified free of plant pests | C16: 18000 | E16: 18000 | G16: 18000 | I16: 18000 | K16: 18000
A17: Bee colonies found disease free | C17: 0.99 | E17: 0.99 | G17: 0.99 | I17: 0.99 | K17: 0.99
A18: Seed meeting truth in labeling requirements | C18: 0.95 | E18: 0.95 | G18: 0.95 | I18: 0.95 | K18: 0.95
A19: Pesticide not applied (lbs.) | C19: 62000 | E19: 62000 | G19: 62000 | I19: 62000 | K19: 62000
A20: Forest and crop acreage stabilized biologically | C20: 1100000 | E20: 1100000 | G20: 1100000 | I20: 1100000 | K20: 1100000
A21: Major exotic insect and plant disease field surveys | C21: 10 | E21: 10 | G21: 10 | I21: 10 | K21: 10
A22: Agricultural and Natural Resources
A23: Aquaculture production (lbs.) | C23: 5800000 | E23: 5800000 | G23: 5800000 | I23: 5800000 | K23: 5800000
A24: Soil and Water Conservation Programs:
A25: Land protected from soil erosion and sedimentation (acres) | C25: 10000 | E25: 10000 | G25: 10000 | I25: 10000 | K25: 10000
A26: Food and Nutrition Services
A27: Emergency food assistance delivered (lbs.) | C27: 21181401 | E27: 21180000 | G27: 21180000 | I27: 21180000 | K27: 21180000
A28: School lunch delivered (lbs.) | C28: 34914970 | E28: 35000000 | G28: 35000000 | I28: 35000000 | K28: 35000000
A29: Marketing and Development Services
A30: Agricultural inputs satisfying label guarantees:
A31: Fertilizer | C31: 0.87 | E31: 0.85 | G31: 0.85 | I31: 0.85 | K31: 0.85
A32: Lime | C32: 1 | E32: 1 | G32: 1 | I32: 1 | K32: 1
A33: Feed | C33: 0.86 | E33: 0.9 | G33: 0.9 | I33: 0.9 | K33: 0.9
A34: Agricultural commodities inspected and graded (lbs.) (a) | C34: 421195162 | E34: 385000000 | G34: 385000000 | I34: 385000000 | K34: 385000000
A35: Racing mares bred | C35: 72 | E35: 259 | G35: 75 | I35: 225 | K35: 225
A36: Organic Certification Program:
A37: Number of certified operations (producers & handlers) | C37: 90 | E37: 100 | G37: 105 | I37: 105 | K37: 110
A38: Farmland Preservation
A39: Cumulative acres permanently preserved | C39: 210065 | E39: 217146 | G39: 226065 | I39: 225146 | K39: 230246
A40: Cumulative farms permanently preserved | C40: 2266 | E40: 2354 | G40: 2466 | I40: 2454 | K40: 2539
A41: Eight-year program-acres preserved | C41: 4887 | E41: 4360 | G41: 4103 | I41: 3906 | K41: 3281
A42: County/Municipal financial participation | C42: 14915751 | E42: 12345249 | G42: 15000000 | I42: 15000000 | K42: 12750000
A44: PERSONNEL DATA
A45: Affirmative Action data
A46: Male minority | C46: 18 | E46: 19 | I46: 16
A47: Male minority percentage | C47: 0.08955223881 | E47: 0.095 | I47: 0.077
A48: Female minority | C48: 32 | E48: 31 | I48: 33
A49: Female minority percentage | C49: 0.159 | E49: 0.155 | I49: 0.159
A50: Total minority | C50: 50 | E50: 50 | I50: 49
A51: Total minority percentage | C51: 0.249 | E51: 0.25 | I51: 0.236
A53: Position Data
A54: Filled positions by funding source
A55: State supported | C55: 83 | E55: 86 | G55: 85 | I55: 86 | K55: 87
A56: Federal | C56: 56 | E56: 58 | G56: 58 | I56: 58 | K56: 62
A57: All other | C57: 62 | E57: 56 | G57: 61 | I57: 63 | K57: 65
A58: Total positions | C58: 201 | E58: 200 | G58: 204 | I58: 207 | K58: 214
A59: Filled positions by program class
A60: Animal Disease Control | C60: 20 | E60: 21 | G60: 22 | I60: 19 | K60: 19
A61: Plant Pest and Disease Control | C61: 28 | E61: 28 | G61: 26 | I61: 26 | K61: 28
A62: Agricultural and Natural Resources | C62: 15 | E62: 12 | G62: 12 | I62: 15 | K62: 15
A63: Food and Nutrition Services | C63: 56 | E63: 61 | G63: 62 | I63: 61 | K63: 64
A64: Marketing and Development Services | C64: 36 | E64: 33 | G64: 34 | I64: 38 | K64: 39
A65: Farmland Preservation | C65: 27 | E65: 25 | G65: 28 | I65: 27 | K65: 30
A66: Administration and Support Services | C66: 19 | E66: 20 | G66: 20 | I66: 21 | K66: 19
A67: Total positions | C67: 201 | E67: 200 | G67: 204 | I67: 207 | K67: 214
A70: Notes:
A71: Actual payroll counts are reported for fiscal years 2014 and 2015 as of December and revised fiscal 2016 as of January. The budget estimate for fiscal 2017 reflects the number of positions funded.
A72: (a) In fiscal 2014, there were fewer Jersey Fresh commodities inspections due to a condensed growing season. In fiscal 2015, the United States Department of Agriculture conducted the majority of shell egg grading inspections in NJ resulting in a reduced number of inspections conducted by the NJ Department of Agriculture.

Sheet 14-52
A1: Fiscal Year: | B1: 2017
A2: Fund Category: | B2: DSS | C2: Direct State Services
A3: Department: | B3: 14 | C3: Department Of Banking And Insurance
A4: Statewide Program: | B4: 52 | C4: Economic Regulation
A5: Organization:
A6: Number of Columns: | B6: 4
K7: Budget | M7: Budget
C8: Actual | D8: F | E8: Actual | F8: F | G8: Budgeted | H8: F | I8: Revised | J8: F | K8: Estimate | L8: F | M8: Estimate | N8: F
C9: ="FY " & FiscalYear - 3 -> FY 2014 | D9: N | E9: ="FY " & FiscalYear - 2 -> FY 2015 | F9: N | G9: ="FY " & FiscalYear - 1 -> FY 2016 | H9: N | I9: ="FY " & FiscalYear - 1 -> FY 2016 | J9: N | K9: ="FY " & FiscalYear -> FY 2017 | L9: N | M9: ="FY " & FiscalYear + 1 -> FY 2018 | N9: N
A10: PROGRAM DATA
A11: Consumer Protection Services and Solvency Regulation
A12: Consumer credit associations - banking
A13: Licenses issued | C13: 5212 | E13: 5577 | G13: 5800 | I13: 5800 | K13: 6000
A14: Mortgage loan originators | C14: 9553 | E14: 10998 | G14: 11000 | I14: 11500 | K14: 12000
A15: Associations subject to examination | C15: 1473 | E15: 1423 | G15: 1460 | I15: 1435 | K15: 1450
A16: Examinations conducted | C16: 305 | E16: 339 | G16: 320 | I16: 300 | K16: 300
A17: Phone inquiries handled | C17: 8803 | E17: 7863 | G17: 7000 | I17: 7000 | K17: 7000
A18: Consumer complaints
A19: Received | C19: 766 | E19: 524 | G19: 874 | I19: 410 | K19: 470
A20: Completed | C20: 697 | E20: 695 | G20: 744 | I20: 415 | K20: 450
A21: Consumer assistance unit
A22: Phone inquiries handled | C22: 34597 | E22: 29454 | G22: 32000 | I22: 28000 | K22: 28000
A23: Insurance licensing
A24: Licenses issued | C24: 91571 | E24: 99200 | G24: 93500 | I24: 100700 | K24: 102200
A25: Candidates examined | C25: 19930 | E25: 20329 | G25: 23000 | I25: 21000 | K25: 22000
A26: Phone inquiries handled | C26: 30616 | E26: 29815 | G26: 30000 | I26: 28000 | K26: 28000
A27: Number of insurance companies and regulated entities | C27: 3260 | E27: 3336 | G27: 3420 | I27: 3410 | K27: 3490
A28: Field financial exams | C28: 48 | E28: 38 | G28: 82 | I28: 55 | K28: 50
A29: Office analysis of companies - examinations | C29: 1365 | E29: 1399 | G29: 1463 | I29: 1455 | K29: 1490
A30: Insurance consumer assistance
A31: Complaints received | C31: 6464 | E31: 6484 | G31: 7500 | I31: 6600 | K31: 6700
A32: Complaints resolved | C32: 8135 | E32: 6910 | G32: 7600 | I32: 6800 | K32: 6950
A33: Market analysis of companies | C33: 667 | E33: 1620 | G33: 600 | I33: 1490 | K33: 950 | L33: (a)
A34: Companies' data audited | C34: 573 | E34: 1503 | G34: 550 | I34: 1450 | K34: 150 | L34: (a)
A35: Funds recovered on behalf of complaintants | C35: 14945123 | E35: 8524048 | G35: 16000000 | I35: 6300000 | K35: 5900000
A36: Actuarial Services
A37: Property and Casualty
A38: Filings for unit | C38: 2967 | E38: 3011 | G38: 3100 | I38: 3100 | K38: 3200
A39: Surveys | C39: 1024 | E39: 1040 | G39: 1050 | I39: 1050 | K39: 1060
A40: Record requests | C40: 127 | E40: 75 | G40: 140 | I40: 100 | K40: 120
A41: Complaints/inquiries | C41: 87 | E41: 124 | G41: 110 | I41: 130 | K41: 140
A42: Life and Health
A43: Policy forms processed | C43: 10568 | E43: 10016 | G43: 11500 | I43: 10200 | K43: 10200
A44: Filings for unit | C44: 4096 | E44: 4229 | G44: 4200 | I44: 4300 | K44: 4300
A45: Inquiries to unit | C45: 13265 | E45: 19102 | G45: 13330 | I45: 19550 | K45: 20000
A46: Office of Managed Care
A47: Complaints/inquiries received | C47: 1866 | E47: 1226 | G47: 2200 | I47: 885 | K47: 930
A48: Complaints/inquires resolved | C48: 1935 | E48: 1921 | I48: 1230 | K48: 1285
A49: Independent Utilization Review Organization | C49: 740 | E49: 830 | G49: 810 | I49: 830 | K49: 850
A50: Eligible/forwarded requests | C50: 389 | E50: 549 | G50: 600 | I50: 600 | K50: 575
A51: Ineligible/returned requests | C51: 177 | E51: 291 | G51: 210 | I51: 230 | K51: 275
A52: Regulation of the Real Estate Industry
A53: Licensed brokers and salespersons | C53: 85936 | E53: 80456 | G53: 91500 | I53: 82000 | K53: 84000
A54: Candidates examined | C54: 9734 | E54: 10183 | G54: 11777 | I54: 11780 | K54: 12825
A55: Broker offices | C55: 614 | E55: 640 | G55: 726 | I55: 730 | K55: 750
A56: Offices inspected | C56: 420 | E56: 440
A57: Complaints investigated | C57: 678 | E57: 912 | G57: 801 | I57: 1000 | K57: 1050
A58: Licensed schools | C58: 241 | E58: 279 | G58: 292 | I58: 290 | K58: 310
A59: Licensed instructors | C59: 721 | E59: 826 | G59: 872 | I59: 870 | K59: 970
A60: Phone inquiries handled | C60: 17253 | E60: 20997 | G60: 17000 | I60: 18000 | K60: 18000
A61: Bureau of Fraud Deterrence
A62: Civil fines imposed | C62: 6520500 | E62: 4732000 | G62: 7500000 | I62: 6500000 | K62: 6500000
A63: Office of Insurance Fraud Prosecutor (b)
A64: Restitution of fraudulently obtained dollars (c) | C64: 14561564 | E64: 1533560 | F64: (d) | G64: 20000000 | I64: 1766360 | K64: 2148950
A65: Type of cases investigated
A66: Auto | C66: 0.31 | E66: 0.23 | G66: 0.26 | I66: 0.41 | K66: 0.32
A67: Health | C67: 0.61 | E67: 0.68 | G67: 0.62 | I67: 0.54 | K67: 0.61
A68: Workers' compensation | C68: 0.02 | E68: 0.03 | G68: 0.01 | I68: 0.02 | K68: 0.03
A69: Homeowners | C69: 0.03 | E69: 0.03 | G69: 0.04 | I69: 0.01 | K69: 0.02
A70: Commercial | C70: 0.01 | E70: 0.01 | G70: 0.01 | I70: 0.01 | K70: 0.01
A71: All other | C71: 0.02 | E71: 0.02 | G71: 0.06 | I71: 0.01 | K71: 0.01
A72: New matters received | C72: 4078 | E72: 5128 | G72: 5402 | I72: 5304 | K72: 4837
A73: Matters closed | C73: 3906 | E73: 5001 | G73: 6096 | I73: 5820 | K73: 4909
A74: Supervision and Examination of Financial Institutions
A75: State-chartered institutions
A76: Banks and savings and loans | C76: 73 | E76: 73 | G76: 73 | I76: 73 | K76: 72
A77: Examinations conducted | C77: 39 | E77: 42 | G77: 40 | I77: 40 | K77: 40
A78: Bank holding companies | C78: 33 | E78: 33 | G78: 33 | I78: 33 | K78: 33
A79: Specialty examinations | C79: 25 | E79: 27 | G79: 27 | I79: 27 | K79: 26
A81: PERSONNEL DATA
A82: Affirmative Action data
A83: Male minority | C83: 51 | E83: 50 | I83: 51
A84: Male minority percentage | C84: 0.108 | E84: 0.105 | I84: 0.113
A85: Female minority | C85: 90 | E85: 94 | I85: 98
A86: Female minority percentage | C86: 0.19 | E86: 0.197 | I86: 0.217
A87: Total minority | C87: 141 | E87: 144 | I87: 149
A88: Total minority percentage | C88: 0.297 | E88: 0.303 | I88: 0.33
A90: Position Data
A91: Filled positions by funding source
A92: Federal | C92: 4 | E92: 2 | G92: 5 | I92: 2 | K92: 5
A93: All other | C93: 470 | E93: 474 | G93: 510 | I93: 450 | K93: 510
A94: Total positions | C94: =SUM(C92:C93) -> 474 | E94: 476 | G94: 515 | I94: 452 | K94: 515
A95: Filled positions by program class
A96: Consumer Protection Services and Solvency Regulation | C96: 217 | E96: 213 | G96: 227 | I96: 205 | K96: 229
A97: Actuarial Services | C97: 46 | E97: 45 | G97: 50 | I97: =42+2 -> 44 | K97: 50
A98: Regulation of the Real Estate Industry | C98: 35 | E98: 35 | G98: 35 | I98: 34 | K98: 35
A99: Public Affairs, Legislative and Regulatory Services | C99: 19 | E99: 23 | G99: 24 | I99: 18 | K99: 22
A100: Bureau of Fraud Deterrence | C100: 84 | E100: 82 | G100: 96 | I100: 80 | K100: 94
A101: Supervision and Examination of Financial Institutions | C101: 27 | E101: 30 | G101: 31 | I101: 26 | K101: 33
A102: Administration and Support Services | C102: 46 | E102: 48 | G102: 52 | I102: 45 | K102: 52
A103: Total positions | C103: =SUM(C96:C102) -> 474 | E103: 476 | G103: 515 | I103: =SUM(I96:I102) -> 452 | K103: =K96+K97+K98+K99+K100+K101+K102 -> 515
A105: Notes:
A106: Actual payroll counts are reported for fiscal years 2014 and 2015 as of December and revised fiscal 2016 as of January. The budget estimate for fiscal 2017 reflects the number of positions funded.
A107: (a) The evaluation data for fiscal 2017 reflects new national Market Regulation Accreditation Standards for market analysis established by the National Association of Insurance Commissioners (NAIC).
A108: (b) Evaluation data provided by the Office of the Insurance Fraud Prosecutor within the Department of Law and Public Safety.
A109: (c) Includes both civil Medicaid and criminal restitution.
A110: (d) Restitution from major pharmaceutical cases received in fiscal 2014 no longer anticipated.

Sheet 16-55
A1: Fiscal Year: | B1: 2017
A2: Fund Category: | B2: DSS | C2: Direct State Services
A3: Department: | B3: 16 | C3: Department Of Children And Families
A4: Statewide Program: | B4: 55 | C4: Social Services Programs
A5: Organization:
A6: Number of Columns: | B6: 4
K7: Budget | M7: Budget
C8: Actual | D8: F | E8: Actual | F8: F | G8: Budgeted | H8: F | I8: Revised | J8: F | K8: Estimate | L8: F | M8: Estimate | N8: F
C9: ="FY " & FiscalYear - 3 -> FY 2014 | D9: N | E9: ="FY " & FiscalYear - 2 -> FY 2015 | F9: N | G9: ="FY " & FiscalYear - 1 -> FY 2016 | H9: N | I9: ="FY " & FiscalYear - 1 -> FY 2016 | J9: N | K9: ="FY " & FiscalYear -> FY 2017 | L9: N | M9: ="FY " & FiscalYear + 1 -> FY 2018 | N9: N
A10: PROGRAM DATA
A11: Education Services
A12: Average enrollment (a) | C12: 1148 | E12: 1227 | G12: 1133 | I12: 1133 | K12: 1175
A14: Child Protection and Permanency
A15: Active children receiving CP&P services (unduplicated) | C15: =151056+C23+C28 -> 166916 | E15: 173242 | G15: 179714 | I15: =154739+I28+I23 -> 170725 | K15: 173102
A16: CP&P Family Support services
A17: Emergency services | C17: 3259000 | E17: 3184000 | G17: 3255000 | I17: 3254000 | K17: 3254000
A18: Case Management services | C18: 11124000 | E18: 10872000 | G18: 11112000 | I18: 11111000 | K18: 11111000
A19: Assessment services | C19: 45615000 | E19: 44585000 | G19: 45566000 | I19: 45567000 | K19: 45567000
A20: Parent Services | C20: 38438000 | E20: 37551000 | G20: 38397000 | I20: 38398000 | K20: 38398000
A21: Total Family Support services program cost | C21: =SUM(C17:C20) -> 98436000 | E21: =SUM(E17:E20) -> 96192000 | G21: =SUM(G17:G20) -> 98330000 | I21: =SUM(I17:I20) -> 98330000 | K21: =SUM(K17:K20) -> 98330000
A22: Adoption Subsidies
A23: Average daily population | C23: 13784 | E23: 13895 | G23: 14031 | I23: 13921 | K23: 13966
A24: Subsidy cost | C24: 134788000 | E24: 137874000 | G24: 139346000 | I24: 139346000 | K24: 139346000
A25: Average annual cost per client | C25: =C24/C23 -> 9778.583865 | E25: =E24/E23 -> 9922.562073 | G25: =G24/G23 -> 9931.29499 | I25: =I24/I23 -> 10009.76941 | K25: =K24/K23 -> 9977.516827
A26: Foster Care
A27: Kinship Legal Guardianship (KLG) placements
A28: Average daily population | C28: 2076 | E28: 2000 | G28: 1931 | I28: 2065 | K28: 2065
A29: Total program cost | C29: 24520000 | E29: 23621000 | G29: 23095000 | I29: 24287000 | K29: 24287000
A30: Average annual cost per client | C30: =C29/C28 -> 11811.17534 | E30: =E29/E28 -> 11810.5 | G30: =G29/G28 -> 11960.12429 | I30: =I29/I28 -> 11761.25908 | K30: =K29/K28 -> 11761.25908
A31: Resource Family placements
A32: Average daily population | C32: 6213 | E32: 6313 | G32: 6461 | I32: 6473 | K32: 6473
A33: Total program cost | C33: 73568000 | E33: 74570000 | G33: 77321000 | I33: 76129000 | K33: 76129000
A34: Average annual cost per client | C34: =C33/C32 -> 11840.97859 | E34: =E33/E32 -> 11812.13369 | G34: =G33/G32 -> 11967.34252 | I34: =I33/I32 -> 11761.00726 | K34: =K33/K32 -> 11761.00726
A35: Total Foster Care
A36: Average daily population | C36: =+C28+C32 -> 8289 | E36: =+E28+E32 -> 8313 | G36: =+G28+G32 -> 8392 | I36: =+I28+I32 -> 8538 | K36: =+K28+K32 -> 8538
A37: Total program cost | C37: =+C29+C33 -> 98088000 | E37: =+E29+E33 -> 98191000 | G37: =+G29+G33 -> 100416000 | I37: =+I29+I33 -> 100416000 | K37: =+K29+K33 -> 100416000
A38: Average annual cost per client | C38: =C37/C36 -> 11833.5143 | E38: =E37/E36 -> 11811.74065 | G38: =G37/G36 -> 11965.6816 | I38: =I37/I36 -> 11761.06817 | K38: =K37/K36 -> 11761.06817
A39: CP&P Other Residential placements
A40: Independent Living services
A41: Number of adolescents | C41: =114+500 -> 614 | E41: 855 | G41: =91+500 -> 591 | I41: 983 | K41: 983
A42: Total program cost | C42: 11913000 | E42: 11009000 | G42: 10958000 | I42: 10792000 | K42: 10792000
A43: Average annual cost per client | C43: =C42/C41 -> 19402.28013 | E43: =E42/E41 -> 12876.02339 | G43: =G42/G41 -> 18541.45516 | I43: =I42/I41 -> 10978.63683 | K43: =K42/K41 -> 10978.63683
A44: Emergency placements
A45: Unduplicated children served | C45: 755 | E45: 660 | G45: 656 | I45: 660 | K45: 660
A46: Total program cost | C46: 4722000 | E46: 4532000 | G46: 4120000 | I46: 4286000 | K46: 4286000
A47: Average cost per unduplicated child | C47: =C46/C45 -> 6254.304636 | E47: =E46/E45 -> 6866.666667 | G47: =G46/G45 -> 6280.487805 | I47: =I46/I45 -> 6493.939394 | K47: =K46/K45 -> 6493.939394
A48: Total Other Residential placements | C48: =+C46+C42 -> 16635000 | E48: =+E46+E42 -> 15541000 | G48: =+G46+G42 -> 15078000 | I48: =+I46+I42 -> 15078000 | K48: =+K46+K42 -> 15078000
A49: Out-of-Home placements
A50: Average daily population | C50: 166 | E50: 172 | G50: 164 | I50: 163 | K50: 163
A51: Total program cost | C51: 14692000 | E51: 15229000 | G51: 14475000 | I51: 14475000 | K51: 14475000
A52: Average annual cost per client | C52: =C51/C50 -> 88506.0241 | E52: =E51/E50 -> 88540.69767 | G52: =G51/G50 -> 88262.19512 | I52: =I51/I50 -> 88803.68098 | K52: =K51/K50 -> 88803.68098
A54: Children's System of Care
A55: Community and Evidence-Based services
A56: Mobile Response and Stabilization services
A57: Total dispatches | C57: 19520 | E57: 22818 | G57: 19520 | I57: 21269 | K57: 22069
A58: Total program cost | C58: 26730000 | E58: 30692000 | G58: 26562000 | I58: 26562000 | K58: 28072000
A59: Cost per dispatch | C59: =C58/C57 -> 1369.364754 | E59: =E58/E57 -> 1345.078447 | G59: =G58/G57 -> 1360.758197 | I59: =I58/I57 -> 1248.859843 | K59: =K58/K57 -> 1272.010512
A60: Children with a developmental disability in residential placements | C60: 370 | E60: 391 | G60: 391 | I60: 415 | K60: 415
A61: Children with a developmental disability eligible to receive Family Support services | C61: 17107 | E61: 17200 | G61: 17200 | I61: 17200 | K61: 17200
A62: Outpatient/Partial Care/Partial Hospitalization
A63: Youth served | C63: 21027 | E63: 20950 | G63: 20950 | I63: 19748 | K63: 20750
A64: Total program cost | C64: 14024000 | E64: 13570000 | G64: 13149000 | I64: 13149000 | K64: 13110000
A65: Cost per youth served | C65: =C64/C63 -> 666.9520141 | E65: =E64/E63 -> 647.7326969 | G65: =G64/G63 -> 627.6372315 | I65: =I64/I63 -> 665.8395787 | K65: =K64/K63 -> 631.8072289
A66: Care Management services
A67: Total youth served | C67: 18966 | E67: 21090 | G67: 19499 | I67: 22073 | K67: 22000
A68: Total program cost | C68: 76783000 | E68: 81965000 | G68: 78833000 | I68: 78833000 | K68: 84977000
A69: Cost per youth served | C69: =C68/C67 -> 4048.45513 | E69: =E68/E67 -> 3886.439071 | G69: =G68/G67 -> 4042.925278 | I69: =I68/I67 -> 3571.467404 | K69: =K68/K67 -> 3862.590909
A70: Intensive In-Home Behavioral Assistance
A71: Total service hours | C71: 691201 | E71: 758630 | G71: 762839 | I71: 841753 | K71: 875325
A72: Total program cost | C72: 64192000 | E72: 71768000 | G72: 63868000 | I72: 63868000 | K72: 72304000
A73: Cost per service hour | C73: =C72/C71 -> 92.87023601 | E73: =E72/E71 -> 94.6021117 | G73: =G72/G71 -> 83.72408857 | I73: =I72/I71 -> 75.87498946 | K73: =K72/K71 -> 82.60246194
A75: Family and Community Partnerships
A76: Early Childhood/Primary Prevention services
A77: Home Visitation
A78: Number of programs | C78: 76 | E78: 79 | G78: 79 | I78: 79 | K78: 79
A79: Total program cost | C79: 13879000 | E79: =12337000+2400000 -> 14737000 | G79: =12337000+2400000 -> 14737000 | I79: 15090000 | K79: 15090000
A80: Cost per program | C80: =C79/C78 -> 182618.4211 | E80: =E79/E78 -> 186544.3038 | G80: =G79/G78 -> 186544.3038 | I80: =I79/I78 -> 191012.6582 | K80: =K79/K78 -> 191012.6582
A81: Parent education and services
A82: Number of programs | C82: 22 | E82: 22 | G82: 22 | I82: 22 | K82: 22
A83: Total program cost | C83: 5759000 | E83: =680000+1950000+3129000 -> 5759000 | G83: =680000+1950000+3129000 -> 5759000 | I83: 6558000 | K83: 6558000
A84: Cost per program | C84: =C83/C82 -> 261772.7273 | E84: =E83/E82 -> 261772.7273 | G84: =G83/G82 -> 261772.7273 | I84: =I83/I82 -> 298090.9091 | K84: =K83/K82 -> 298090.9091
A85: Family Support services
A86: Family Success Centers | C86: 51 | E86: 50 | G86: 52 | I86: 53 | K86: 54
A87: Total program cost | C87: 12224000 | E87: 12344000 | G87: 12518000 | I87: 13490000 | K87: 13490000
A88: Cost per program | C88: =C87/C86 -> 239686.2745 | E88: =E87/E86 -> 246880 | G88: =G87/G86 -> 240730.7692 | I88: =I87/I86 -> 254528.3019 | K88: =K87/K86 -> 249814.8148
A89: Outreach to at-risk youth
A90: Number of programs | C90: 22 | E90: 22 | G90: 22 | I90: 20 | K90: 20
A91: Total program cost | C91: 2726000 | E91: 2726000 | G91: 2726000 | I91: 2726000 | K91: 2726000
A92: Cost per program | C92: =C91/C90 -> 123909.0909 | E92: =E91/E90 -> 123909.0909 | G92: =G91/G90 -> 123909.0909 | I92: =I91/I90 -> 136300 | K92: =K91/K90 -> 136300
A93: Other Family Support services programs
A94: Total program cost | C94: 3401000 | E94: 3955000 | G94: 3955000 | I94: 2983000 | K94: 2983000
A95: School Linked Youth services
A96: School Linked Service programs
A97: Number of program sites | C97: 164 | E97: 164 | G97: 164 | I97: 189 | K97: 126
A98: Total program cost | C98: 29100000 | E98: 29100000 | G98: =29100000-960000 -> 28140000 | I98: =29100000-960000 -> 28140000 | K98: 28140000
A99: Cost per program site | C99: =C98/C97 -> 177439.0244 | E99: =E98/E97 -> 177439.0244 | G99: =G98/G97 -> 171585.3659 | I99: =I98/I97 -> 148888.8889 | K99: =K98/K97 -> 223333.3333
A100: NJ Child Assault Prevention (FCP only)
A101: Number of programs | C101: 22 | E101: 22 | G101: 22 | I101: 22 | K101: 22
A102: Total program cost | C102: 1529000 | E102: 1529000 | G102: 1529000 | I102: 1529000 | K102: 1529000
A103: Cost per program | C103: =C102/C101 -> 69500 | E103: =E102/E101 -> 69500 | G103: =G102/G101 -> 69500 | I103: =I102/I101 -> 69500 | K103: =K102/K101 -> 69500
A104: Health Centers
A105: Number of programs | C105: 5 | E105: 5 | G105: 5 | I105: 5 | K105: 5
A106: Total program cost | C106: 624000 | E106: 624000 | G106: 624000 | I106: 624000 | K106: 624000
A107: Cost per program | C107: =C106/C105 -> 124800 | E107: =E106/E105 -> 124800 | G107: =G106/G105 -> 124800 | I107: =I106/I105 -> 124800 | K107: =K106/K105 -> 124800
A109: Division on Women
A110: Domestic Violence Prevention programs | C110: 41 | E110: 41 | G110: 41 | I110: 41 | K110: 41
A111: Total program cost | C111: 15160000 | E111: 17276000 | G111: 15625000 | I111: 17465000 | K111: 15225000
A112: Cost per program | C112: =C111/C110 -> 369756.0976 | E112: =E111/E110 -> 421365.8537 | G112: =G111/G110 -> 381097.561 | I112: =I111/I110 -> 425975.6098 | K112: =K111/K110 -> 371341.4634
A113: Women's Services programs
A114: State funds | C114: 2136000 | E114: =2136000+400000 -> 2536000 | G114: 2136000 | I114: 2536000 | K114: 2536000
A115: Federal funds | C115: =210000+980000+325000 -> 1515000 | E115: =400000+914000+369000 -> 1683000 | G115: =400000+914000+369000 -> 1683000 | I115: 1685000 | K115: 1685000
A116: Other funds | C116: 688000 | E116: 688000 | G116: 688000 | I116: 688000 | K116: 688000
A117: Total program cost | C117: =SUM(C114:C116) -> 4339000 | E117: =SUM(E114:E116) -> 4907000 | G117: =SUM(G114:G116) -> 4507000 | I117: =SUM(I114:I116) -> 4909000 | K117: =SUM(K114:K116) -> 4909000
A118: Total funds Division on Women | C118: =+C117+C111 -> 19499000 | E118: =+E117+E111 -> 22183000 | G118: =+G117+G111 -> 20132000 | I118: =+I117+I111 -> 22374000 | K118: =+K117+K111 -> 20134000
A119: Client information for Division on Women
A120: Clients served by Women's Referral central hotline | C120: 4200 | E120: 4094 | G120: 4094 | I120: 4147 | K120: 4147
A121: Displaced homemakers served by funded programs | C121: 3650 | E121: 3593 | G121: 3593 | I121: 4023 | K121: 4023
A122: Number of rape victims served | C122: 4000 | E122: 3605 | G122: 3605 | I122: 3548 | K122: 3548
A123: Clients served by Women's Domestic Violence hotline | C123: 2800 | E123: 2703 | G123: 2703 | I123: 2877 | K123: 2877
A125: PERSONNEL DATA
A126: Affirmative Action Data
A127: Male minority | C127: 790 | E127: 666 | I127: 651
A128: Male minority percentage | C128: =C127/C147 -> 0.120463556 | E128: =E127/E147 -> 0.1014316174 | I128: =I127/I147 -> 0.09940448923
A129: Female minority | C129: 3100 | E129: 2558 | I129: 2548
A130: Female minority percentage | C130: =C129/C147 -> 0.472705093 | E130: =E129/E147 -> 0.3895826988 | I130: =I129/I147 -> 0.3890670331
A131: Total minority | C131: 3890 | E131: 3224 | I131: 3199
A132: Total minority percentage | C132: =C131/C147 -> 0.593168649 | E132: =E131/E147 -> 0.4910143162 | I132: =I131/I147 -> 0.4884715224
A134: Position Data
A135: Filled positions by funding source
A136: State supported | C136: 4786 | E136: 4724 | G136: 4486 | I136: 4720 | K136: 4788
A137: Federal | C137: 1454 | E137: 1521 | G137: 1828 | I137: 1510 | K137: 1551
A138: All other | C138: 318 | E138: 321 | G138: 329 | I138: 319 | K138: 321
A139: Total positions | C139: =SUM(C136:C138) -> 6558 | E139: =SUM(E136:E138) -> 6566 | G139: =SUM(G136:G138) -> 6643 | H139: =SUM(H136:H138) -> 0 | I139: =SUM(I136:I138) -> 6549 | K139: =SUM(K136:K138) -> 6660
A140: Filled positions by program class
A141: Education Services | C141: 393 | E141: 398 | G141: 402 | I141: 396 | K141: 394
A142: Child Protection and Permanency | C142: 5656 | E142: 5695 | G142: 5766 | I142: 5695 | K142: 5801
A143: Family and Community Partnerships | C143: 24 | E143: 21 | G143: 23 | I143: 25 | K143: 25
A144: Training Academy Services and Operations | C144: 31 | E144: 32 | G144: 31 | I144: 29 | K144: 32
A145: Children's System of Care | C145: 17 | E145: 19 | G145: 17 | I145: 26 | K145: 25
A146: Administration and Support Services | C146: 437 | E146: 401 | G146: 404 | I146: 378 | K146: 383
A147: Total positions | C147: =SUM(C141:C146) -> 6558 | E147: =SUM(E141:E146) -> 6566 | G147: =SUM(G141:G146) -> 6643 | H147: =SUM(H141:H146) -> 0 | I147: =SUM(I141:I146) -> 6549 | K147: =SUM(K141:K146) -> 6660
A150: Notes:
A151: Actual payroll counts are reported for fiscal years 2014 and 2015 as of December and revised fiscal 2016 as of January. The budget estimate for fiscal 2017 reflects the number of positions funded.
A152: (a) Includes State Facilities Education Act (SFEA) Residential, Regional, State Responsible and District Placed students.

Sheet 22-41
A1: Fiscal Year: | B1: 2017
A2: Fund Category: | B2: DSS | C2: Direct State Services
A3: Department: | B3: 22 | C3: Department Of Community Affairs
A4: Statewide Program: | B4: 41 | C4: Community Development Management
A5: Organization:
A6: Number of Columns: | B6: 4
K7: Budget | M7: Budget
C8: Actual | D8: F | E8: Actual | F8: F | G8: Budgeted | H8: F | I8: Revised | J8: F | K8: Estimate | L8: F | M8: Estimate | N8: F
C9: ="FY " & FiscalYear - 3 -> FY 2014 | D9: N | E9: ="FY " & FiscalYear - 2 -> FY 2015 | F9: N | G9: ="FY " & FiscalYear - 1 -> FY 2016 | H9: N | I9: ="FY " & FiscalYear - 1 -> FY 2016 | J9: N | K9: ="FY " & FiscalYear -> FY 2017 | L9: N | M9: ="FY " & FiscalYear + 1 -> FY 2018 | N9: N
A10: PROGRAM DATA
A11: Housing Code Enforcement
A12: Buildings registered | C12: 94728 | E12: 93823 | G12: 94728 | I12: 93823 | K12: 93823
A13: Dwelling units registered | C13: 1036315 | E13: 1037338 | G13: 1036315 | I13: 1037338 | K13: 1037338
A14: Dwelling units requiring inspection | C14: 195790 | E14: 208171 | G14: 212528 | I14: 222493 | K14: 208654
A15: Dwelling units inspected | C15: 184903 | E15: 188524 | G15: 212528 | I15: 202469 | K15: 198221
A16: Percentage of dwelling units inspected | C16: 0.95 | E16: 0.91 | G16: 1 | I16: 0.91 | K16: 0.95
A17: Cost per unit inspected, State | C17: 35.32 | E17: 36.95 | G17: 35.62 | I17: 36.95 | K17: 36.95
A18: Cost per unit inspected, local | C18: 31.73 | E18: 34.17 | G18: 38.29 | I18: 34.17 | K18: 34.17
A19: Penalties issued | C19: 4104 | E19: 3529 | G19: 4104 | I19: 3529 | K19: 3529
A20: Housing Services
A21: Housing units produced | C21: 5668 | E21: 5617 | G21: 3750 | I21: 3750 | K21: 5500
A22: Homelessness Prevention
A23: Households assisted | C23: 1550 | E23: 1550 | G23: 1550 | I23: 1550 | K23: 1550
A24: Shelter beds funded | C24: 119 | E24: 21 | G24: 88 | I24: 10 | K24: 15
A25: Uniform Construction Code
A26: Permits issued | C26: 5779 | E26: 6127 | G26: 5779 | I26: 6127 | K26: 6127
A27: Inspections | C27: 22362 | E27: 19414 | G27: 22362 | I27: 19414 | K27: 19414
A28: Officials licensed | C28: 4621 | E28: 4439 | G28: 4621 | I28: 4439 | K28: 4439
A29: Plans reviewed | C29: 837 | E29: 774 | G29: 837 | I29: 774 | K29: 774
A30: State Building Unit
A31: Annual permits | C31: 34 | E31: 20 | G31: 34 | I31: 20 | K31: 20
A32: Construction permits issued | C32: 899 | E32: 1013 | G32: 899 | I32: 1013 | K32: 1013
A33: Certificates of occupancy and approvals issued | C33: 722 | E33: 861 | G33: 659 | I33: 861 | K33: 861
A34: Continuing education and training programs offered | C34: 349 | E34: 349 | G34: 349 | I34: 349 | K34: 349
A35: Elevator Safety Unit
A36: Devices registered | C36: 34379 | E36: 36399 | G36: 34379 | I36: 36399 | K36: 36399
A37: State-administered municipalities | C37: 466 | E37: 470 | G37: 466 | I37: 470 | K37: 470
A38: Liquefied petroleum gas inspections | C38: 1238 | E38: 1457 | G38: 1238 | I38: 1457 | K38: 1457
A39: Amusement ride inspections | C39: 15312 | E39: 14154 | G39: 15312 | I39: 14154 | K39: 14154
A40: Ski lift inspections | C40: 36 | E40: 132 | G40: 60 | I40: 132 | K40: 132
A41: Boarding Home Regulation and Assistance
A42: Evaluations | C42: 1486 | E42: 1580 | G42: 1486 | I42: 1580 | K42: 1580
A43: Reevaluations | C43: 1032 | E43: 949 | G43: 1032 | I43: 949 | K43: 949
A44: Closings - imminent hazard | C44: 6 | E44: 3 | G44: 6 | I44: 3 | K44: 3
A45: Permanent licenses | C45: 1131 | E45: 1358 | G45: 1131 | I45: 1358 | K45: 1358
A46: Penalties issued | C46: 331 | E46: 365 | G46: 331 | I46: 365 | K46: 365
A47: Complaints filed | C47: 246 | E47: 296 | G47: 246 | I47: 296 | K47: 296
A48: Uniform Fire Code
A49: Life hazards registered | C49: 75904 | E49: 71245 | G49: 75904 | I49: 71745 | K49: 72245
A50: State inspections or reinspections performed | C50: 15761 | E50: 16756 | G50: 14635 | I50: 16806 | K50: 16931
A51: Fire officials and inspectors certified | C51: 3437 | E51: 3500 | G51: 3500 | I51: 3500 | K51: 3416
A52: State-owned and maintained buildings inspected or reinspected | C52: 7728 | E52: 6919 | G52: 7980 | I52: 7000 | K52: 7000
A53: National fire incident reporting - participating organizations | C53: 649 | E53: 510 | G53: 724 | I53: 718 | K53: 718
A54: Local enforcement monitoring | C54: 58 | E54: 70 | G54: 60 | I54: 40 | K54: 70
A55: Fire investigations | C55: 187 | E55: 180 | G55: 200 | I55: 200 | K55: 200
A57: PERSONNEL DATA
A58: Position Data
A59: Filled positions by funding source
A60: Federal | C60: 228 | E60: 251 | G60: 262 | I60: 256 | K60: 267
A61: All other | C61: 511 | E61: =490+13 -> 503 | G61: 506 | I61: 499 | K61: 509
A62: Total positions | C62: =SUM(C60:C61) -> 739 | E62: =SUM(E60:E61) -> 754 | G62: =SUM(G60:G61) -> 768 | I62: =SUM(I60:I61) -> 755 | K62: =SUM(K60:K61) -> 776
A63: Filled positions by program class
A64: Housing Code Enforcement | C64: 125 | E64: 116 | G64: 116 | I64: 116 | K64: 117
A65: Housing Services | C65: =205+33 -> 238 | E65: =189+32 -> 221 | G65: 220 | I65: 210 | K65: 218
A66: Uniform Construction Code | C66: 252 | E66: =239+13 -> 252 | G66: 254 | I66: 253 | K66: 258
A67: Sandy Recovery | C67: 23 | E67: 62 | G67: 75 | I67: 78 | K67: 82
A68: Boarding Home Regulation and Assistance | C68: 16 | E68: 18 | G68: 18 | I68: 16 | K68: 16
A69: Codes and Standards | C69: 7 | E69: 8 | G69: 11 | I69: 6 | K69: 7
A70: Uniform Fire Code | C70: 78 | E70: 77 | G70: 74 | I70: 76 | K70: 78
A71: Total positions | C71: =SUM(C64:C70) -> 739 | E71: =SUM(E64:E70) -> 754 | G71: =SUM(G64:G70) -> 768 | I71: =SUM(I64:I70) -> 755 | K71: =SUM(K64:K70) -> 776
A74: Notes:
A75: Actual payroll counts are reported for fiscal years 2014 and 2015 as of December and revised fiscal 2016 as of January. The budget estimate for fiscal 2017 reflects the number of positions funded.

Sheet 22-55
A1: Fiscal Year: | B1: 2017
A2: Fund Category: | B2: DSS | C2: Direct State Services
A3: Department: | B3: 22 | C3: Department Of Community Affairs
A4: Statewide Program: | B4: 55 | C4: Social Services Programs
A5: Organization:
A6: Number of Columns: | B6: 4
K7: Budget | M7: Budget
C8: Actual | D8: F | E8: Actual | F8: F | G8: Budgeted | H8: F | I8: Revised | J8: F | K8: Estimate | L8: F | M8: Estimate | N8: F
C9: ="FY " & FiscalYear - 3 -> FY 2014 | D9: N | E9: ="FY " & FiscalYear - 2 -> FY 2015 | F9: N | G9: ="FY " & FiscalYear - 1 -> FY 2016 | H9: N | I9: ="FY " & FiscalYear - 1 -> FY 2016 | J9: N | K9: ="FY " & FiscalYear -> FY 2017 | L9: N | M9: ="FY " & FiscalYear + 1 -> FY 2018 | N9: N
A10: PROGRAM DATA
A11: Community Resources
A12: Community action agencies | C12: 26 | E12: 25 | I12: 25 | K12: 25
A13: Persons served by community action agencies | C13: 310000 | E13: 340000 | I13: 350000 | K13: 350000
A14: Recreation programs for individuals with disabilities | C14: 36 | E14: 33 | I14: 30 | K14: 30
A15: Units weatherized | C15: 3171 | E15: 3380 | I15: 4000 | K15: 3400
A17: Low Income Home Energy Assistance Program
A18: Number of households served | C18: 284191 | E18: 312201 | I18: 300000 | K18: 300000
A19: Number of household members served | C19: 758790 | E19: 834000 | I19: 800000 | K19: 800000
A20: Total assistance expenditures | C20: 106229113 | E20: 106620669 | I20: 105000000 | K20: 105000000
A21: Average assistance payments per household | C21: 374 | E21: 342 | I21: 350 | K21: 350
A24: PERSONNEL DATA
A25: Position Data
A26: Filled positions by funding source
A27: State supported | C27: 1 | E27: 0 | G27: 0 | I27: 0 | K27: 0
A28: Federal | C28: 36 | E28: 37 | G28: 39 | I28: 33 | K28: 33
A29: All other | C29: 1 | E29: 0 | G29: 0 | I29: 0 | K29: 0
A30: Total positions | C30: =SUM(C27:C29) -> 38 | E30: =SUM(E27:E29) -> 37 | G30: 39 | I30: =SUM(I27:I29) -> 33 | K30: 33
A31: Filled positions by program class
A32: Community Resources | C32: 38 | E32: 37 | G32: 39 | I32: 33 | K32: 33
A33: Total positions | C33: 38 | E33: =SUM(E32) -> 37 | G33: 39 | I33: 33 | K33: 33
A36: Notes:
A37: Actual payroll counts are reported for fiscal years 2014 and 2015 as of December and revised fiscal 2016 as of January. The budget estimate for fiscal 2017 reflects the number of positions funded.

Sheet 22-75
A1: Fiscal Year: | B1: 2017
A2: Fund Category: | B2: DSS | C2: Direct State Services
A3: Department: | B3: 22 | C3: Department Of Community Affairs
A4: Statewide Program: | B4: 75 | C4: State Subsidies and Financial Aid
A5: Organization:
A6: Number of Columns: | B6: 4
K7: Budget | M7: Budget
C8: Actual | D8: F | E8: Actual | F8: F | G8: Budgeted | H8: F | I8: Revised | J8: F | K8: Estimate | L8: F | M8: Estimate | N8: F
C9: ="FY " & FiscalYear - 3 -> FY 2014 | D9: N | E9: ="FY " & FiscalYear - 2 -> FY 2015 | F9: N | G9: ="FY " & FiscalYear - 1 -> FY 2016 | H9: N | I9: ="FY " & FiscalYear - 1 -> FY 2016 | J9: N | K9: ="FY " & FiscalYear -> FY 2017 | L9: N | M9: ="FY " & FiscalYear + 1 -> FY 2018 | N9: N
A10: PROGRAM DATA
A11: Local Government Services
A12: Managerial competence
A13: Local Public Contracts Law - assistance requests processed | C13: 4700 | E13: 4700 | G13: 4750 | I13: 4750 | K13: 4750
A14: Deferred compensation plans approved | C14: 20 | E14: 20 | G14: 20 | I14: 20 | K14: 20
A15: Cooperative purchasing plans approved | C15: 20 | E15: 20 | G15: 24 | I15: 24 | K15: 20
A16: Municipalities receiving self-insurance assistance | C16: 5 | E16: 5 | G16: 5 | I16: 5 | K16: 5
A17: Municipalities approved to enroll in joint insurance pools | C17: 20 | E17: 20 | G17: 25 | I17: 25 | K17: 28
A18: Applications for professional certification exams | C18: 414 | E18: 496 | G18: 500 | I18: 525 | K18: 550
A19: Professional certifications issued | C19: 237 | E19: 175 | G19: 320 | I19: 200 | K19: 250
A20: Length of Service Award Program - plans approved | C20: 1 | E20: 0 | G20: 1 | I20: 1 | K20: 1
A21: Qualified purchasing agent certificates issued | C21: 59 | E21: 93 | G21: 120 | I21: 120 | K21: 150
A22: Continuing education programs approved | C22: 697 | E22: 903 | G22: 900 | I22: 950 | K22: 1000
A23: Research and technical assistance
A24: Budget amendments reviewed | C24: 3900 | E24: 3900 | G24: 3950 | I24: 3950 | K24: 3900
A25: Single audit reviews conducted | C25: 50 | E25: 50 | G25: 50 | I25: 90 | K25: 90
A26: Joint insurance pools supervised | C26: 38 | E26: 38 | G26: 40 | I26: 40 | K26: 39
A27: Number of officials enrolled in GovConnect | C27: 5800 | E27: 5850 | G27: 5800 | I27: 5900 | K27: 5900
A28: Number of GovConnect postings | C28: 1050 | E28: 1100 | G28: 1050 | I28: 1175 | K28: 1175
A29: Authority regulation
A30: Authority budgets approved | C30: 480 | E30: 480 | G30: 568 | I30: 568 | K30: 565
A31: Authority project financing proposals reviewed | C31: 80 | E31: 80 | G31: 109 | I31: 109 | K31: 83
A32: Authorities assisted | C32: 490 | E32: 490 | G32: 568 | I32: 568 | K32: 565
A33: Registered municipal accountants and certified public accountants assisted | C33: 350 | E33: 350 | G33: 350 | I33: 350 | K33: 350
A34: Local Government Ethics Law
A35: Complaints filed against local officials | C35: 80 | E35: 80 | G35: 75 | I35: 75 | K35: 60
A36: Local codes of ethics reviewed | C36: 2 | E36: 2 | G36: 2 | I36: 1 | K36: 1
A37: Requests for advisory opinions | C37: 10 | E37: 10 | G37: 20 | I37: 20 | K37: 20
A39: PERSONNEL DATA
A40: Position Data
A41: Filled positions by funding source
A42: State supported | C42: 42 | E42: 43 | G42: 53 | I42: 39 | K42: 53
A43: All other | C43: 8 | E43: 7 | G43: 9 | I43: 7 | K43: 7
A44: Total positions | C44: =SUM(C42:C43) -> 50 | E44: 50 | G44: 62 | I44: =SUM(I42:I43) -> 46 | K44: =SUM(K42:K43) -> 60
A45: Filled positions by program class
A46: Local Government Services | C46: 42 | E46: 43 | G46: 53 | I46: 39 | K46: 53
A47: Urban Enterprise Zone Authority | C47: 8 | E47: 7 | G47: 9 | I47: 7 | K47: 7
A48: Total positions | C48: =SUM(C46:C47) -> 50 | E48: 50 | G48: 62 | I48: =SUM(I46:I47) -> 46 | K48: 60
A52: Notes:
A53: Actual payroll counts are reported for fiscal years 2014 and 2015 as of December and revised fiscal 2016 as of January. The budget estimate for fiscal 2017 reflects the number of positions funded.

Sheet 22-76
A1: Fiscal Year: | B1: 2017
A2: Fund Category: | B2: DSS | C2: Direct State Services
A3: Department: | B3: 22 | C3: Department Of Community Affairs
A4: Statewide Program: | B4: 76 | C4: Management and Administration
A5: Organization:
A6: Number of Columns: | B6: 4
K7: Budget | M7: Budget
C8: Actual | D8: F | E8: Actual | F8: F | G8: Budgeted | H8: F | I8: Revised | J8: F | K8: Estimate | L8: F | M8: Estimate | N8: F
C9: ="FY " & FiscalYear - 3 -> FY 2014 | D9: N | E9: ="FY " & FiscalYear - 2 -> FY 2015 | F9: N | G9: ="FY " & FiscalYear - 1 -> FY 2016 | H9: N | I9: ="FY " & FiscalYear - 1 -> FY 2016 | J9: N | K9: ="FY " & FiscalYear -> FY 2017 | L9: N | M9: ="FY " & FiscalYear + 1 -> FY 2018 | N9: N
A10: PROGRAM DATA
A11: Historic Trust
A12: Historic Trust grants | C12: 42 | E12: 33 | G12: 25 | I12: 31 | K12: 31
A13: Government Records Council
A14: Formal complaints received | C14: 419 | E14: 395 | G14: 325 | I14: 400 | K14: 440
A15: Public inquiries received | C15: 1986 | E15: 2098 | G15: 2200 | I15: 2100 | K15: 2300
A17: PERSONNEL DATA
A18: Affirmative action data
A19: Male minority | C19: 110 | E19: 108 | I19: 107
A20: Male minority percentage | C20: =C19/894 -> 0.1230425056 | E20: 0.109 | I20: 0.112
A21: Female minority | C21: 233 | E21: 239 | I21: 236
A22: Female minority percentage | C22: =C21/894 -> 0.2606263982 | E22: 0.241 | I22: 0.246
A23: Total minority | C23: 343 | E23: 347 | I23: 343
A24: Total minority percentage | C24: =C20+C22 -> 0.3836689038 | E24: =E20+E22 -> 0.35 | I24: 0.358
A26: Position Data
A27: Filled positions by funding source
A28: State supported | C28: 46 | E28: 49 | G28: 50 | I28: 48 | K28: 48
A29: All other | C29: 18 | E29: 18 | G29: 23 | I29: 22 | K29: 22
A30: Total positions | C30: =SUM(C28:C29) -> 64 | E30: =SUM(E28:E29) -> 67 | G30: 73 | I30: =SUM(I28:I29) -> 70 | K30: =SUM(K28:K29) -> 70
A31: Filled positions by program class
A32: Historic Trust | C32: 6 | E32: 6 | G32: 6 | I32: 6 | K32: 6
A33: Administration and Support Services | C33: 58 | E33: 61 | G33: 67 | I33: 64 | K33: 64
A34: Total positions | C34: =SUM(C32:C33) -> 64 | E34: =SUM(E32:E33) -> 67 | G34: 73 | I34: =SUM(I32:I33) -> 70 | K34: =SUM(K32:K33) -> 70
A36: Notes:
A37: Actual payroll counts are reported for fiscal years 2014 and 2015 as of December and revised fiscal 2016 as of January. The budget estimate for fiscal 2017 reflects the number of positions funded.

Sheet 26-16-7025
A1: Fiscal Year: | B1: 2017
A2: Fund Category: | B2: DSS | C2: Direct State Services
A3: Department: | B3: 26 | C3: Department Of Corrections
A4: Statewide Program: | B4: 16 | C4: Detention and Rehabilitation
A5: Organization: | B5: 7025 | C5: System-Wide Program Support
A6: Number of Columns: | B6: 4
K7: Budget | M7: Budget
C8: Actual | D8: F | E8: Actual | F8: F | G8: Budgeted | H8: F | I8: Revised | J8: F | K8: Estimate | L8: F | M8: Estimate | N8: F
C9: ="FY " & FiscalYear - 3 -> FY 2014 | D9: N | E9: ="FY " & FiscalYear - 2 -> FY 2015 | F9: N | G9: ="FY " & FiscalYear - 1 -> FY 2016 | H9: N | I9: ="FY " & FiscalYear - 1 -> FY 2016 | J9: N | K9: ="FY " & FiscalYear -> FY 2017 | L9: N | M9: ="FY " & FiscalYear + 1 -> FY 2018 | N9: N
A10: OPERATING DATA
A11: Institutional Control and Supervision
A12: Average number of state inmates in county penal facilities | C12: 185 | E12: 169 | G12: 200 | I12: 175 | K12: 175
A13: County assistance and county contract | C13: 1112 | E13: 1112 | G13: 1112 | I13: 1112 | K13: 1112
A14: Community bed spaces | C14: 2703 | E14: 2664 | G14: 2657 | I14: 2657 | K14: 2657
A16: PERSONNEL DATA
A17: Position Data
A18: Filled positions by funding source
A19: State supported | C19: 531 | E19: 535 | G19: 539 | I19: 529 | K19: 529
A20: Federal | C20: 14 | E20: 13 | G20: 6 | I20: 5 | K20: 6
A21: All other | C21: 23 | E21: 20 | G21: 21 | I21: 20 | K21: 21
A22: Total positions | C22: =SUM(C19:C21) -> 568 | E22: 568 | G22: =SUM(G19:G21) -> 566 | I22: 554 | K22: 556
A23: Filled positions by program class
A24: Institutional Control and Supervision | C24: 317 | E24: 316 | G24: 322 | I24: 312 | K24: 312
A25: Institutional Program Support | C25: 251 | E25: 252 | G25: 244 | I25: 242 | K25: 244
A26: Total positions | C26: =SUM(C24:C25) -> 568 | E26: 568 | G26: =SUM(G24:G25) -> 566 | I26: 554 | K26: 556
A28: Notes:
A29: Actual payroll counts are reported for fiscal years 2014 and 2015 as of December and revised fiscal 2016 as of January. The budget estimate for fiscal 2017 reflects the number of positions funded.

Sheet 26-16
A1: Fiscal Year: | B1: 2017
A2: Fund Category: | B2: DSS | C2: Direct State Services
A3: Department: | B3: 26 | C3: Department Of Corrections
A4: Statewide Program: | B4: 16 | C4: Detention and Rehabilitation
A5: Organization:
A6: Number of Columns: | B6: 4
K7: Budget | M7: Budget
C8: Actual | D8: F | E8: Actual | F8: F | G8: Budgeted | H8: F | I8: Revised | J8: F | K8: Estimate | L8: F | M8: Estimate | N8: F
C9: ="FY " & FiscalYear - 3 -> FY 2014 | D9: N | E9: ="FY " & FiscalYear - 2 -> FY 2015 | F9: N | G9: ="FY " & FiscalYear - 1 -> FY 2016 | H9: N | I9: ="FY " & FiscalYear - 1 -> FY 2016 | J9: N | K9: ="FY " & FiscalYear -> FY 2017 | L9: N | M9: ="FY " & FiscalYear + 1 -> FY 2018 | N9: N
A10: New Jersey State Prison
A11: PROGRAM DATA
A12: Education Program
A13: Participants
A14: Academic
A15: Adult basic education | C15: 142 | E15: 137 | G15: 184 | I15: 189 | K15: 189
A16: State Facilities Education Act (under 21 years of age) | C16: 4 | E16: 5 | G16: 5 | I16: 3 | K16: 3
A17: Vocational education
A18: Adult basic education | C18: 0 | E18: 0 | G18: 0 | I18: 0 | K18: 0
A20: OPERATING DATA
A21: Operational capacity | C21: 2070 | E21: 2022 | G21: 2022 | I21: 1865 | K21: 1865
A22: Average daily population | C22: 1834 | E22: 1730 | G22: 1796 | I22: 1662 | K22: 1662
A23: Annual per capita | C23: 47495 | E23: 50014 | G23: 44408 | I23: 47988 | K23: 51663
A24: Daily per capita | C24: 130.12 | E24: 137.02 | G24: 121.33 | I24: 131.11 | K24: 141.54
A26: Vroom Central Reception and Assignment Facility
A27: PROGRAM DATA
A28: Education Program
A29: Participants
A30: Academic
A31: Adult basic education | C31: 34 | E31: 11 | G31: 87 | I31: 22 | K31: 22
A32: State Facilities Education Act (under 21 years of age) | C32: 0 | E32: 0 | G32: 0 | I32: 0 | K32: 0
A33: Vocational education
A34: Adult basic education | C34: 11 | E34: 9 | G34: 44 | I34: 12 | K34: 12
A36: OPERATING DATA
A37: Operational capacity | C37: 969 | E37: 969 | G37: 969 | I37: 972 | K37: 972
A38: Average daily population | C38: 866 | E38: 749 | G38: 795 | I38: 617 | K38: 617
A39: Annual per capita | C39: 51186 | E39: 57698 | G39: 53674 | I39: 69159 | K39: 69156
A40: Daily per capita | C40: 140.24 | E40: 158.08 | G40: 146.65 | I40: 188.96 | K40: 189.47
A42: East Jersey State Prison
A43: PROGRAM DATA
A44: Education Program
A45: Participants
A46: Academic
A47: Adult basic education | C47: 163 | E47: 235 | G47: 611 | I47: 278 | K47: 278
A48: State Facilities Education Act (under 21 years of age) | C48: 9 | E48: 0 | G48: 0 | I48: 0 | K48: 0
A49: Vocational education
A50: Adult basic education | C50: 0 | E50: 0 | G50: 0 | I50: 0 | K50: 0
A52: OPERATING DATA
A53: Operational capacity | C53: 1410 | E53: 1266 | G53: 1266 | I53: 1298 | K53: 1298
A54: Average daily population | C54: 1343 | E54: 1214 | G54: 1207 | I54: 1223 | K54: 1223
A55: Annual per capita | C55: 45594 | E55: 48965 | G55: 49302 | I55: 48657 | K55: 46061
A56: Daily per capita | C56: 124.92 | E56: 134.15 | G56: 134.7 | I56: 132.94 | K56: 126.19
A58: South Woods State Prison
A59: PROGRAM DATA
A60: Education Program
A61: Participants
A62: Academic
A63: Adult basic education | C63: 253 | E63: 272 | G63: 892 | I63: 210 | K63: 210
A64: State Facilities Education Act (under 21 years of age) | C64: 2 | E64: 0 | G64: 0 | I64: 0 | K64: 0
A65: Vocational education
A66: Adult basic education | C66: 139 | E66: 193 | G66: 709 | I66: 193 | K66: 193
A67: State Facilities Education Act (under 21 years of age) | C67: 0 | E67: 0 | G67: 0 | I67: 0 | K67: 0
A69: OPERATING DATA
A70: Operational capacity | C70: 3474 | E70: 3474 | G70: 3474 | I70: 3474 | K70: 3474
A71: Average daily population | C71: 3376 | E71: 3368 | G71: 3354 | I71: 3354 | K71: 3331
A72: Annual per capita | C72: 34780 | E72: 34988 | G72: 34200 | I72: 34200 | K72: 33333
A73: Daily per capita | C73: 95.29 | E73: 95.86 | G73: 93.44 | I73: 93.44 | K73: 91.32
A75: Bayside State Prison
A76: PROGRAM DATA
A77: Education Program
A78: Participants
A79: Academic
A80: Adult basic education | C80: 225 | E80: 203 | G80: 1078 | I80: 230 | K80: 230
A81: Vocational education
A82: Adult basic education | C82: 116 | E82: 126 | G82: 484 | I82: 126 | K82: 126
A84: OPERATING DATA
A85: Operational capacity | C85: 2237 | E85: 2237 | G85: 2237 | I85: 2237 | K85: 2237
A86: Average daily population | C86: 2134 | E86: 2188 | G86: 2175 | I86: 2175 | K86: 2175
A87: Annual per capita | C87: 30367 | E87: 30561 | G87: 30648 | I87: 30648 | K87: 29881
A88: Daily per capita | C88: 83.2 | E88: 83.73 | G88: 83.74 | I88: 83.74 | K88: 81.87
A90: Southern State Correctional Facility
A91: PROGRAM DATA
A92: Education Program
A93: Participants
A94: Academic
A95: Adult basic education | C95: 173 | E95: 189 | G95: 794 | I95: 201 | K95: 201
A96: Vocational education
A97: Adult basic education | C97: 92 | E97: 82 | G97: 479 | I97: 89 | K97: 89
A99: OPERATING DATA
A100: Operational capacity | C100: 1913 | E100: 2215 | G100: 2215 | I100: 2151 | K100: 2151
A101: Average daily population | C101: 1873 | E101: 2070 | G101: 2120 | I101: 1981 | K101: 1923
A102: Annual per capita | C102: 35762 | E102: 33059 | G102: 31840 | I102: 34074 | K102: 34505
A103: Daily per capita | C103: 97.98 | E103: 90.57 | G103: 86.99 | I103: 93.1 | K103: 94.53
A105: Mid-State Correctional Facility (a)
A106: PROGRAM DATA
A107: Education Program
A108: Participants
A109: Academic
A110: Adult basic education | C110: 138 | E110: 0 | G110: 0 | I110: 0 | K110: 0
A111: State Facilities Education Act (under 21 years of age) | C111: 0 | E111: 0 | G111: 0 | I111: 0 | K111: 0
A112: Vocational education
A113: Adult basic education | C113: 35 | E113: 0 | G113: 0 | I113: 0 | K113: 0
A115: OPERATING DATA
A116: Operational capacity | C116: 696 | E116: 0 | G116: 0 | I116: 0 | K116: 696
A117: Average daily population | C117: 579 | E117: 0 | G117: 0 | I117: 0 | K117: 232
A118: Annual per capita | C118: 42767 | E118: 0 | G118: 0 | I118: 0 | K118: 52784
A119: Daily per capita | C119: 117.17 | E119: 0 | G119: 0 | I119: 0 | K119: 144.62
A121: Riverfront State Prison
A122: PROGRAM DATA
A123: Education Program
A124: Participants
A125: Adult Basic Education
A126: General Educational Development
A127: Vocational Education
A129: OPERATING DATA
A130: Design capacity
A131: Average daily population
A132: Annual per capita
A133: Daily per capita
A135: Edna Mahan Correctional Facility for Women
A136: PROGRAM DATA
A137: Education Program
A138: Participants
A139: Academic
A140: Adult basic education | C140: 111 | E140: 101 | G140: 471 | I140: 111 | K140: 111
A141: State Facilities Education Act (under 21 years of age) | C141: 4 | E141: 4 | G141: 17 | I141: 1 | K141: 1
A142: Vocational education
A143: Adult basic education | C143: 162 | E143: 89 | G143: 280 | I143: 92 | K143: 92
A144: State Facilities Education Act (under 21 years of age) | C144: 3 | E144: 0 | G144: 14 | I144: 0 | K144: 0
A146: OPERATING DATA
A147: Operational capacity | C147: 845 | E147: 846 | G147: 846 | I147: 854 | K147: 854
A148: Average daily population | C148: 765 | E148: 763 | G148: 775 | I148: 739 | K148: 739
A149: Annual per capita | C149: 66656 | E149: 65529 | G149: 65716 | I149: 68917 | K149: 67139
A150: Daily per capita | C150: 182.62 | E150: 179.53 | G150: 179.55 | I150: 188.3 | K150: 183.94
A152: Northern State Prison
A153: PROGRAM DATA
A154: Education Program
A155: Participants
A156: Academic
A157: Adult basic education | C157: 542 | E157: 550 | G157: 1029 | I157: 609 | K157: 609
A158: State Facilities Education Act (under 21 years of age) | C158: 4 | E158: 1 | G158: 13 | I158: 2 | K158: 2
A159: Vocational education
A160: Adult basic education | C160: 32 | E160: 77 | G160: 285 | I160: 75 | K160: 75
A162: OPERATING DATA
A163: Operational capacity | C163: 2638 | E163: 2918 | G163: 2918 | I163: 2703 | K163: 2703
A164: Average daily population | C164: 2425 | E164: 2569 | G164: 2567 | I164: 2489 | K164: 2439
A165: Annual per capita | C165: 36799 | E165: 35675 | G165: 35497 | I165: 36610 | K165: 37198
A166: Daily per capita | C166: 100.82 | E166: 97.74 | G166: 96.99 | I166: 100.03 | K166: 101.91
A168: Adult Diagnostic and Treatment Center, Avenel
A169: PROGRAM DATA
A170: Education Program
A171: Participants
A172: Academic
A173: Adult basic education | C173: 128 | E173: 158 | G173: 345 | I173: 111 | K173: 111
A174: State Facilities Education Act (under 21 years of age) | C174: 1 | E174: 0 | G174: 4 | I174: 0 | K174: 0
A175: Vocational education
A176: Adult basic education | C176: 0 | E176: 0 | G176: 0 | I176: 0 | K176: 0
A178: OPERATING DATA
A179: Operational capacity | C179: 647 | E179: 647 | G179: 647 | I179: 612 | K179: 612
A180: Average daily population | C180: 567 | E180: 560 | G180: 561 | I180: 531 | K180: 531
A181: Annual per capita | C181: 63862 | E181: 68418 | G181: 68494 | I181: 72363 | K181: 71143
A182: Daily per capita | C182: 174.97 | E182: 187.45 | G182: 187.14 | I182: 197.71 | K182: 194.91
A183: Residents--Civilly Committed Sexual Offender Program | C183: 469 | E183: 468 | G183: 471 | I183: 480 | K183: 480
A185: Garden State Youth Correctional Facility
A186: PROGRAM DATA
A187: Education Program
A188: Participants
A189: Academic
A190: Adult basic education | C190: 334 | E190: 402 | G190: 1674 | I190: 319 | K190: 319
A191: State Facilities Education Act (under 21 years of age) | C191: 82 | E191: 99 | G191: 209 | I191: 72 | K191: 72
A192: Vocational education
A193: Adult basic education | C193: 169 | E193: 130 | G193: 417 | I193: 179 | K193: 179
A194: State Facilities Education Act (under 21 years of age) | C194: 11 | E194: 43 | G194: 136 | I194: 72 | K194: 72
A196: OPERATING DATA
A197: Operational capacity | C197: 1896 | E197: 1896 | G197: 1896 | I197: 1884 | K197: 1884
A198: Average daily population | C198: 1748 | E198: 1669 | G198: 1675 | I198: 1623 | K198: 1563
A199: Annual per capita | C199: 28327 | E199: 30556 | G199: 29149 | I199: 30083 | K199: 32054
A200: Daily per capita | C200: 77.61 | E200: 83.72 | G200: 79.64 | I200: 82.19 | K200: 87.82
A202: Albert C. Wagner Youth Correctional Facility
A203: PROGRAM DATA
A204: Education Program
A205: Participants
A206: Academic
A207: Adult basic education | C207: 118 | E207: 208 | G207: 1133 | I207: 178 | K207: 178
A208: State Facilities Education Act (under 21 years of age) | C208: 54 | E208: 16 | G208: 39 | I208: 0 | K208: 0
A209: Vocational education
A210: Adult basic education | C210: 55 | E210: 58 | G210: 434 | I210: 67 | K210: 67
A211: State Facilities Education Act (under 21 years of age) | C211: 5 | E211: 0 | G211: 1 | I211: 0 | K211: 0
A213: OPERATING DATA
A214: Operational capacity | C214: 1073 | E214: 1053 | G214: 1053 | I214: 775 | K214: 775
A215: Average daily population | C215: 972 | E215: 858 | G215: 935 | I215: 692 | K215: 692
A216: Annual per capita | C216: 49362 | E216: 57234 | G216: 53039 | I216: 71663 | K216: 56168
A217: Daily per capita | C217: 135.24 | E217: 156.81 | G217: 144.91 | I217: 195.8 | K217: 153.88
A219: Mountainview Youth Correctional Facility
A220: PROGRAM DATA
A221: Education Program
A222: Participants
A223: Academic
A224: Adult basic education | C224: 208 | E224: 192 | G224: 591 | I224: 191 | K224: 191
A225: State Facilities Education Act (under 21 years of age) | C225: 95 | E225: 88 | G225: 518 | I225: 78 | K225: 78
A226: Vocational education
... 41 more rows

Sheet 26-17
A1: Fiscal Year: | B1: 2017
A2: Fund Category: | B2: DSS | C2: Direct State Services
A3: Department: | B3: 26 | C3: Department Of Corrections
A4: Statewide Program: | B4: 17 | C4: Parole
A5: Organization:
A6: Number of Columns: | B6: 4
K7: Budget | M7: Budget
C8: Actual | D8: F | E8: Actual | F8: F | G8: Budgeted | H8: F | I8: Revised | J8: F | K8: Estimate | L8: F | M8: Estimate | N8: F
C9: ="FY " & FiscalYear - 3 -> FY 2014 | D9: N | E9: ="FY " & FiscalYear - 2 -> FY 2015 | F9: N | G9: ="FY " & FiscalYear - 1 -> FY 2016 | H9: N | I9: ="FY " & FiscalYear - 1 -> FY 2016 | J9: N | K9: ="FY " & FiscalYear -> FY 2017 | L9: N | M9: ="FY " & FiscalYear + 1 -> FY 2018 | N9: N
A10: PROGRAM DATA
A11: Parole
A12: Parolees under supervision (beginning of year) | C12: 15732 | E12: =C12+C13-C14 -> 15668 | G12: 15795 | I12: =E12+E13-E14 -> 15639 | K12: =I12+I13-I14 -> 15617
A13: Added to supervision | C13: 7400 | E13: 5871 | G13: 7150 | I13: 5895 | K13: 6000
A14: Removed from supervision | C14: 7464 | E14: 5900 | G14: 7168 | I14: 5917 | K14: 6100
A15: Level of parole supervision
A16: General supervision | C16: 7406 | E16: 7515 | G16: 7418 | I16: 7545 | K16: 7600
A17: Special caseload data | C17: 8326 | E17: 8153 | G17: 8377 | I17: 8094 | K17: 8017
A18: Parolee Electronic Monitoring Program | C18: 265 | E18: 282 | G18: 400 | I18: 252 | K18: 250
A19: Supervision, Surveillance and Gang Suppression | C19: 700 | E19: 601 | G19: 725 | I19: 507 | K19: 500
A20: Satellite-based Monitoring of Sex Offenders | C20: 355 | E20: 191 | G20: 152 | I20: 123 | K20: 92
A21: Community programs | C21: 570 | E21: 599 | G21: 650 | I21: 791 | K21: 750
A22: Office of Interstate Services | C22: 960 | E22: 952 | G22: 950 | I22: 1016 | K22: 950
A23: Sex Offender Management Unit | C23: 5476 | E23: 5528 | G23: 5500 | I23: 5405 | K23: 5475
A24: Sex offenders included in other special caseloads | C24: 1300 | E24: 1322 | G24: 1199 | I24: 923 | K24: 950
A25: Total number of sex offenders, all caseloads | C25: =SUM(C23:C24) -> 6776 | E25: =SUM(E23:E24) -> 6850 | G25: 6900 | H25: (a) | I25: 6928 | J25: (a) | K25: 7055
A27: Community program contracted capacity
A28: Re-Entry Substance Abuse Program (RESAP) | C28: 341 | E28: 326 | G28: 326 | I28: 326 | K28: 326
A29: Stages to Enhance Parolee Success Program (STEPS) | C29: 477 | E29: 477 | G29: 477 | I29: 468 | K29: 468
A30: Parole Violator Assessment and Treatment Program (b) | C30: 110 | E30: 0 | G30: 0 | I30: 0 | K30: 0
A31: Community Resource Center (CRC) | C31: 680 | E31: 680 | G31: 680 | I31: 525 | K31: 525
A32: Program for Returning Offenders with Mental Illness Safely and Effectively (PROMISE) | C32: 33 | E32: 25 | G32: 25 | I32: 25 | K32: 25
A34: Annual community program placements
A35: Mutual Agreement Program (MAP) | C35: 2500 | E35: 3160 | G35: 2600 | I35: 3200 | K35: 3200
A36: Re-Entry Substance Abuse Program (RESAP) | C36: 856 | E36: 1073 | G36: 900 | I36: 1100 | K36: 1100
A37: Stages to Enhance Parolee Success Program (STEPS) | C37: 1143 | E37: 1148 | G37: 1200 | I37: 1150 | K37: 1150
A38: Parole Violator Assessment and Treatment Program (b) | C38: 55 | E38: 0 | G38: 0 | I38: 0 | K38: 0
A39: Community Resource Center (CRC) | C39: 1721 | E39: 1742 | G39: 1750 | I39: 1750 | K39: 1750
A40: Total community program placements | C40: 6275 | E40: 7123 | G40: 6450 | I40: 7200 | K40: 7200
A42: State Parole Board
A43: Hearings | C43: 21177 | E43: 20889 | I43: 21066 | K43: 20700
A44: State | C44: 15071 | E44: 15249 | G44: 16600 | I44: 15160 | K44: 15000
A45: Counties | C45: 1985 | E45: 1794 | G45: 2500 | I45: 1889 | K45: 1800
A46: Juvenile | C46: 1647 | E46: 1499 | G46: 1740 | I46: 1573 | K46: 1500
A47: Parole revocations considered | C47: 2474 | E47: 2347 | I47: 2444 | K47: 2400
A48: Reviews:
A49: Appeals processed | C49: 1350 | E49: 1122 | I49: 1296 | K49: 1300
A50: Victim input registrations | C50: 813 | E50: 809 | G50: 820 | I50: 811 | K50: 800
A52: PERSONNEL DATA
A53: Affirmative Action data
A54: Male minority | C54: 112 | E54: 96 | I54: 108
A55: Male minority percentage | C55: =C54/C63 -> 0.1898305085 | E55: =E54/E63 -> 0.1602671119 | I55: =I54/I63 -> 0.1888111888
A56: Female minority | C56: 141 | E56: 130 | I56: 120
A57: Female minority percentage | C57: =C56/C63 -> 0.2389830508 | E57: =E56/E63 -> 0.2170283806 | I57: =I56/I63 -> 0.2097902098
A58: Total minority | C58: 253 | E58: 226 | I58: 228
A59: Total minority percentage | C59: =C58/C63 -> 0.4288135593 | E59: =E58/E63 -> 0.3772954925 | I59: =I58/I63 -> 0.3986013986
A61: Position Data
A62: Filled positions by funding source
A63: State supported | C63: 590 | E63: 599 | G63: 612 | I63: 572 | K63: 600
A64: Total positions | C64: 590 | E64: 599 | G64: 612 | I64: 572 | K64: 600
A65: Filled positions by program class
A66: Parole | C66: 404 | E66: 419 | G66: 429 | I66: 403 | K66: 422
A67: State Parole Board | C67: 143 | E67: 139 | G67: 138 | I67: 128 | K67: 135
A68: Administration and Support Services | C68: 43 | E68: 41 | G68: 45 | I68: 41 | K68: 43
A69: Total positions | C69: 590 | E69: 599 | G69: 612 | I69: =SUM(I66:I68) -> 572 | K69: =SUM(K66:K68) -> 600
A71: Notes:
A72: Actual payroll counts are reported for fiscal years 2014 and 2015 as of December and revised fiscal 2016 as of January. The budget estimate for fiscal 2017 reflects the number of positions funded.
A74: (a) Beginning in fiscal 2016, this number includes sex offenders that have been placed under general supervision.
A75: (b) Parole Violator Assessment and Treatment Program functions have been absorbed by other programs.

Sheet 26-19
A1: Fiscal Year: | B1: 2017
A2: Fund Category: | B2: DSS | C2: Direct State Services
A3: Department: | B3: 26 | C3: Department Of Corrections
A4: Statewide Program: | B4: 19 | C4: Central Planning, Direction and Management
A5: Organization:
A6: Number of Columns: | B6: 4
K7: Budget | M7: Budget
C8: Actual | D8: F | E8: Actual | F8: F | G8: Budgeted | H8: F | I8: Revised | J8: F | K8: Estimate | L8: F | M8: Estimate | N8: F
C9: ="FY " & FiscalYear - 3 -> FY 2014 | D9: N | E9: ="FY " & FiscalYear - 2 -> FY 2015 | F9: N | G9: ="FY " & FiscalYear - 1 -> FY 2016 | H9: N | I9: ="FY " & FiscalYear - 1 -> FY 2016 | J9: N | K9: ="FY " & FiscalYear -> FY 2017 | L9: N | M9: ="FY " & FiscalYear + 1 -> FY 2018 | N9: N
A10: PERSONNEL DATA
A11: Affirmative Action data (a)
A12: Male minority | C12: 2420 | E12: 2323 | G12: 2261 | I12: 2261
A13: Male minority percentage | C13: 0.304 | E13: 0.297 | G13: 0.286 | I13: =I12/7592 -> 0.2978134879
A14: Female minority | C14: 1284 | E14: 1254 | G14: 1234 | I14: 1234
A15: Female minority percentage | C15: 0.161 | E15: 0.16 | G15: 0.156 | I15: =I14/7592 -> 0.1625395153
A16: Total minority | C16: =C12+C14 -> 3704 | E16: 3577 | G16: 3495 | I16: 3495
A17: Total minority percentage | C17: =C13+C15 -> 0.465 | E17: 0.457 | G17: 0.442 | I17: 0.461
A19: Position Data
A20: Filled positions by funding source
A21: State supported | C21: 141 | E21: 138 | G21: 128 | I21: 136 | K21: 136
A22: Federal | C22: 11 | E22: 11 | G22: 10 | I22: 9 | K22: 10
A23: All other | C23: 2 | E23: 2 | G23: 2 | I23: 2 | K23: 60 | L23: (b)
A24: Total positions | C24: =SUM(C21:C23) -> 154 | E24: 151 | G24: 140 | I24: 147 | K24: =SUM(K21:K23) -> 206
A25: Filled positions by program class
A26: Administration and Support Services | C26: 154 | E26: 151 | G26: 140 | I26: 147 | K26: 206
A27: Total positions | C27: =SUM(C26) -> 154 | E27: 151 | G27: 140 | I27: 147 | K27: 206
A29: Notes:
A30: Actual payroll counts are reported for fiscal years 2014 and 2015 as of December and revised fiscal 2016 as of January. The budget estimate for fiscal 2017 reflects the number of positions funded.
A31: (a) The Department of Corrections Affirmative Action data does not include the State Parole Board.
A32: (b) Increase due to the internal reallocation of State Facilities Education Act (SFEA) positions from Detention and Rehabilitation to Central Planning, Direction and Management.

Sheet 34-31
A1: Fiscal Year: | B1: 2017
A2: Fund Category: | B2: DSS | C2: Direct State Services
A3: Department: | B3: 34 | C3: Department Of Education
A4: Statewide Program: | B4: 31 | C4: Direct Educational Services and Assistance
A5: Organization:
A6: Number of Columns: | B6: 4
K7: Budget | M7: Budget
C8: Actual | D8: F | E8: Actual | F8: F | G8: Budgeted | H8: F | I8: Revised | J8: F | K8: Estimate | L8: F | M8: Estimate | N8: F
C9: ="FY " & FiscalYear - 3 -> FY 2014 | D9: N | E9: ="FY " & FiscalYear - 2 -> FY 2015 | F9: N | G9: ="FY " & FiscalYear - 1 -> FY 2016 | H9: N | I9: ="FY " & FiscalYear - 1 -> FY 2016 | J9: N | K9: ="FY " & FiscalYear -> FY 2017 | L9: N | M9: ="FY " & FiscalYear + 1 -> FY 2018 | N9: N
A10: PROGRAM DATA
A11: General Formula Aid
A12: Resident enrollment | C12: 1415589 | E12: =I23 -> 1415468 | G12: 1414052.532 | I12: =K23 -> 1410379 | K12: 1408969
A13: Support per pupil (per State expenditure/appropriation
A14: and district budgets) (a) | C14: =SUM(C15:C17) -> 19074.19254 | E14: =SUM(E15:E17) -> 19621 | G14: 19990.33722 | I14: =SUM(I15:I17) -> 20349 | K14: =SUM(K15:K17) -> 21041
A15: Local | C15: 10366 | E15: 10620 | G15: 10485.5373 | I15: 10814 | K15: 11042
A16: State | C16: 8123.192537 | E16: 8411 | G16: 8934.478539 | I16: 8930 | K16: 9365
A17: Federal | C17: 585 | E17: 590 | G17: 570.3213787 | I17: 605 | K17: 634
A18: Percent support per pupil
A19: Local | C19: =C15/$C$14 -> 0.5434568189 | E19: =E15/$E$14 -> 0.5412568167 | G19: 0.5245302861 | I19: =I15/$I$14 -> 0.5314266057 | K19: =K15/$K$14 -> 0.5247849437
A20: State | C20: =C16/$C$14 -> 0.4258734686 | E20: =E16/$E$14 -> 0.4286733602 | G20: 0.4469398611 | I20: =I16/$I$14 -> 0.4388422035 | K20: =K16/$K$14 -> 0.4450834086
A21: Federal | C21: =C17/$C$14 -> 0.03066971243 | E21: =E17/$E$14 -> 0.03006982315 | G21: 0.028 | I21: =I17/$I$14 -> 0.02973119072 | K21: =K17/$K$14 -> 0.03013164774
A22: Enrollment as of October 15 (prebudget year)
A23: All districts, total | C23: 1423614 | E23: 1415589 | G23: 1415468 | I23: =SUM(I24:I31) -> 1415468 | K23: =SUM(K24:K31) -> 1410379
A24: Kindergarten/preschool | C24: 151759 | E24: 146772 | G24: 144965 | I24: 144965 | K24: 142686
A25: Elementary school (grades 1-5) | C25: 452849 | E25: 454188 | G25: 453631 | I25: 453631 | K25: 449960
A26: Middle school (grades 6-8) | C26: 264260 | E26: 261059 | G26: 259959 | I26: 259959 | K26: 259032
A27: High school (grades 9-12) | C27: 327125 | E27: 323794 | G27: 325143 | I27: 325143 | K27: 323490
A28: Evening school, post graduate | C28: 1618 | E28: 1543 | G28: 1604 | I28: 1604 | K28: 1794
A29: Special education | C29: 198557 | E29: 200803 | G29: 202549 | I29: 202549 | K29: 204473
A30: County vocational | C30: 25854 | E30: 26037 | G30: 26402 | I30: 26402 | K30: 27904
A31: Students in State facilities | C31: 1592 | E31: 1393 | G31: 1215 | I31: 1215 | K31: 1040
A33: Nonpublic School Aid
A34: Textbook Aid - pupils enrolled | C34: 145633 | E34: 146110 | G34: 146110 | I34: 144336 | K34: 144336
A35: Auxiliary Services Aid - students served | C35: 35644 | E35: 34041 | G35: 36893 | I35: 36679 | K35: 36679
A36: Handicapped Aid - students served | C36: 35880 | E36: 33461 | G36: 35827 | I36: 35599 | K36: 35599
A37: Nursing Services Aid - pupils enrolled | C37: 151698 | E37: 151053 | G37: 151053 | I37: 150407 | K37: 150407
A39: Special Education
A40: Enrollments
A41: Local districts | C41: 192674 | E41: 195027 | G41: 196756 | I41: =I29-I43-I42 -> 196756 | K41: =K29-K42-K43 -> 198903
A42: Regional day schools | C42: 668 | E42: 692 | G42: 640 | I42: 640 | K42: 605
A43: County vocational special education | C43: 5215 | E43: 5084 | G43: 5153 | I43: 5153 | K43: 4965
A45: PERSONNEL DATA
A46: Position Data
A47: Filled positions by funding source
A48: State supported | C48: 51 | E48: 48 | G48: 52 | I48: 51 | K48: 53
A49: Federal | C49: 75 | E49: 74 | G49: 79 | I49: 70 | K49: 74
A50: Total positions | C50: =SUM(C48:C49) -> 126 | E50: =SUM(E48:E49) -> 122 | G50: =SUM(G48:G49) -> 131 | I50: =SUM(I48:I49) -> 121 | K50: =SUM(K48:K49) -> 127
A51: Filled positions by program class
A52: Special Education | C52: 75 | E52: 74 | G52: 79 | I52: 70 | K52: 74
A53: Student Transportation | C53: 4 | E53: 3 | G53: 5 | I53: 2 | K53: 2
A54: Facilities Planning and School Building Aid | C54: 17 | E54: 16 | G54: 16 | I54: 15 | K54: 15
A55: School Finance | C55: 30 | E55: 29 | G55: 31 | I55: 34 | K55: 36
A56: Total positions | C56: =SUM(C52:C55) -> 126 | E56: =SUM(E52:E55) -> 122 | G56: =SUM(G52:G55) -> 131 | I56: =SUM(I52:I55) -> 121 | K56: =SUM(K52:K55) -> 127
A59: Notes:
A60: Actual payroll counts are reported for fiscal years 2014 and 2015 as of December and revised fiscal 2016 as of January. The budget estimate for fiscal 2017 reflects the number of positions funded.
A61: (a) Support per pupil is based on a different calculation than total spending per pupil in the Taxpayers' Guide to Education Spending.

Sheet 34-32
A1: Fiscal Year: | B1: 2017
A2: Fund Category: | B2: DSS | C2: Direct State Services
A3: Department: | B3: 34 | C3: Department Of Education
A4: Statewide Program: | B4: 32 | C4: Operation and Support of Educational Institutions
A5: Organization:
A6: Number of Columns: | B6: 4
K7: Budget | M7: Budget
C8: Actual | D8: F | E8: Actual | F8: F | G8: Budgeted | H8: F | I8: Revised | J8: F | K8: Estimate | L8: F | M8: Estimate | N8: F
C9: ="FY " & FiscalYear - 3 -> FY 2014 | D9: N | E9: ="FY " & FiscalYear - 2 -> FY 2015 | F9: N | G9: ="FY " & FiscalYear - 1 -> FY 2016 | H9: N | I9: ="FY " & FiscalYear - 1 -> FY 2016 | J9: N | K9: ="FY " & FiscalYear -> FY 2017 | L9: N | M9: ="FY " & FiscalYear + 1 -> FY 2018 | N9: N
A10: PROGRAM DATA
A11: Marie H. Katzenbach School for the Deaf
A12: Annual enrollment | C12: 134 | E12: =SUM(E13:E14) -> 106 | G12: =G13+G14 -> 105 | I12: =I13+I14 -> 99 | K12: =SUM(K13:K14) -> 97
A13: Day pupils | C13: 79 | E13: 68 | G13: 75 | I13: 71 | K13: 68
A14: Residential pupils | C14: 55 | E14: 38 | G14: 30 | I14: 28 | K14: 29
A15: Gross annual cost per pupil | C15: =14391000/C12 -> 107395.5224 | E15: =13479000/E12 -> 127160.3774 | G15: =14995000/G12 -> 142809.5238 | H15: (a) | I15: =14629000/I12 -> 147767.6768 | K15: =14896000/K12 -> 153567.0103
A16: Annual payments from local school boards
A17: For regular day pupils | C17: 47495 | E17: 48445 | G17: 49414 | I17: 49414 | K17: 50402
A18: For residential pupils | C18: 59344 | E18: 60532 | G18: 61743 | I18: 61743 | K18: 62976
A19: Direct annual state support per pupil | C19: =3597000/C12 -> 26843.28358 | E19: =6541000/E12 -> 61707.54717 | G19: =6590000/G12 -> 62761.90476 | I19: =6590000/I12 -> 66565.65657 | K19: =6590000/K12 -> 67938.14433
A20: Annual graduates | C20: 25 | E20: 14 | G20: 14 | I20: 8 | K20: 6
A21: Annual graduates enrolled in college | C21: 6 | E21: 3 | G21: 4 | I21: 3 | K21: 2
A22: Annual graduates employed (a) | C22: 19 | E22: 11 | G22: 10 | I22: 5 | K22: 4
A24: PERSONNEL DATA
A25: Position Data
A26: Filled positions by funding source
A27: State supported | C27: 20 | E27: 68 | G27: 68 | I27: 66 | K27: 66
A28: Federal | C28: 9 | E28: 9 | G28: 9 | I28: 8 | K28: 11
A29: All other | C29: =175-20 -> 155 | E29: 97 | G29: 98 | I29: 90 | K29: 97
A30: Total positions | C30: =SUM(C27:C29) -> 184 | E30: =SUM(E27:E29) -> 174 | G30: =SUM(G27:G29) -> 175 | I30: =SUM(I27:I29) -> 164 | K30: =SUM(K27:K29) -> 174
A31: Filled positions by program class
A32: Marie H. Katzenbach School for the Deaf | C32: 174 | E32: 165 | G32: 165 | I32: 158 | K32: 168
A33: Behavioral Support Program | C33: 10 | E33: 9 | G33: 10 | I33: 6 | K33: 6
A34: Total positions | C34: =SUM(C32:C33) -> 184 | E34: =SUM(E32:E33) -> 174 | G34: =SUM(G32:G33) -> 175 | I34: =SUM(I32:I33) -> 164 | K34: =SUM(K32:K33) -> 174
A37: Notes:
A38: Actual payroll counts are reported for fiscal years 2014 and 2015 as of December and revised fiscal 2016 as of January. The budget estimate for fiscal 2017 reflects the number of positions funded.
A39: (a) Includes postsecondary training.

Sheet 34-33
A1: Fiscal Year: | B1: 2017
A2: Fund Category: | B2: DSS | C2: Direct State Services
A3: Department: | B3: 34 | C3: Department Of Education
A4: Statewide Program: | B4: 33 | C4: Supplemental Education and Training Programs
A5: Organization:
A6: Number of Columns: | B6: 4
K7: Budget | M7: Budget
C8: Actual | D8: F | E8: Actual | F8: F | G8: Budgeted | H8: F | I8: Revised | J8: F | K8: Estimate | L8: F | M8: Estimate | N8: F
C9: ="FY " & FiscalYear - 3 -> FY 2014 | D9: N | E9: ="FY " & FiscalYear - 2 -> FY 2015 | F9: N | G9: ="FY " & FiscalYear - 1 -> FY 2016 | H9: N | I9: ="FY " & FiscalYear - 1 -> FY 2016 | J9: N | K9: ="FY " & FiscalYear -> FY 2017 | L9: N | M9: ="FY " & FiscalYear + 1 -> FY 2018 | N9: N
A10: PROGRAM DATA
A11: General Vocational Education
A12: Secondary vocational education
A13: Annual enrollments | C13: 78797 | E13: 73419 | G13: 68407 | I13: 68407 | K13: 63738
A14: Annual graduates | C14: 21235 | E14: 19954 | G14: 18749 | I14: 18750 | K14: 17619
A16: PERSONNEL DATA
A17: Position Data
A18: Filled positions by funding source
A19: State supported | C19: 9 | E19: 8 | G19: 9 | I19: 10 | K19: 11
A20: Federal | C20: 14 | E20: 13 | G20: 15 | I20: 12 | K20: 14
A21: Total positions | C21: =SUM(C19:C20) -> 23 | E21: =SUM(E19:E20) -> 21 | G21: =SUM(G19:G20) -> 24 | I21: =SUM(I19:I20) -> 22 | K21: =SUM(K19:K20) -> 25
A22: Filled positions by program class
A23: General Vocational Education | C23: 23 | E23: 21 | G23: 24 | I23: 22 | K23: 25
A24: Total positions | C24: =SUM(C23) -> 23 | E24: =SUM(E23) -> 21 | G24: =SUM(G23) -> 24 | I24: =SUM(I23) -> 22 | K24: =K23 -> 25
A27: Notes:
A28: Actual payroll counts are reported for fiscal years 2014 and 2015 as of December and revised fiscal 2016 as of January. The budget estimate for fiscal 2017 reflects the number of positions funded.

Sheet 34-34
A1: Fiscal Year: | B1: 2017
A2: Fund Category: | B2: DSS | C2: Direct State Services
A3: Department: | B3: 34 | C3: Department Of Education
A4: Statewide Program: | B4: 34 | C4: Educational Support Services
A5: Organization: | C5: 34-34
A6: Number of Columns: | B6: 4
K7: Budget | M7: Budget
C8: Actual | D8: F | E8: Actual | F8: F | G8: Budgeted | H8: F | I8: Revised | J8: F | K8: Estimate | L8: F | M8: Estimate | N8: F
C9: ="FY " & FiscalYear - 3 -> FY 2014 | D9: N | E9: ="FY " & FiscalYear - 2 -> FY 2015 | F9: N | G9: ="FY " & FiscalYear - 1 -> FY 2016 | H9: N | I9: ="FY " & FiscalYear - 1 -> FY 2016 | J9: N | K9: ="FY " & FiscalYear -> FY 2017 | L9: N | M9: ="FY " & FiscalYear + 1 -> FY 2018 | N9: N
A10: PROGRAM DATA
A11: Bilingual Education
A12: Limited English speaking students served | C12: 64713 | E12: 75161 | G12: 74346 | I12: 81926 | K12: 88691
A13: Programs for Disadvantaged Youth
A14: Federal Title I
A15: Migrant children served | C15: 1564 | E15: 1539 | G15: 1622 | I15: 1542 | K15: 1545
A16: Disadvantaged children served | C16: 429057 | E16: 440498 | G16: 473036 | I16: 456404 | K16: 472310
A17: Students eligible for free milk/free & reduced price meals | C17: 728874 | E17: 736163 | G17: 803584 | I17: 772972 | K17: 811620
A18: Standards, Assessments and Curriculum
A19: High school equivalency
A20: Adults tested | C20: 12000 | E20: 12000 | G20: 13000 | I20: 12000 | K20: 12000
A21: Adults earning State diplomas | C21: 5000 | E21: 5000 | G21: 6000 | I21: 5000 | K21: 5000
A22: Charter schools licensed | C22: 87 | E22: 87 | G22: 96 | I22: 89 | K22: 93
A23: Grants Management
A24: Discretionary contracts awarded annually | C24: 166 | E24: 181 | G24: 200 | I24: 205 | K24: 205
A25: Entitlement contracts awarded annually | C25: 3155 | E25: 2960 | G25: 3111 | I25: 2990 | K25: 2990
A26: Teacher and Leader Effectiveness
A27: Annual induction evaluations (non-issuance) | C27: 50 | E27: 50 | G27: 50 | I27: 50 | K27: 50
A28: Certificates awarded annually | C28: 14015 | E28: 14903 | G28: 14100 | I28: 14500 | K28: 14500
A29: Academic credentials issued annually | C29: 450 | E29: 425 | G29: 450 | I29: 425 | K29: 425
A30: County substitute certificate applications received annually | C30: 21000 | E30: 21000 | G30: 21000 | I30: 21000 | K30: 21000
A31: Certificates of eligibility issued annually | C31: 11891 | E31: 11999 | G31: 12000 | I31: 11900 | K31: 11800
A32: Training contracts approved annually | C32: 6563 | E32: 6417 | G32: 6600 | I32: 6500 | K32: 6500
A33: Annual induction evaluations | C33: 19689 | E33: 19251 | G33: 19800 | I33: 6500 | J33: (a) | K33: 6500
A34: Service to Local Districts
A35: Needs identified
A36: Districts monitored annually | C36: 231 | E36: 350 | G36: 275 | I36: 331 | K36: 266
A37: Assistance rendered
A38: Districts needing technical assistance per corrective action plans | C38: 90 | E38: 125 | G38: 105 | I38: 150 | K38: 160
A39: Learning Supports and Specialized Services
A40: Holocaust/Genocide Education
A41: Workshops | C41: 442 | E41: 479 | G41: 455 | I41: 515 | K41: 550
A42: Participants (Students/Educators/Survivors/Community) | C42: 123668 | E42: 139824 | G42: 130000 | I42: 149500 | K42: 158000
A44: PERSONNEL DATA
A45: Position Data
A46: Filled positions by funding source
A47: State supported | C47: 150 | E47: 137 | G47: 152 | I47: 146 | K47: 156
A48: Federal | C48: 82 | E48: 73 | G48: 88 | I48: 74 | K48: 79
A49: All other | C49: 50 | E49: 49 | G49: 49 | I49: 44 | K49: 48
A50: Total positions | C50: =SUM(C47:C49) -> 282 | E50: =SUM(E47:E49) -> 259 | G50: =SUM(G47:G49) -> 289 | I50: =SUM(I47:I49) -> 264 | K50: =SUM(K47:K49) -> 283
A51: Filled positions by program class
A52: Bilingual Education | C52: 2 | E52: 2 | G52: 2 | I52: 3 | K52: 3
A53: Programs for Disadvantaged Youth | C53: 40 | E53: 41 | G53: 49 | I53: 38 | K53: 40
A54: Standards, Assessments and Curriculum | C54: 44 | E54: 38 | G54: 44 | I54: 44 | K54: 50
A55: Grants Management | C55: 19 | E55: 16 | G55: 17 | I55: 16 | K55: 17
A56: Teacher and Leader Effectiveness | C56: 66 | E56: 65 | G56: 67 | I56: 63 | K56: 67
A57: Service to Local Districts | C57: 33 | E57: 34 | G57: 41 | I57: 34 | K57: 35
A58: Innovation | C58: 14 | E58: 15 | G58: 17 | I58: 20 | K58: 24
A59: Early Childhood Education | C59: 15 | E59: 13 | G59: 15 | I59: 14 | K59: 14
A60: School Improvement | C60: 37 | E60: 22 | G60: 22 | I60: 18 | K60: 19
A61: Learning Supports and Specialized Services | C61: 12 | E61: 13 | G61: 15 | I61: 14 | K61: 14
A62: Total positions | C62: =SUM(C52:C61) -> 282 | E62: =SUM(E52:E61) -> 259 | G62: =SUM(G52:G61) -> 289 | I62: =SUM(I52:I61) -> 264 | K62: =SUM(K52:K61) -> 283
A65: Notes:
A66: Actual payroll counts are reported for fiscal years 2014 and 2015 as of December and revised fiscal 2016 as of January. The budget estimate for fiscal 2017 reflects the number of positions funded.
A67: (a) Annual induction evaluations will decrease by 67% because Achieve NJ is now being used to evaluate provisional teachers for standard certification. Achieve NJ requires reporting one annual evaluation to the Department.

Sheet 34-35
A1: Fiscal Year: | B1: 2017
A2: Fund Category: | B2: DSS | C2: Direct State Services
A3: Department: | B3: 34 | C3: Department Of Education
A4: Statewide Program: | B4: 35 | C4: Education Administration and Management
A5: Organization:
A6: Number of Columns: | B6: 4
K7: Budget | M7: Budget
C8: Actual | D8: F | E8: Actual | F8: F | G8: Budgeted | H8: F | I8: Revised | J8: F | K8: Estimate | L8: F | M8: Estimate | N8: F
C9: ="FY " & FiscalYear - 3 -> FY 2014 | D9: N | E9: ="FY " & FiscalYear - 2 -> FY 2015 | F9: N | G9: ="FY " & FiscalYear - 1 -> FY 2016 | H9: N | I9: ="FY " & FiscalYear - 1 -> FY 2016 | J9: N | K9: ="FY " & FiscalYear -> FY 2017 | L9: N | M9: ="FY " & FiscalYear + 1 -> FY 2018 | N9: N
A10: PROGRAM DATA
A11: Office of Fiscal Accountability and Compliance
A12: Annual compliance and fiscal reviews of school districts | C12: 4 | E12: 4 | G12: 4 | I12: 4 | K12: 4
A13: Annual audits of applications for State school aid | C13: 25 | E13: 23 | G13: 50 | I13: 30 | K13: 30
A14: Annual monitoring of private schools for the disabled | C14: 28 | E14: 28 | G14: 20 | I14: 28 | K14: 28
A15: Annual audits of Title I funds | C15: 23 | E15: 23 | G15: 15 | I15: 23 | K15: 23
A16: Annual audits of Carl D. Perkins funds | C16: 10 | E16: 10 | G16: 15 | I16: 10 | K16: 10
A18: PERSONNEL DATA
A19: Affirmative Action data
A20: Male minority | C20: 59 | E20: 61 | I20: 61
A21: Male minority percentage | C21: 0.074 | E21: 0.08 | I21: 0.081
A22: Female minority | C22: 175 | E22: 172 | I22: 172
A23: Female minority percentage | C23: 0.22 | E23: 0.225 | I23: 0.229
A24: Total minority | C24: =C20+C22 -> 234 | E24: 233 | I24: 233
A25: Total minority percentage | C25: 0.294 | E25: 0.305 | I25: 0.311
A27: Position Data
A28: Filled positions by funding source
A29: State supported | C29: 145 | E29: 152 | G29: 160 | I29: 147 | K29: 153
A30: Federal | C30: 27 | E30: 28 | G30: 28 | I30: 25 | K30: 26
A31: All other | C31: 8 | E31: 7 | G31: 7 | I31: 7 | K31: 7
A32: Total positions | C32: 180 | E32: =SUM(E29:E31) -> 187 | G32: =SUM(G29:G31) -> 195 | I32: =SUM(I29:I31) -> 179 | K32: =SUM(K29:K31) -> 186
A33: Filled positions by program class
A34: Data Research, Evaluation and Reporting | C34: 11 | E34: 9 | G34: 8 | I34: 8 | K34: 8
A35: Office of Fiscal Accountability and Compliance | C35: 28 | E35: 34 | G35: 34 | I35: 33 | K35: 35
A36: Administration and Support Services | C36: 141 | E36: 144 | G36: 153 | I36: 138 | K36: 143
A37: Total positions | C37: 180 | E37: =SUM(E34:E36) -> 187 | G37: =SUM(G34:G36) -> 195 | I37: =SUM(I34:I36) -> 179 | K37: =SUM(K34:K36) -> 186
A40: Notes:
A41: Actual payroll counts are reported for fiscal years 2014 and 2015 as of December and revised fiscal 2016 as of January. The budget estimate for fiscal 2017 reflects the number of positions funded.

Sheet 42-42
A1: Fiscal Year: | B1: 2017
A2: Fund Category: | B2: DSS | C2: Direct State Services
A3: Department: | B3: 42 | C3: Department Of Environmental Protection
A4: Statewide Program: | B4: 42 | C4: Natural Resource Management
A5: Organization:
A6: Number of Columns: | B6: 4
K7: Budget | M7: Budget
C8: Actual | D8: F | E8: Actual | F8: F | G8: Budgeted | H8: F | I8: Revised | J8: F | K8: Estimate | L8: F | M8: Estimate | N8: F
C9: ="FY " & FiscalYear - 3 -> FY 2014 | D9: N | E9: ="FY " & FiscalYear - 2 -> FY 2015 | F9: N | G9: ="FY " & FiscalYear - 1 -> FY 2016 | H9: N | I9: ="FY " & FiscalYear - 1 -> FY 2016 | J9: N | K9: ="FY " & FiscalYear -> FY 2017 | L9: N | M9: ="FY " & FiscalYear + 1 -> FY 2018 | N9: N
A10: PROGRAM DATA
A11: Forest Resource Management
A12: Fires (annual) | C12: 1063 | E12: 647 | G12: 1500 | I12: 1500 | K12: 1500
A13: Acres lost (annual) | C13: 6692 | E13: 1474 | G13: 2500 | I13: 2500 | K13: 2500
A14: Acres of prescribed burning | C14: 15326 | E14: 6497 | G14: 20000 | I14: 20000 | K14: 20000
A15: Parks Management
A16: State parks and forests
A17: Total visitors | C17: 16560640 | E17: 16713919 | G17: 17000000 | I17: 17000000 | K17: 17500000
A18: Total revenue (millions) | C18: 9.4 | E18: 8.9 | G18: 9.5 | I18: 8.9 | K18: 9
A19: Historic sites
A20: Total visitors | C20: 853669 | E20: 813339 | G20: 875000 | I20: 835000 | K20: 875000
A21: Total revenue | C21: 120024 | E21: 173037 | G21: 115000 | I21: 170000 | K21: 180000
A22: Green Acres/open space preservation
A23: Acres preserved | C23: 5050 | E23: 4423 | G23: 3300 | I23: 5000 | K23: 2000
A24: Acres preserved since inception of GSPT (a) | C24: 255653 | E24: 260076 | G24: 262300 | I24: 265076 | K24: 267076
A25: State funding (millions) | C25: 55 | E25: 66.9 | G25: 60 | I25: 60 | K25: 55
A26: County/municipal funding (millions) | C26: 28.1 | E26: 24.1 | G26: 25 | I26: 25 | K26: 25
A27: County/municipal dedicated tax revenue (millions) | C27: 257 | E27: 270.7 | G27: 260 | I27: 270 | K27: 270
A28: Non-profit funding (millions) | C28: 4.5 | E28: 3.5 | G28: 4 | I28: 4 | K28: 4
A29: Hunters' and Anglers' License Fund
A30: Trout propagated and distributed | C30: 393715 | E30: 858977 | G30: 920000 | I30: 849110 | K30: 920000
A31: Pheasants reared at game farms | C31: 56230 | E31: 65000 | G31: 50000 | I31: 50000 | K31: 50000
A32: Other fish propagated and distributed | C32: 3689131 | E32: 2650000 | G32: 1032000 | I32: 2565000 | K32: 2800000
A33: Natural Resources Engineering
A34: Shore Protection Fund projects
A35: Cubic yards of sand pumped (millions) | C35: 10.3 | E35: 3.6 | G35: 24 | I35: 17.2 | K35: 12.7
A37: PERSONNEL DATA
A38: Position Data
A39: Filled positions by funding source
A40: State supported | C40: 559 | E40: 543 | G40: 257 | I40: 227 | K40: 256
A41: Federal | C41: 2 | E41: 1 | G41: 2 | I41: 1 | K41: 2
A42: All other | C42: 274 | E42: 269 | G42: 587 | I42: 578 | K42: 587
A43: Total positions | C43: =SUM(C40:C42) -> 835 | E43: =SUM(E40:E42) -> 813 | G43: =SUM(G40:G42) -> 846 | I43: =SUM(I40:I42) -> 806 | K43: =SUM(K40:K42) -> 845
A44: Filled positions by program class
A45: Forest Resource Management | C45: 102 | E45: 100 | G45: 103 | I45: 100 | K45: 104
A46: Parks Management | C46: 456 | E46: 435 | G46: 147 | H46: (b) | I46: 122 | J46: (b) | K46: 144 | L46: (b)
A47: Hunters' and Anglers' License Fund | C47: 167 | E47: 163 | G47: 169 | I47: 161 | K47: 169
A48: Shellfish and Marine Fisheries Management | C48: 39 | E48: 43 | G48: 44 | I48: 39 | K48: 44
A49: Wildlife Management | C49: 16 | E49: 16 | G49: 15 | I49: 13 | K49: 15
A50: Natural Resources Engineering | C50: 55 | E50: 56 | G50: 61 | I50: 64 | K50: 62
A51: Environmental Management and Preservation - CBT Dedication | I51: 307 | J51: (b) | K51: 307 | L51: (b)
A52: Total positions | C52: =SUM(C45:C51) -> 835 | E52: =SUM(E45:E51) -> 813 | G52: =SUM(G45:G50) -> 539 | I52: =SUM(I45:I51) -> 806 | K52: =SUM(K45:K51) -> 845
A55: Notes:
A56: Actual payroll counts are reported for fiscal years 2014 and 2015 as of December, and revised fiscal 2016 as of January. The budget estimate for fiscal 2017 reflects the number of positions funded.
A57: (a) Garden State Preservation Trust (GSPT)
A58: (b) Reflects the shift of positions now funded under the CBT dedication.

Sheet 42-43
A1: Fiscal Year: | B1: 2017
A2: Fund Category: | B2: DSS | C2: Direct State Services
A3: Department: | B3: 42 | C3: Department Of Environmental Protection
A4: Statewide Program: | B4: 43 | C4: Science and Technical Programs
A5: Organization:
A6: Number of Columns: | B6: 4
K7: Budget | M7: Budget
C8: Actual | D8: F | E8: Actual | F8: F | G8: Budgeted | H8: F | I8: Revised | J8: F | K8: Estimate | L8: F | M8: Estimate | N8: F
C9: ="FY " & FiscalYear - 3 -> FY 2014 | D9: N | E9: ="FY " & FiscalYear - 2 -> FY 2015 | F9: N | G9: ="FY " & FiscalYear - 1 -> FY 2016 | H9: N | I9: ="FY " & FiscalYear - 1 -> FY 2016 | J9: N | K9: ="FY " & FiscalYear -> FY 2017 | L9: N | M9: ="FY " & FiscalYear + 1 -> FY 2018 | N9: N
A10: PROGRAM DATA
A11: Water Monitoring and Standards
A12: Ambient Marine Water:
A13: Water samples analyzed | C13: 26557 | E13: 23644 | G13: 24000 | I13: 25000 | K13: 25000
A14: Shellfish bed acres open | C14: 0.78 | E14: 0.78 | G14: 0.78 | I14: 0.76 | K14: 0.76
A15: Shellfish bed acres seasonal | C15: 0.03 | E15: 0.03 | G15: 0.03 | I15: 0.04 | K15: 0.04
A16: Shellfish bed acres condemned | C16: 0.11 | E16: 0.11 | G16: 0.11 | I16: 0.11 | K16: 0.11
A17: Shellfish bed acres specially restricted | C17: 0.08 | E17: 0.08 | G17: 0.08 | I17: 0.09 | K17: 0.09
A19: Land Use Regulation
A20: Tidelands:
A21: Grant applications approved | C21: 178 | E21: 210 | G21: 125 | I21: 125 | K21: 200
A22: New licenses | C22: 104 | E22: 87 | G22: 100 | I22: 100 | K22: 100
A23: License renewals | C23: 490 | E23: 190 | G23: 200 | I23: 100 | K23: 100
A24: Statements of No Interest (SNI) issued | C24: 18 | E24: 14 | G24: 20 | I24: 20 | K24: 20
A26: PERSONNEL DATA
A27: Position Data
A28: Filled positions by funding source
A29: State supported | C29: 0 | E29: 0 | G29: 62 | I29: 57 | K29: 62
A30: Federal | C30: 17 | E30: 17 | G30: 17 | I30: 15 | K30: 17
A31: All other | C31: 399 | E31: 407 | G31: 353 | I31: 335 | K31: 360
A32: Total positions | C32: =SUM(C30:C31) -> 416 | E32: =SUM(E30:E31) -> 424 | G32: =SUM(G29:G31) -> 432 | I32: =SUM(I29:I31) -> 407 | K32: =SUM(K29:K31) -> 439
A33: Filled positions by program class
A34: Water Supply | C34: 121 | E34: 117 | G34: 120 | I34: 115 | K34: 120
A35: Water Monitoring and Resource Management | C35: 38 | E35: 42 | G35: 104 | H35: (a) | I35: =96 -> 96 | J35: (a) | K35: 104
A36: Land Use Regulation | C36: 137 | E36: 136 | G36: 142 | I36: 136 | K36: 149
A37: Division of Science, Research and Environmental Health | C37: 14 | E37: 15 | G37: 15 | I37: 13 | K37: 15
A38: New Jersey Geological Survey | C38: 14 | E38: 15 | G38: 15 | I38: 15 | K38: 15
A39: Environmental Management and Preservation - CBT Dedication | C39: 56 | E39: 65 | G39: 0 | H39: (a) | I39: 2 | J39: (a) | K39: 0
A40: Drinking Water State Revolving Fund | C40: 3 | E40: 5 | G40: 5 | I40: 5 | K40: 5
A41: Environmental Policy and Planning | C41: 33 | E41: 29 | G41: 31 | I41: 25 | K41: 31
A42: Total positions | C42: =SUM(C34:C41) -> 416 | E42: =SUM(E34:E41) -> 424 | G42: =SUM(G34:G41) -> 432 | I42: =SUM(I34:I41) -> 407 | K42: =SUM(K34:K41) -> 439
A44: Notes:
A45: Actual payroll counts are reported for fiscal years 2014 and 2015 as of December and revised fiscal 2016 as of January. The budget estimate for fiscal 2017 reflects the number of positions funded.
A46: (a) Reflects the shift of positions previously funded under the CBT dedication.

Sheet 42-44
A1: Fiscal Year: | B1: 2017
A2: Fund Category: | B2: DSS | C2: Direct State Services
A3: Department: | B3: 42 | C3: Department Of Environmental Protection
A4: Statewide Program: | B4: 44 | C4: Site Remediation and Waste Management
A5: Organization:
A6: Number of Columns: | B6: 4
K7: Budget | M7: Budget
C8: Actual | D8: F | E8: Actual | F8: F | G8: Budgeted | H8: F | I8: Revised | J8: F | K8: Estimate | L8: F | M8: Estimate | N8: F
C9: ="FY " & FiscalYear - 3 -> FY 2014 | D9: N | E9: ="FY " & FiscalYear - 2 -> FY 2015 | F9: N | G9: ="FY " & FiscalYear - 1 -> FY 2016 | H9: N | I9: ="FY " & FiscalYear - 1 -> FY 2016 | J9: N | K9: ="FY " & FiscalYear -> FY 2017 | L9: N | M9: ="FY " & FiscalYear + 1 -> FY 2018 | N9: N
A10: PROGRAM DATA
A11: Solid and Hazardous Waste Management
A12: Annual tonnage of solid waste:
A13: Generated statewide | C13: 20192333 | E13: 21065155 | G13: 20192333 | I13: 20192333 | K13: 20192333
A14: Generated per capita (lbs./person/day) | C14: 12.58 | E14: 13.12 | G14: 12.58 | I14: 12.58 | K14: 12.58
A15: Recycled statewide | C15: 11000068 | E15: 12127264 | G15: 11000068 | I15: 11000068 | K15: 11000068
A16: Recycled per capita (lbs./person/day) | C16: 6.85 | E16: 7.56 | G16: 6.85 | I16: 6.85 | K16: 6.85
A17: Reduction in solid waste stream due to recycling | C17: 0.54 | E17: 0.58 | G17: 0.54 | I17: 0.54 | K17: 0.54
A18: Annual tonnage of hazardous waste generated statewide
A19: Disposed
A20: Incinerated
A21: Remediation Management
A22: Total active cases in Site Remediation Program | C22: 14436 | E22: 13856 | G22: 14300 | I22: 14000 | K22: 13900
A23: Licensed Site Remediation Professionals (LSRP) Program | C23: 10428 | E23: 10511 | G23: 10800 | I23: 10500 | K23: 10400
A24: Non-LSRP | C24: 2398 | E24: 2084 | G24: 2000 | I24: 2000 | K24: 2000
A25: Unregulated Heating Oil Tank (UHOT) Program | C25: 1610 | E25: 1261 | G25: 1500 | I25: 1500 | K25: 1500
A26: Number of LSRP case inspections completed | C26: 5684 | E26: 8194 | G26: 6000 | I26: 7000 | K26: 7000
A27: Number of LSRP case reviews completed | C27: 1672 | E27: 904 | G27: 2100 | I27: 1000 | K27: 1000
A28: Total number of Remedial Action Outcome (RAO) documents issued | C28: 1892 | E28: 1093 | G28: 2100 | I28: 1200 | K28: 1200
A29: UHOT cases underway | C29: 1610 | E29: 3618 | G29: 1950 | I29: 3500 | K29: 3500
A30: UHOT cases closed | C30: 3379 | E30: 3715 | G30: 3200 | I30: 3500 | K30: 3500
A31: Permit applications received | C31: 665 | E31: 929 | G31: 400 | I31: 900 | K31: 900
A32: Permits issued | C32: 444 | E32: 962 | G32: 400 | I32: 900 | K32: 900
A35: PERSONNEL DATA
A36: Position Data
A37: Filled positions by funding source
A38: State supported | G38: 102 | I38: 95 | K38: 115
A39: Federal | C39: 6 | E39: 6 | G39: 6 | I39: 6 | K39: 6
A40: All other | C40: 489 | E40: 483 | G40: 402 | I40: 390 | K40: 383
A41: Total positions | C41: =SUM(C38:C40) -> 495 | E41: =SUM(E38:E40) -> 489 | G41: =SUM(G38:G40) -> 510 | I41: =SUM(I38:I40) -> 491 | K41: 504
A42: Filled positions by program class
A43: Publicly-Funded Site Remediation and Response | G43: 102 | H43: (a) | I43: 95 | K43: 115 | L43: (a)
A44: Solid and Hazardous Waste Management | C44: 74 | E44: 69 | G44: 78 | I44: 72 | K44: 73
A45: Remediation Management | C45: 312 | E45: 312 | G45: 321 | I45: 315 | K45: 316
A46: Environmental Management and Preservation - CBT Dedication | C46: 109 | E46: 108 | G46: 9 | H46: (a) | I46: 9 | K46: 0 | L46: (a)
A47: Total positions | C47: =SUM(C43:C46) -> 495 | E47: =SUM(E43:E46) -> 489 | G47: =SUM(G43:G46) -> 510 | I47: =SUM(I43:I46) -> 491 | K47: 504
A50: Notes:
A51: Actual payroll counts are reported for fiscal years 2014 and 2015 as of December, and revised fiscal 2016 as of January. The budget estimate for fiscal 2017 reflects the number of positions funded.
A52: (a) Reflects the shift of positions previously funded under the CBT dedication.

Sheet 42-45
A1: Fiscal Year: | B1: 2017
A2: Fund Category: | B2: DSS | C2: Direct State Services
A3: Department: | B3: 42 | C3: Department Of Environmental Protection
A4: Statewide Program: | B4: 45 | C4: Environmental Regulation
A5: Organization:
A6: Number of Columns: | B6: 4
K7: Budget | M7: Budget
C8: Actual | D8: F | E8: Actual | F8: F | G8: Budgeted | H8: F | I8: Revised | J8: F | K8: Estimate | L8: F | M8: Estimate | N8: F
C9: ="FY " & FiscalYear - 3 -> FY 2014 | D9: N | E9: ="FY " & FiscalYear - 2 -> FY 2015 | F9: N | G9: ="FY " & FiscalYear - 1 -> FY 2016 | H9: N | I9: ="FY " & FiscalYear - 1 -> FY 2016 | J9: N | K9: ="FY " & FiscalYear -> FY 2017 | L9: N | M9: ="FY " & FiscalYear + 1 -> FY 2018 | N9: N
A10: PROGRAM DATA
A11: Radiation Protection
A12: X-ray machines inspected | C12: 5948 | E12: 7088 | G12: 5500 | I12: 8053 | K12: 8053
A13: X-ray machine violations (percentage of inspected) | C13: 0.23 | E13: 0.19 | G13: 0.2 | I13: 0.2 | K13: 0.2
A14: Homes tested for radon | C14: 48365 | E14: 55968 | G14: 50000 | I14: 58000 | K14: 59000
A15: Homes mitigated for radon | C15: 3631 | E15: 3868 | G15: 3750 | I15: 3900 | K15: 3500
A16: Lung cancers avoided | C16: 83 | E16: 83 | G16: 83 | I16: 83 | K16: 83
A18: Release Prevention
A19: Toxic Catastrophe Prevention
A20: Inspections | C20: 154 | E20: 152 | G20: 167 | I20: 156 | K20: 156
A21: Right To Know
A22: Information requests | C22: 2654 | E22: 3245 | G22: 2500 | I22: 3000 | K22: 3000
A23: Audits for facilities | C23: 965 | E23: 516 | G23: 600 | I23: 700 | K23: 700
A24: Administrative orders | C24: 0 | E24: 9 | G24: 10 | I24: 10 | K24: 10
A26: Public Wastewater Facilities
A27: Capitalized funding provided for municipal
A28: infrastructure improvement projects (in millions) | C28: 300 | E28: 228 | G28: 120 | I28: 300 | K28: 300
A29: Municipal infrastructure improvement projects funded | C29: 100 | E29: 57 | G29: 50 | I29: 100 | K29: 100
A31: Environmental Management - CBT Dedication
A32: Diesel-powered engine retrofit installation
A33: School bus
A34: Installations approved | C34: 12 | E34: 0 | G34: 0 | I34: 0 | K34: 0
A35: Cost encumbered (in millions) | C35: 0.1 | E35: 0 | G35: 0 | I35: 0 | K35: 0
A36: Installations completed | C36: 18 | E36: 0 | G36: 100 | I36: 0 | K36: 0
A37: Municipal solid waste vehicle
A38: Installations approved | C38: 10 | E38: 0 | G38: 0 | I38: 20 | K38: 0
A39: Cost encumbered (in millions) | C39: 0 | E39: 0 | G39: 0 | I39: 0.3 | K39: 0.3
A40: Installations completed | C40: 41 | E40: 14 | G40: 20 | I40: 20 | K40: 20
A41: Commercial bus
A42: Installations approved | C42: 0 | E42: 0 | G42: 0 | I42: 20 | K42: 0
A43: Cost encumbered (in millions) | C43: 0 | E43: 0 | G43: 0 | I43: 0.3 | K43: 0.3
A44: Installations completed | C44: 4 | E44: 0 | G44: 0 | I44: 20 | K44: 20
A45: Public trucks and off-road vehicle
A46: Installations approved | C46: 367 | E46: 237 | G46: 0 | I46: 686 | K46: 0
A47: Cost encumbered (in millions) | C47: 6 | E47: 4.3 | G47: 0 | I47: 16.5 | K47: 33.5
A48: Installations completed | C48: 564 | E48: 369 | G48: 2044 | I48: 1700 | K48: 847
A50: PERSONNEL DATA
A51: Position Data
A52: Filled positions by funding source
A53: State supported | C53: 15 | E53: 13 | G53: 15 | I53: 14 | K53: 15
A54: All other | C54: 410 | E54: 399 | G54: 417 | I54: 396 | K54: 417
A55: Total positions | C55: =SUM(C53:C54) -> 425 | E55: =SUM(E53:E54) -> 412 | G55: =SUM(G53:G54) -> 432 | I55: =SUM(I53:I54) -> 410 | K55: =SUM(K53:K54) -> 432
A56: Filled positions by program class
A57: Radiation Protection | C57: 67 | E57: 67 | G57: 70 | I57: 65 | K57: 70
A58: Air Pollution Control | C58: 135 | E58: 129 | G58: 142 | I58: 134 | K58: 142
A59: Release Prevention | C59: 37 | E59: 34 | G59: 38 | I59: 36 | K59: 38
A60: Water Pollution Control | C60: 104 | E60: 99 | G60: 101 | I60: 98 | K60: 101
A61: Public Wastewater Facilities | C61: 42 | E61: 41 | G61: 45 | I61: 44 | K61: 45
A62: Environmental Management and Preservation - CBT Dedication | C62: 8 | E62: 8 | G62: 0 | I62: 0 | K62: 0
A63: Clean Waters | C63: 32 | E63: 34 | G63: 36 | I63: 33 | K63: 36
A64: Total positions | C64: =SUM(C57:C63) -> 425 | E64: =SUM(E57:E63) -> 412 | G64: =SUM(G57:G63) -> 432 | I64: =SUM(I57:I63) -> 410 | K64: =SUM(K57:K63) -> 432
A67: Notes:
A68: Actual payroll counts are reported for fiscal years 2014 and 2015 as of December and revised fiscal 2016 as of January. The budget estimate for fiscal 2017 reflects the number of positions funded.

Sheet 42-46
A1: Fiscal Year: | B1: 2017
A2: Fund Category: | B2: DSS | C2: Direct State Services
A3: Department: | B3: 42 | C3: Department Of Environmental Protection
A4: Statewide Program: | B4: 46 | C4: Environmental Planning and Administration
A5: Organization:
A6: Number of Columns: | B6: 4
K7: Budget | M7: Budget
C8: Actual | D8: F | E8: Actual | F8: F | G8: Budgeted | H8: F | I8: Revised | J8: F | K8: Estimate | L8: F | M8: Estimate | N8: F
C9: ="FY " & FiscalYear - 3 -> FY 2014 | D9: N | E9: ="FY " & FiscalYear - 2 -> FY 2015 | F9: N | G9: ="FY " & FiscalYear - 1 -> FY 2016 | H9: N | I9: ="FY " & FiscalYear - 1 -> FY 2016 | J9: N | K9: ="FY " & FiscalYear -> FY 2017 | L9: N | M9: ="FY " & FiscalYear + 1 -> FY 2018 | N9: N
A10: PROGRAM DATA
A11: Administration and Support Services
A12: Affirmative Action data
A13: Male minority | C13: 267 | E13: 264 | I13: 262
A14: Male minority percentage | C14: 0.098 | E14: 0.098 | I14: 0.098
A15: Female minority | C15: 272 | E15: 267 | I15: 267
A16: Female minority percentage | C16: 0.099 | E16: 0.098 | I16: 0.099
A17: Total minority | C17: 539 | E17: 531 | I17: 529
A18: Total minority percentage | C18: 0.197 | E18: 0.196 | I18: 0.197
A19: Open Public Records Act (OPRA) data
A20: Number of OPRA requests received | C20: 17083 | E20: 17617 | G20: 17250 | I20: 18300 | K20: 18700
A22: PERSONNEL DATA
A23: Position Data
A24: Filled positions by funding source
A25: State supported | C25: 252 | E25: 265 | G25: 271 | I25: 266 | K25: 272
A26: All other | C26: 27 | E26: 30 | G26: 33 | I26: 30 | K26: 32
A27: Total positions | C27: =SUM(C25:C26) -> 279 | E27: =SUM(E25:E26) -> 295 | G27: =SUM(G25:G26) -> 304 | I27: =SUM(I25:I26) -> 296 | K27: =SUM(K25:K26) -> 304
A28: Filled positions by program
A29: Regulatory and Governmental Affairs | C29: 28 | E29: 28 | G29: 28 | I29: 28 | K29: 28
A30: Administration and Support Services | C30: 251 | E30: 267 | G30: 276 | I30: 268 | K30: 276
A31: Total positions | C31: =SUM(C29:C30) -> 279 | E31: =SUM(E29:E30) -> 295 | G31: =SUM(G29:G30) -> 304 | I31: =SUM(I29:I30) -> 296 | K31: =SUM(K29:K30) -> 304
A34: Notes:
A35: Actual payroll counts are reported for fiscal years 2014 and 2015 as of December, and revised fiscal 2016 as of January. The budget estimate for fiscal 2017 reflects the number of positions funded.

Sheet 42-47
A1: Fiscal Year: | B1: 2017
A2: Fund Category: | B2: DSS | C2: Direct State Services
A3: Department: | B3: 42 | C3: Department Of Environmental Protection
A4: Statewide Program: | B4: 47 | C4: Compliance and Enforcement
A5: Organization:
A6: Number of Columns: | B6: 4
K7: Budget | M7: Budget
C8: Actual | D8: F | E8: Actual | F8: F | G8: Budgeted | H8: F | I8: Revised | J8: F | K8: Estimate | L8: F | M8: Estimate | N8: F
C9: ="FY " & FiscalYear - 3 -> FY 2014 | D9: N | E9: ="FY " & FiscalYear - 2 -> FY 2015 | F9: N | G9: ="FY " & FiscalYear - 1 -> FY 2016 | H9: N | I9: ="FY " & FiscalYear - 1 -> FY 2016 | J9: N | K9: ="FY " & FiscalYear -> FY 2017 | L9: N | M9: ="FY " & FiscalYear + 1 -> FY 2018 | N9: N
A10: PROGRAM DATA
A11: Air Pollution Control
A12: Investigations and inspections | C12: 3689 | E12: 4063 | G12: 3000 | I12: 3000 | K12: 3000
A13: Pesticide Control
A14: Investigations and inspections | C14: 831 | E14: 923 | G14: 800 | I14: 600 | K14: 600
A15: Pesticide products regulated | C15: 13337 | E15: 13738 | G15: 13000 | I15: 13000 | K15: 13000
A16: Pesticide licenses and permits | C16: 16773 | E16: 16395 | G16: 17000 | I16: 17000 | K16: 17000
A17: Water Pollution Control
A18: Inspections | C18: 2873 | E18: 3025 | G18: 2919 | I18: 2919 | K18: 2919
A19: Clean Shores:
A20: Miles of beaches cleaned | C20: 114 | E20: 142 | G20: 90 | I20: 114 | K20: 114
A21: Tons of debris removed | C21: 1330 | E21: 1140 | G21: 1400 | I21: 1500 | K21: 1300
A22: Land Use Regulation
A23: Investigations and inspections | C23: 745 | E23: 775 | G23: 750 | I23: 750 | K23: 750
A24: Solid and Hazardous Waste Management
A25: Hazardous waste annual inspections | C25: 1451 | E25: 1492 | G25: 1450 | I25: 1450 | K25: 1450
A27: PERSONNEL DATA
A28: Position Data
A29: Filled positions by funding source
A30: Federal | C30: 18 | E30: 18 | G30: 19 | I30: 19 | K30: 19
A31: All other | C31: 267 | E31: 263 | G31: 270 | I31: 255 | K31: 270
A32: Total positions | C32: 285 | E32: =SUM(E30:E31) -> 281 | G32: 289 | I32: =SUM(I30:I31) -> 274 | K32: =SUM(K30:K31) -> 289
A33: Filled positions by program class
A34: Air Pollution Control | C34: 61 | E34: 58 | G34: 58 | I34: 56 | K34: 58
A35: Pesticide Control | C35: 34 | E35: 31 | G35: 34 | I35: 32 | K35: 34
A36: Water Pollution Control | C36: 79 | E36: 81 | G36: 80 | I36: 76 | K36: 80
A37: Land Use Regulation | C37: 23 | E37: 24 | G37: 27 | I37: 22 | K37: 27
A38: Solid and Hazardous Waste Management | C38: 72 | E38: 73 | G38: 75 | I38: 75 | K38: 75
A39: Environmental Management and Preservation - CBT Dedication | C39: 16 | E39: 14 | G39: 15 | I39: 13 | K39: 15
A40: Total positions | C40: 285 | E40: =SUM(E34:E39) -> 281 | G40: 289 | I40: =SUM(I34:I39) -> 274 | K40: =SUM(K34:K39) -> 289
A43: Notes:
A44: Actual payroll counts are reported for fiscal years 2014 and 2015 as of December and revised fiscal 2016 as of January. The budget estimate for fiscal 2017 reflects the number of positions funded.

Sheet 46-21
A1: Fiscal Year: | B1: 2017
A2: Fund Category: | B2: DSS | C2: Direct State Services
A3: Department: | B3: 46 | C3: Department Of Health And Senior Services
A4: Statewide Program: | B4: 21 | C4: Health Services
A5: Organization:
A6: Number of Columns: | B6: 4
K7: Budget | M7: Budget
C8: Actual | D8: F | E8: Actual | F8: F | G8: Budgeted | H8: F | I8: Revised | J8: F | K8: Estimate | L8: F | M8: Estimate | N8: F
C9: ="FY " & FiscalYear - 3 -> FY 2014 | D9: N | E9: ="FY " & FiscalYear - 2 -> FY 2015 | F9: N | G9: ="FY " & FiscalYear - 1 -> FY 2016 | H9: N | I9: ="FY " & FiscalYear - 1 -> FY 2016 | J9: N | K9: ="FY " & FiscalYear -> FY 2017 | L9: N | M9: ="FY " & FiscalYear + 1 -> FY 2018 | N9: N
A10: PROGRAM DATA
A11: Vital Statistics
A12: Searches | C12: 89878 | E12: 90245 | G12: 107090 | I12: 90000 | K12: 90000
A13: Certified copies issued | C13: 224696 | E13: 282227 | G13: 274603 | I13: 280000 | K13: 280000
A14: Family Health Services
A15: Agencies receiving health services grants | C15: 628 | E15: 628 | G15: 625 | I15: 628 | K15: 628
A16: Handicapped children
A17: Physically disabled children receiving services | C17: 62929 | E17: 62800 | G17: 56500 | I17: 62850 | K17: 62900
A18: Children newly registered with Special Child Health Services | C18: 8449 | E18: 9355 | G18: 8000 | I18: 9400 | K18: 9400
A19: Maternal and Child Health
A20: Infant mortality rate/1,000 live births | C20: 5 | E20: 4.9 | G20: 4.9 | I20: 4.8 | K20: 4.7
A21: Infant born to mothers with no prenatal care/1,000 live
A22: births | C22: 11 | E22: 11 | G22: 11 | I22: 11 | K22: 11
A23: Newborns screened for metabolic and genetic disorders | C23: 99628 | E23: 99700 | G23: 99500 | I23: 99750 | K23: 99800
A24: Number of infants to be followed | C24: 5778 | E24: 6293 | G24: 6023 | I24: 6400 | K24: 6900
A25: Number of infants in early intervention | C25: 22552 | E25: 24681 | G25: 21280 | I25: 26520 | K25: 28359
A26: Women assessed for alcohol use during pregnancy | C26: 35120 | E26: 35852 | G26: 37000 | I26: 36500 | K26: 37500
A27: Women, Infants, and Children (WIC) receiving services | C27: 283921 | E27: 281651 | G27: 294000 | I27: 282000 | K27: 282000
A28: Family Planning
A29: Women in reproductive years applying for and receiving services | C29: 84071 | E29: 75000 | G29: 86000 | I29: 73000 | K29: 73000
A30: Poison Control
A31: Children screened for lead poisoning | C31: 205606 | E31: 206221 | G31: 370000 | I31: 206000 | K31: 206000
A32: Number of lead-poisoned children identified | C32: 837 | E32: 989 | G32: 1600 | I32: 990 | K32: 990
A33: Adult Health
A34: Adults served with Cystic Fibrosis | C34: 140 | E34: 146 | G34: 149 | I34: 152 | K34: 155
A35: Health Promotion
A36: Breast and/or cervical cancer screenings under New Jersey Cancer Education & Early Detection Program | C36: 24159 | E36: 19828 | G36: 24700 | I36: 21000 | K36: 21000
A37: Number of renal patients served | C37: 1840 | E37: 2000 | G37: 1924 | I37: 2000 | K37: 2000
A38: Public Health Protection Services
A39: Cancer and Epidemiological Services
A40: Number of new cancer cases reported | C40: 66034 | E40: 46361 | G40: 110000 | I40: 58037 | K40: 69644
A41: Number of cumulative cancer reports in master file | C41: 1704669 | E41: 2390730 | G41: 2465148 | I41: 2814730 | K41: 3189730
A42: Tuberculosis (TB) Control
A43: TB cases on register as of June 30 | C43: 325 | E43: 325 | G43: 325 | I43: 325 | K43: 320
A44: Visits to chest clinics | C44: 26000 | E44: 26000 | G44: 26000 | I44: 26000 | K44: 25500
A45: Percent of TB patients completing chemotherapy | C45: 0.87 | E45: 0.87 | G45: 0.87 | I45: 0.87 | K45: 0.87
A46: Emergency Medical Services
A47: Mobile intensive care paramedics certified/recertified | C47: 797 | E47: 850 | G47: 900 | I47: 800 | K47: 820
A48: Emergency Medical Technicians (EMT) certified/recertified | C48: 3188 | E48: 3500 | G48: 8500 | I48: 9250 | K48: 9400
A49: Helicopter response missions | C49: 3760 | E49: 3910 | G49: 3800 | I49: 3350 | K49: 3350
A50: Mobile intensive care unit's patient charts audited | C50: 1000 | E50: 1000 | G50: 1000 | I50: 1000 | K50: 1000
A51: Ambulance/invalid services licensed | C51: 539 | E51: 550 | G51: 500 | I51: 600 | K51: 625
A52: Ambulance/invalid vehicles licensed | C52: 4272 | E52: 3812 | G52: 3900 | I52: 4200 | K52: 5000
A53: EMT training agencies certified | C53: 45 | E53: 45 | G53: 145 | I53: 45 | K53: 45
A54: Sexually Transmitted Diseases (STD)
A55: Percent of STD clinic patients receiving education about HIV infection | C55: 0.9 | E55: 0.9 | G55: 0.9 | I55: 0.9 | K55: 0.9
A56: Reported cases of early syphilis | C56: 839 | E56: 986 | G56: 622 | I56: 986 | K56: 950
A57: Reported treatment for early syphilis cases | C57: 804 | E57: 928 | G57: 915 | I57: 930 | K57: 900
A58: Reported cases of gonorrhea | C58: 6774 | E58: 6229 | G58: 9200 | I58: 6229 | K58: 6000
A59: Reported treatment for gonorrhea cases | C59: 4255 | E59: 4980 | G59: 2937 | I59: 5000 | K59: 5000
A60: Reported cases of chlamydia | C60: 29058 | E60: 28811 | G60: 16500 | I60: 29000 | K60: 29000
A61: Reported treatment for chlamydia cases | C61: 13466 | E61: 18412 | G61: 8897 | I61: 18000 | K61: 19000
A62: Visits to STD clinics | C62: 12483 | E62: 12796 | I62: 13000 | K62: 13000
A63: Consumer Health
A64: Pet spay/neuter surgeries performed | C64: 4357 | E64: 4350 | G64: 4100 | I64: 4380 | K64: 4380
A65: Registration of dogs (rabies control) | C65: 445625 | E65: 389658 | G65: 490000 | I65: 400000 | K65: 400000
A66: Environmental and sanitary inspections and investigations conducted | C66: 3248 | E66: 3252 | G66: 3241 | I66: 3260 | K66: 3260
A67: Number of food, drug and cosmetic embargoes, destructions and recalls | C67: 75 | E67: 75 | G67: 75 | I67: 75 | K67: 75
A68: Other Communicable Disease Control
A69: Number of disease cases reported | C69: 52805 | E69: 47555 | G69: 46700 | I69: 48000 | K69: 48000
A70: Number of investigations of outbreaks | C70: 272 | E70: 377 | G70: 300 | I70: 400 | K70: 400
A71: Levels of protection for children entering school against:
A72: Rubella | C72: 0.97 | E72: 0.93 | G72: 0.98 | I72: 0.93 | K72: 0.93
A73: Measles | C73: 0.97 | E73: 0.93 | G73: 0.98 | I73: 0.93 | K73: 0.93
A74: Mumps | C74: 0.97 | E74: 0.93 | G74: 0.98 | I74: 0.93 | K74: 0.93
A75: Polio | C75: 0.97 | E75: 0.93 | G75: 0.98 | I75: 0.93 | K75: 0.93
A76: Diphtheria | C76: 0.97 | E76: 0.93 | G76: 0.98 | I76: 0.93 | K76: 0.93
A77: Infectious disease consultations | C77: 163674 | E77: 152379 | G77: 145500 | I77: 155000 | K77: 155000
A78: Non-outbreak investigations | C78: 1475 | E78: 2861 | G78: 1500 | I78: 3000 | K78: 3000
A79: Public Employees Occupational Safety and Health
A80: Complaint inspections conducted | C80: 226 | E80: 226 | G80: 175 | I80: 230 | K80: 230
A81: Telephone consultations | C81: 391 | E81: 389 | G81: 375 | I81: 390 | K81: 390
A82: Educational seminars presented | C82: 42 | E82: 45 | G82: 50 | I82: 49 | K82: 50
A83: Right to Know
A84: Fact sheets written or revised | C84: 0 | E84: 25 | G84: 50 | I84: 30 | K84: 30
A85: Public and private workplaces inspected | C85: 189 | E85: 321 | G85: 230 | I85: 325 | K85: 324
A86: Telephone consultations | C86: 3253 | E86: 3265 | G86: 2928 | I86: 3270 | K86: 3270
A87: Occupational Health Surveillance
A88: Exposure and illness reports received | C88: 1539 | E88: 1546 | G88: 2315 | I88: 1600 | K88: 1600
A89: Educational materials mailed to public | C89: 2598 | E89: 2200 | G89: 511 | I89: 2000 | K89: 2000
A90: In-depth industrial hygiene evaluations | C90: 17 | E90: 18 | G90: 11 | I90: 15 | K90: 15
A91: Worker interviews and mailings | C91: 78 | E91: 82 | G91: 109 | I91: 110 | K91: 110
A92: Environmental Health Services
A93: Certification of private training agencies | C93: 24 | E93: 24 | G93: 25 | I93: 24 | K93: 24
A94: Audits of asbestos and lead training agencies | C94: 52 | E94: 53 | G94: 25 | I94: 55 | K94: 58
A95: Quality assurance inspections in schools | C95: 63 | E95: 50 | G95: 69 | I95: 51 | K95: 55
A96: Major community health field study ongoing | C96: 18 | E96: 21 | G96: 18 | I96: 21 | K96: 21
A97: Telephone consultations | C97: 4203 | E97: 4225 | G97: 3520 | I97: 4250 | K97: 4300
A98: Responses to acute environmental emergencies | C98: 3 | E98: 2 | G98: 22 | I98: 2 | K98: 2
A99: Consultations provided to other agencies and to the public | C99: 14 | E99: 34 | G99: 34 | I99: 35 | K99: 35
A100: Laboratory Services
A101: Public Health Laboratory Services
A102: Microbiology | C102: 68762 | E102: 55812 | G102: 90000 | I102: 55104 | K102: 55000
A103: Automated assays (a) | C103: 169594 | E103: 138601 | G103: 180000 | I103: 0 | K103: 0
A104: Virology | C104: 13932 | E104: 16082 | G104: 18000 | I104: 16000 | K104: 16000
A105: Newborn screening | C105: 120058 | E105: 120243 | G105: 119000 | I105: 120000 | K105: 120000
A106: Environmental and Chemical Laboratory Services
A107: Organics, inorganics, radiochemistry, microbiology & chemical terrorism samples analyzed | C107: 4067 | E107: 4039 | G107: 6000 | I107: 6000 | K107: 6000
A108: Clinical Laboratory Services
A109: Clinical laboratories licensed | C109: 1149 | E109: 1255 | G109: 950 | I109: 1300 | K109: 1300
A110: Laboratory collection stations licensed | C110: 2548 | E110: 2964 | G110: 2400 | I110: 2900 | K110: 2900
A111: Clinical Laboratory Improvement Amendments (CLIA) inspections | C111: 528 | E111: 554 | G111: 525 | I111: 552 | K111: 555
A112: Blood bank licensing inspections | C112: 77 | E112: 69 | G112: 100 | I112: 70 | K112: 72
A113: AIDS Services
A114: Number of clients tested and counseled | C114: 95359 | E114: 91966 | G114: 95000 | I114: 95000 | K114: 94000
A115: Contact tracing of individuals | C115: 614 | E115: 616 | G115: 500 | I115: 650 | K115: 700
A116: Hotline network calls | C116: 4224 | E116: 2908 | G116: 2400 | I116: 3200 | K116: 3200
A117: Clients living with HIV/AIDS | C117: 38558 | E117: 38949 | G117: 42210 | I117: 39456 | K117: 39963
A118: AIDS Drug Distribution Program clients served | C118: 6947 | E118: 6159 | G118: 4500 | I118: 5700 | K118: 5700
A120: PERSONNEL DATA
A121: Position Data
A122: Filled positions by funding source
A123: State supported | C123: 202 | E123: 193 | G123: 201 | I123: 185 | K123: 195
A124: Federal | C124: 395 | E124: 374 | G124: 384 | I124: 330 | K124: 355
A125: All other | C125: 105 | E125: 103 | G125: 108 | I125: 101 | K125: 101
A126: Total positions | C126: =SUM(C123:C125) -> 702 | E126: =SUM(E123:E125) -> 670 | G126: =SUM(G123:G125) -> 693 | H126: =SUM(H123:H125) -> 0 | I126: =SUM(I123:I125) -> 616 | K126: =SUM(K123:K125) -> 651
A127: Filled positions by program class
A128: Vital Statistics | C128: 31 | E128: 37 | G128: 37 | I128: 35 | K128: 36
A129: Family Health Services | C129: 156 | E129: 157 | G129: 158 | I129: 145 | K129: 148
A130: Public Health Protection Services | C130: 343 | E130: 317 | G130: 321 | I130: 288 | K130: 302
A131: Laboratory Services | C131: 89 | E131: 83 | G131: 87 | I131: 75 | K131: 83
A132: AIDS Services | C132: 83 | E132: 76 | G132: 90 | I132: 73 | K132: 82
A133: Total positions | C133: =SUM(C128:C132) -> 702 | E133: =E128+E129+E130+E131+E132 -> 670 | G133: =G128+G129+G130+G131+G132 -> 693 | H133: =H128+H129+H130+H131+H132 -> 0 | I133: =I128+I129+I130+I131+I132 -> 616 | K133: =SUM(K128:K132) -> 651
A136: Notes:
A137: Actual payroll counts are reported for fiscal years 2014 and 2015 as of December and revised fiscal 2016 as of January. The budget estimate for fiscal 2017 reflects the number of positions funded.
A138: (a) Drug screen testing has been discontinued beginning fiscal 2016.

Sheet 46-22
A1: Fiscal Year: | B1: 2017
A2: Fund Category: | B2: DSS | C2: Direct State Services
A3: Department: | B3: 46 | C3: Department Of Health And Senior Services
A4: Statewide Program: | B4: 22 | C4: Health Planning and Evaluation
A5: Organization:
A6: Number of Columns: | B6: 4
K7: Budget | M7: Budget
C8: Actual | D8: F | E8: Actual | F8: F | G8: Budgeted | H8: F | I8: Revised | J8: F | K8: Estimate | L8: F | M8: Estimate | N8: F
C9: ="FY " & FiscalYear - 3 -> FY 2014 | D9: N | E9: ="FY " & FiscalYear - 2 -> FY 2015 | F9: N | G9: ="FY " & FiscalYear - 1 -> FY 2016 | H9: N | I9: ="FY " & FiscalYear - 1 -> FY 2016 | J9: N | K9: ="FY " & FiscalYear -> FY 2017 | L9: N | M9: ="FY " & FiscalYear + 1 -> FY 2018 | N9: N
A10: PROGRAM DATA
A11: Health Care Facility Regulation and Oversight
A12: Long-Term Care - licensed facilities | C12: 774 | E12: 779 | I12: 790 | K12: 795
A13: Licensed nursing home administrators | C13: 988 | E13: 1079 | I13: 1125 | K13: 1125
A14: Total long term care licenses issued | C14: 837 | E14: 945 | I14: 970 | K14: 975
A15: Number of beds licensed | C15: 87461 | E15: 88752 | I15: 90000 | K15: 91000
A16: Total inspections of long term care facilities | C16: 909 | E16: 935 | I16: 935 | K16: 935
A17: Total complaint investigations of long term care facilities | C17: 939 | E17: 836 | I17: 836 | K17: 836
A18: Total federally certified non-state licensed facilities | C18: 8 | E18: 6 | I18: 6 | K18: 6
A19: Total federally certified non-state licensed beds | C19: 2185 | E19: 1845 | I19: 1845 | K19: 1845
A20: Administrative actions/penalties of long term care facilities | C20: 31 | E20: 52 | I20: 50 | K20: 55
A21: Federal enforcement actions of long term care facilities | C21: 834 | E21: 467 | I21: 470 | K21: 475
A22: Nurse Aide applications processed | C22: 18836 | E22: 17380 | I22: 18070 | K22: 18070
A23: Acute Care - Licensed Facilities | C23: 1228 | E23: 1245 | I23: 1275 | K23: 1300
A24: Total inspections of acute care facilities | C24: 335 | E24: 374 | I24: 374 | K24: 374
A25: Total complaint investigations of acute care facilities | C25: 665 | E25: 560 | I25: 560 | K25: 560
A26: Total acute care license applications processed | C26: 1425 | E26: 1525 | I26: 1600 | K26: 1675
A27: Total acute care enforcement actions/penalties | C27: 26 | E27: 9 | I27: 26 | K27: 30
A28: Certificate of Need (CN) applications processed | C28: 41 | E28: 39 | I28: 40 | K28: 40
A29: Health Care Systems Analysis
A30: Hospital charity care audits | C30: 244 | E30: 223 | G30: 266 | I30: 245 | K30: 245
A31: Hospital utilization data
A32: Patient discharges | C32: 4600000 | E32: 4650000 | G32: 6400000 | I32: 4800000 | K32: 4850000
A33: Number of hospitals | C33: 72 | E33: 72 | G33: 73 | I33: 72 | K33: 72
A34: Hospital performance report - distribution | C34: 200 | E34: 200 | I34: 200 | K34: 200
A35: Cardiac surgery report - consumer | C35: 150 | E35: 100 | I35: 100 | K35: 100
A36: Hospital Funding
A37: Charity Care | C37: 675000000 | E37: 650000000 | G37: 502000000 | I37: 502000000 | K37: 352000000
A38: Graduate Medical Education | C38: 100000000 | E38: 100000000 | G38: 127300000 | I38: 127300000 | K38: 188000000
A39: Hospital Delivery System Reform Incentive Payments | C39: 166600000 | E39: 166600000 | G39: 166600000 | I39: 166600000 | K39: 166600000
A40: Hospital Mental Health Offset Payments (a) | C40: 24211619 | E40: 24413004 | G40: 24654000 | I40: 24654000 | K40: 24654000
A41: Total Funding | C41: 965811619 | E41: 941013004 | G41: 820554000 | I41: 820554000 | K41: 731254000
A43: PERSONNEL DATA
A44: Position Data
A45: Filled Positions by Funding Source
A46: State supported | C46: 79 | E46: 101 | G46: 102 | I46: 92 | K46: 92
A47: Federal | C47: 88 | E47: 78 | G47: 81 | I47: 76 | K47: 77
A48: All other | C48: 36 | E48: 38 | G48: 37 | I48: 30 | K48: 32
A49: Total Positions | C49: 203 | E49: 217 | G49: 220 | I49: 198 | K49: 201
A50: Filled Positions by Program Class
A51: Health Care Facility Regulation and Oversight | C51: 156 | E51: 162 | G51: 167 | I51: 150 | K51: 154
A52: Health Care Systems Analysis | C52: 47 | E52: 55 | G52: 53 | I52: 48 | K52: 47
A53: Total Positions | C53: 203 | E53: 217 | G53: 220 | I53: 198 | K53: 201
A56: Notes:
A57: Actual payroll counts are reported for fiscal years 2014 and 2015 as of December and revised fiscal year 2016 as of January. The Budget Estimate for fiscal year 2017 reflects the number of positions funded.
A58: (a) Hospital Mental Health Offset Payments are expended in the Department of Human Services.

Sheet 46-25
A1: Fiscal Year: | B1: 2017
A2: Fund Category: | B2: DSS | C2: Direct State Services
A3: Department: | B3: 46 | C3: Department Of Health
A4: Statewide Program: | B4: 25 | C4: Health Administration
A5: Organization:
A6: Number of Columns: | B6: 4
K7: Budget | M7: Budget
C8: Actual | D8: F | E8: Actual | F8: F | G8: Budgeted | H8: F | I8: Revised | J8: F | K8: Estimate | L8: F | M8: Estimate | N8: F
C9: ="FY " & FiscalYear - 3 -> FY 2014 | D9: N | E9: ="FY " & FiscalYear - 2 -> FY 2015 | F9: N | G9: ="FY " & FiscalYear - 1 -> FY 2016 | H9: N | I9: ="FY " & FiscalYear - 1 -> FY 2016 | J9: N | K9: ="FY " & FiscalYear -> FY 2017 | L9: N | M9: ="FY " & FiscalYear + 1 -> FY 2018 | N9: N
A10: PERSONNEL DATA
A11: Affirmative Action Data
A12: Male minority | C12: 106 | E12: 107 | I12: 103
A13: Male minority percentage | C13: 0.093 | E13: 0.094 | I13: 0.097
A14: Female minority | C14: 306 | E14: 304 | I14: 317
A15: Female minority percentage | C15: 0.267 | E15: 0.268 | I15: 0.298
A16: Total minority | C16: 412 | E16: 411 | I16: 420
A17: Total minority percentage | C17: 0.36 | E17: 0.363 | I17: 0.395
A19: Position Data
A20: Filled positions by funding source
A21: State supported | C21: 60 | E21: 64 | G21: 65 | I21: 64 | K21: 64
A22: Federal | C22: 5 | E22: 5 | G22: 4 | I22: 4 | K22: 4
A23: All other | C23: =52+47 -> 99 | E23: 106 | G23: 109 | I23: 111 | K23: 113
A24: Total positions | C24: =SUM(C21:C23) -> 164 | E24: =SUM(E21:E23) -> 175 | G24: =SUM(G21:G23) -> 178 | I24: =SUM(I21:I23) -> 179 | K24: 181
A25: Filled positions by program class
A26: Administration and Support Services | C26: 164 | E26: 175 | G26: 178 | I26: 179 | K26: 181
A27: Total positions | C27: =SUM(C26) -> 164 | E27: =SUM(E26) -> 175 | G27: =SUM(G26) -> 178 | I27: =SUM(I26) -> 179 | K27: 181
A29: Notes:
A30: Actual payroll counts are reported for fiscal years 2014 and 2015 as of December and revised fiscal 2016 as of January. The budget estimate for fiscal 2017 reflects the number of positions funded.

Sheet 54-23-7700
A1: Fiscal Year: | B1: 2017
A2: Fund Category: | B2: DSS | C2: Direct State Services
A3: Department: | B3: 54 | C3: Department Of Human Services
A4: Statewide Program: | B4: 23 | C4: Mental Health Services
A5: Organization: | B5: 7700 | C5: Division of Mental Health Services
A6: Number of Columns: | B6: 4
K7: Budget | M7: Budget
C8: Actual | D8: F | E8: Actual | F8: F | G8: Budgeted | H8: F | I8: Revised | J8: F | K8: Estimate | L8: F | M8: Estimate | N8: F
C9: ="FY " & FiscalYear - 3 -> FY 2014 | D9: N | E9: ="FY " & FiscalYear - 2 -> FY 2015 | F9: N | G9: ="FY " & FiscalYear - 1 -> FY 2016 | H9: N | I9: ="FY " & FiscalYear - 1 -> FY 2016 | J9: N | K9: ="FY " & FiscalYear -> FY 2017 | L9: N | M9: ="FY " & FiscalYear + 1 -> FY 2018 | N9: N
A10: OPERATING DATA
A11: Community Services
A12: Community Care Services
A13: Provider agencies | C13: 114 | E13: 120 | I13: 117 | K13: 115
A14: Contracts | C14: 150 | E14: 153 | I14: 130 | K14: 140
A15: Total cost to state (a) | C15: =C21+C25+C29+C33+C37+C41+C44+C48+C52+C59+C55+C63+C66+C70+C73+C77+C79 -> 349503000 | E15: =E21+E25+E29+E33+E37+E41+E44+E48+E52+E59+E55+E63+E66+E70+E73+E77+E79 -> 374828000 | G15: 370723000 | H15: 0 | I15: 370723000 | K15: 367705000
A16: Total clients served | C16: =C19+C23+C27+C31+C35+C39+C43+C46+C50+C54+C57+C61+C65+C68+C72+C75 -> 315755 | E16: =E19+E23+E27+E31+E35+E39+E43+E46+E50+E54+E57+E61+E65+E68+E72+E75 -> 334587 | G16: 298637.1586 | H16: 0 | I16: 335914 | K16: 335335
A17: Service programs:
A18: Emergency services
A19: Clients served | C19: 24553 | E19: 27178 | I19: 24643 | K19: 24643
A20: Contacts | C20: 84263 | E20: 97902 | G20: 84263 | I20: 88772 | K20: 88772
A21: Cost to state | C21: 6437097 | E21: 7037051 | G21: 6437097 | I21: 6380780 | K21: 6380780
A22: Early intervention and support services
A23: Clients served | C23: 8577 | E23: 11535 | G23: 8811.664416 | I23: 11650 | K23: 11650
A24: Contacts | C24: 45128.203 | E24: 60988 | G24: 46362.89851 | I24: 61598 | K24: 61598
A25: Cost to state | C25: 10783293 | E25: 12078270 | G25: 11078321 | I25: 11909204 | K25: 11909204
A26: Screening services
A27: Clients served | C27: 98500 | E27: 104327 | G27: 106709.027 | I27: 104327 | K27: 104327
A28: Contacts | C28: 520589.1899 | E28: 551388 | G28: 563975 | I28: 551388 | K28: 551388
A29: Cost to state | C29: 40614168 | E29: 43016977 | G29: 32489968 | I29: 32489968 | K29: 32489968
A30: Outpatient services
A31: Clients served | C31: 123371 | E31: 128496 | G31: 118284.3466 | I31: 131781 | K31: 131781
A32: Half hour units | C32: 1713282 | E32: 1806950 | G32: 1642642.452 | I32: 1853147 | K32: 1853147
A33: Cost to state | C33: 68742824 | E33: 65803020 | G33: 65908520 | I33: 67485346 | K33: 67485346
A34: Partial care
A35: Clients served | C35: 12353 | E35: 12947 | G35: 12523.97392 | I35: 13329 | K35: 13329
A36: Hour units | C36: 2609517 | E36: 2932225 | G36: 2645634.489 | I36: 3018849 | K36: 3018849
A37: Cost to state | C37: 20450802 | E37: 19485724 | G37: 20733855 | I37: 20061374 | K37: 20061374
A38: Residential
A39: Clients served | C39: 2462 | E39: 2981 | G39: 2462 | I39: 3075 | K39: 3075
A40: Occupied bed days | C40: 532528 | E40: 587539 | G40: 532528 | I40: 606008 | K40: 606008
A41: Cost to state | C41: 45493773 | E41: 46806710 | G41: 45493773 | I41: 48278031 | K41: 48278031
A42: Short term care facilities
A43: Contracted beds | C43: 83 | E43: 83 | G43: 83 | I43: 83 | K43: 83
A44: Cost to state (b) | C44: 2143448.994 | E44: 2244143 | G44: 2244142.701 | I44: 2289026 | K44: 2289026
A45: Supported housing
A46: Clients served | C46: 5545 | E46: 7405 | G46: 7580.290252 | I46: 7580 | K46: 7358
A47: Fifteen minute units | C47: 1822312.946 | E47: 2433736 | G47: 2491192.256 | I47: 2491192 | K47: 2418049
A48: Cost to state | C48: 77847683 | E48: 103967147 | G48: 106421647 | I48: 106421647 | K48: 103297017
A49: Supported employment
A50: Clients served | C50: 2230 | E50: 1868 | G50: 2340.930364 | I50: 1868 | K50: 1868
A51: Hours | C51: 59104.05 | E51: 49510 | G51: 62044.15483 | I51: 49510 | K51: 49510
A52: Cost to state | C52: 3677347 | E52: 4092676 | G52: 3860275 | I52: 4034998 | K52: 4034998
A53: Self-help centers
A54: Clients served | C54: 8653 | E54: 9864 | G54: 8646.071185 | I54: 9723 | K54: 9723
A55: Cost to state | C55: 6195509 | E55: 6358713 | G55: 6190548 | I55: 6267581 | K55: 6267581
A56: Integrated case management
A57: Clients served | C57: 10839 | E57: 9755 | G57: 10648.85841 | I57: 9863 | K57: 9350
A58: Hour units | C58: 657433 | E58: 660384 | G58: 645900.0764 | I58: 667694 | K58: 632990
A59: Cost to state | C59: 20333529 | E59: 20018810 | G59: 19976831 | I59: 20240390 | K59: 19188390
A60: Projects for Assistance in Transition from Homelessness (PATH)
A61: Clients served | C61: 2111 | E61: 1538 | G61: 4021.452089 | I61: 1636 | K61: 1636
A62: Contacts | C62: 102093 | E62: 74372 | G62: 194487.0242 | I62: 79135 | K62: 79135
A63: Cost to state | C63: 2262704 | E63: 1648310 | G63: 4310448 | I63: 1753891 | K63: 1753891
A64: Program for Assertive Community Treatment (PACT)
A65: Clients served | C65: 2366 | E65: 2400 | G65: 2400 | I65: 2334 | K65: 2490
A66: Cost to state | C66: 16651879 | E66: 17838047 | G66: 17732173 | I66: 17345969 | K66: 18504599
A67: Justice involved services
A68: Clients served | C68: 1292 | E68: 1105 | G68: 1289.186993 | I68: 1141 | K68: 1141
A69: Fifteen minute units | C69: 75692 | E69: 76041 | G69: 75527.19957 | I69: 78508 | K69: 78508
A70: Cost to state | C70: 3653691 | E70: 3670529 | G70: 3645736 | I70: 3789633 | K70: 3789633
A71: Legal services
A72: Clients served | C72: 2853 | E72: 3061 | G72: 2912.20842 | I72: 2746 | K72: 2746
A73: Cost to state | C73: 3868831 | E73: 4004753 | G73: 3949121 | I73: 3592982 | K73: 3592982
A74: Intensive family support services
A75: Clients served | C75: 9967 | E75: 10044 | G75: 9924.148952 | I75: 10135 | K75: 10135
A76: Contact hours | C76: 57965 | E76: 59140 | G76: 57715.79151 | I76: 59677 | K76: 59677
A77: Cost to state | C77: 4614015 | E77: 4632982 | G77: 4594178 | I77: 4675022 | K77: 4675022
A78: Non-client specific programs
A79: Cost to state | C79: 15732406.01 | E79: 12124138 | G79: 15656366.3 | I79: 13707158 | K79: 13707158
A81: Total, state billable average daily population, county psychiatric hospitals | C81: =SUM(C82:C88) -> 668.509589 | E81: =SUM(E82:E88) -> 522 | G81: =SUM(G82:G88) -> 519.4136986 | H81: =SUM(H82:H88) -> 0 | I81: =SUM(I82:I88) -> 524 | K81: =SUM(K82:K88) -> 523 | M81: 522 | N81: 522
A82: Bergen acute units (c) | C82: 54.35616438 | E82: 54 | G82: 54.66849315 | I82: 61 | K82: 62
A83: Bergen other | C83: 181.3369863 | E83: 178 | G83: 174.3068493 | I83: 173 | K83: 171
C84: 0 | G84: 0
A85: Camden (d) | C85: 141.0219178 | E85: 0 | G85: 0 | I85: 0 | K85: 0
A86: Essex | C86: 171.4931507 | E86: 170 | G86: 171.2054795 | I86: 170 | K86: 170
A87: Hudson | C87: 76.81369863 | E87: 79 | G87: 76.52328767 | I87: 79 | K87: 79
A88: Union | C88: 43.48767123 | E88: 41 | G88: 42.70958904 | I88: 41 | K88: 41
A89: Addiction Services (e)
A90: Admissions | G90: 14452
A91: By Level of care: | G91: 39582
A92: Ambulatory | C92: 45439 | E92: 48082 | G92: 6836 | I92: 48630 | K92: 48630
A93: Residential | C93: 12448 | E93: 12044 | G93: 11031 | I93: 12384 | K93: 12384
A94: Detox | C94: 7893 | E94: 7656 | G94: 46138 | I94: 6918 | K94: 6918
A95: Other | C95: 1167 | E95: 928 | G95: 1457 | I95: 452 | K95: 452
A96: Total | C96: =SUM(C92:C95) -> 66947 | E96: =SUM(E92:E95) -> 68710 | G96: =SUM(G92:G95) -> 65462 | H96: =SUM(H92:H95) -> 0 | I96: =SUM(I92:I95) -> 68384 | K96: =SUM(K92:K95) -> 68384
A97: By Primary drug: | G97: 39582
A98: Alcohol | C98: 17666 | E98: 16387 | G98: 6836 | I98: 18710 | K98: 18710
A99: Heroin | C99: 23855 | E99: 25950 | G99: 11031 | I99: 28574 | K99: 28574
A100: Other opiate | C100: 5259 | E100: 4699 | G100: 46138 | I100: 5002 | K100: 5002
A101: Other drugs | C101: 15210 | E101: 15154 | G101: 1457 | I101: 15308 | K101: 15308
A102: Unknown (f) | C102: 4957 | E102: 6520 | I102: 790 | K102: 790
A103: Total | C103: =SUM(C98:C102) -> 66947 | E103: =SUM(E98:E102) -> 68710 | G103: =SUM(G98:G102) -> 65462 | H103: =SUM(H98:H102) -> 0 | I103: =SUM(I98:I102) -> 68384 | K103: =SUM(K98:K102) -> 68384
A104: Clients served | G104: 175
A105: By Level of care: | G105: 39582
A106: Ambulatory | C106: 70865 | E106: 72855 | G106: 6836 | I106: 75831 | K106: 75831
A107: Residential | C107: 12817 | E107: 12395 | G107: 11031 | I107: 12743 | K107: 12743
A108: Detox | C108: 8556 | E108: 8141 | G108: 46138 | I108: 7389 | K108: 7389
A109: Other | C109: 2767 | E109: 2415 | G109: 1457 | I109: 2075 | K109: 2075
A110: By Primary drug: | G110: 39582
A111: Alcohol | C111: 25660 | E111: 23873 | G111: 6836 | I111: 25527 | K111: 25527
A112: Heroin | C112: 30041 | E112: 31446 | G112: 11031 | I112: 34090 | K112: 34090
A113: Other opiate | C113: 7627 | E113: 7089 | G113: 46138 | I113: 7242 | K113: 7242
A114: Other drugs | C114: 21223 | E114: 21084 | G114: 1457 | I114: 21816 | K114: 21816
A115: Unknown (f) | C115: 6167 | E115: 8308 | G115: 83 | I115: 4909 | K115: 4909
A117: Total unique clients served | C117: 84911 | E117: 86058 | G117: =SUM(G111:G115) -> 65545 | H117: =SUM(H111:H115) -> 0 | I117: 87371 | K117: 87371
G118: 175
A119: PERSONNEL DATA
A120: Position Data
A121: Filled positions by funding source
A122: State supported | C122: 133 | E122: 128 | I122: 136 | K122: 138
A123: Federal | C123: 63 | E123: 61 | I123: 55 | K123: 58
A124: All other | C124: 21 | E124: 20 | I124: 18 | K124: 21
A125: Total positions | C125: =SUM(C122:C124) -> 217 | E125: =SUM(E122:E124) -> 209 | G125: =SUM(G122:G124) -> 0 | H125: =SUM(H122:H124) -> 0 | I125: =SUM(I122:I124) -> 209 | K125: =SUM(K122:K124) -> 217 | M125: =SUM(M122:M124) -> 0 | N125: =SUM(N122:N124) -> 0
A126: Filled positions by program class
A127: Community Services | C127: 1 | E127: 1 | I127: 1 | K127: 1
A128: Addiction Services | C128: 94 | E128: 82 | I128: 76 | K128: 78
A129: Administration and Support Services | C129: 122 | E129: 126 | I129: 132 | K129: 138
A130: Total positions | C130: =SUM(C127:C129) -> 217 | E130: =SUM(E127:E129) -> 209 | G130: =SUM(G127:G129) -> 0 | H130: =SUM(H127:H129) -> 0 | I130: =SUM(I127:I129) -> 209 | K130: =SUM(K127:K129) -> 217 | M130: =SUM(M127:M129) -> 0 | N130: =SUM(N127:N129) -> 0
A132: Notes:
A133: Actual payroll counts are reported for fiscal years 2014 and 2015 as of December and revised fiscal 2016 as of January. The budget estimate for fiscal 2017 reflects the number of positions funded.
A134: In fiscal 2017, the DMHAS expects to transition the majority of its mental health and addiction services to a fee-for-service reimbursement structure from the current contract-based approach; however, fiscal 2017 evaluation data assumes the same utilization projection methodology as fiscal 2016.
A135: (a) "Cost to State" refers only to the State portion of the costs in each program incurred by the Community Care and Olmstead Support Services accounts. Additional funds for these programs are available from other divisions and funding sources and the mix of State and other funding sources is subject to change from year to year.
A136: (b) These funds are transferred to the Department of Health.
A137: (c) Bergen County Hospital has several acute units including a licensed short term care facility unit (STCF) which none of the other county hospitals have. The acute units were separated from all other units in this data to allow a more accurate comparison across hospitals.
A138: (d) Camden County has privatized its county psychiatric hospital as of the end of fiscal 2014. Community-based inpatient beds are being procured to replace the capacity formerly provided by Camden.
A139: (e) Data related to Addictions Services have been restated for all years to reflect a revised, summary level breakdown of services by level of care and primary drug.
A140: (f) Beginning in fiscal 2016, reporting of primary drug was made mandatory at admission; therefore, the unknown category is reduced.

Sheet 54-23
A1: Fiscal Year: | B1: 2017
A2: Fund Category: | B2: DSS | C2: Direct State Services
A3: Department: | B3: 54 | C3: Department Of Human Services
A4: Statewide Program: | B4: 23 | C4: Mental Health Services
A5: Organization:
A6: Number of Columns: | B6: 4
K7: Budget | M7: Budget
C8: Actual | D8: F | E8: Actual | F8: F | G8: Budgeted | H8: F | I8: Revised | J8: F | K8: Estimate | L8: F | M8: Estimate | N8: F
C9: ="FY " & FiscalYear - 3 -> FY 2014 | D9: N | E9: ="FY " & FiscalYear - 2 -> FY 2015 | F9: N | G9: ="FY " & FiscalYear - 1 -> FY 2016 | H9: N | I9: ="FY " & FiscalYear - 1 -> FY 2016 | J9: N | K9: ="FY " & FiscalYear -> FY 2017 | L9: N | M9: ="FY " & FiscalYear + 1 -> FY 2018 | N9: N
A10: OPERATING DATA
A11: Patient Care and Health Services
A12: Greystone Park Psychiatric Hospital
A13: Average daily population | C13: 543 | E13: 545 | G13: 534 | I13: 547 | K13: 548
A14: Total admissions | C14: 583 | E14: 569 | G14: 708 | I14: 544 | K14: 542
A15: Readmissions | C15: 330 | E15: 292 | G15: 401 | I15: 279 | K15: 278
A16: All other admissions, including transfers | C16: 253 | E16: 277 | G16: 307.25 | I16: 265 | K16: 264
A17: Total terminations, including transfers | C17: 574 | E17: 575 | G17: 692 | I17: 546 | K17: 559
A18: Ratio: population/total positions | C18: 0.4 / 1 | E18: 0.4 / 1 | G18: 0.4 / 1 | I18: 0.4 / 1 | K18: 0.4 / 1
A19: Annual per capita | C19: 195242 | E19: 207002 | G19: 199045 | I19: 203717 | K19: 204850
A20: Daily per capita | C20: 534.91 | E20: =E19/365 -> 567.1287671 | G20: =G19/365 -> 545.3287671 | I20: =I19/365 -> 558.1287671 | K20: =K19/365 -> 561.2328767
A21: Trenton Psychiatric Hospital
A22: Average daily population | C22: 426 | E22: 432 | G22: 413 | I22: 431 | K22: 434
A23: Total admissions | C23: 696 | E23: 708 | G23: 778 | I23: 720 | K23: 723
A24: Readmissions | C24: 418 | E24: 419 | G24: 467.25 | I24: 426 | K24: 428
A25: All other admissions, including transfers | C25: 278 | E25: 289 | G25: 310.75 | I25: 294 | K25: 295
A26: Total terminations, including transfers | C26: 687 | E26: 724 | G26: 805 | I26: 728 | K26: 745
A27: Ratio: Population/total positions | C27: 0.4 / 1 | E27: 0.4 / 1 | G27: 0.4 / 1 | I27: 0.4 / 1 | K27: 0.4 / 1
A28: Annual per capita | C28: 198750 | E28: 207616 | G28: 207022 | I28: 207074 | K28: 207498
A29: Daily per capita | C29: =C28/365 -> 544.5205479 | E29: =E28/365 -> 568.8109589 | G29: =G28/365 -> 567.1835616 | I29: =I28/365 -> 567.3260274 | K29: =K28/365 -> 568.4876712
A30: Ann Klein Forensic Center
A31: Average daily population | C31: 197 | E31: 200 | G31: 197 | I31: 200 | K31: 200
A32: Total admissions | C32: 218 | E32: 207 | G32: 170 | I32: 166 | K32: 136
A33: Readmissions | C33: 83 | E33: 86 | G33: 64.72 | I33: 69 | K33: 57
A34: All other admissions, including transfers | C34: 135 | E34: 121 | G34: 105.28 | I34: 97 | K34: 79
A35: Total terminations, including transfers | C35: 218 | E35: 207 | G35: 164 | I35: 162 | K35: 128
A36: Ratio: population/total positions | C36: 0.5 / 1 | E36: 0.5 / 1 | G36: 0.5 / 1 | I36: 0.5 / 1 | K36: 0.4/1
A37: Annual per capita | C37: 210173 | E37: 222420 | G37: 206680 | I37: 222550 | K37: 226300
A38: Daily per capita | C38: =C37/365 -> 575.8164384 | E38: =E37/365 -> 609.369863 | G38: =G37/365 -> 566.2465753 | I38: =I37/365 -> 609.7260274 | K38: =K37/365 -> 620
A39: Ancora Psychiatric Hospital
A40: Average daily population | C40: 470 | E40: 442 | G40: 443 | I40: 421 | K40: 396
A41: Total admissions | C41: 787 | E41: 737 | G41: 909 | I41: 803 | K41: 775
A42: Readmissions | C42: 498 | E42: 465 | G42: 575.2 | I42: 507 | K42: 489
A43: All other admissions, including transfers | C43: 289 | E43: 272 | G43: 333.8 | I43: 296 | K43: 286
A44: Total terminations, including transfers | C44: 776 | E44: 763 | G44: 902 | I44: 850 | K44: 858
A45: Ratio: population/total positions | C45: 0.4 / 1 | E45: 0.4 / 1 | G45: 0.4 / 1 | I45: 0.3 / 1 | K45: 0.3 / 1
A46: Annual per capita | C46: 228149 | E46: 247561 | G46: 241492 | I46: 257140 | K46: 276028
A47: Daily per capita | C47: =C46/365 -> 625.0657534 | E47: =E46/365 -> 678.2493151 | G47: =G46/365 -> 661.6219178 | I47: =I46/365 -> 704.4931507 | K47: =K46/365 -> 756.2410959
A49: PERSONNEL DATA
A50: Position Data
A51: Greystone Park Psychiatric Hospital
A52: Filled positions by Funding Source
A53: State Supported
A54: All Other
A55: Total Positions
A56: Filled Positions by Program Class
A57: Patient Care and Health Services
A58: Administration and Support Services
A59: Total Positions
A60: Trenton Psychiatric Hospital
A61: Filled positions by Funding Source
A62: State Supported
A63: All Other
A64: Total Positions
A65: Filled Positions by Program Class
A66: Patient Care and Health Services
A67: Administration and Support Services
A68: Total Positions
A69: Ann Klein Forensic Center
A70: Filled positions by Funding Source
A71: State Supported
A72: All Other
A73: Total Positions
A74: Filled Positions by Program Class
A75: Patient Care and Health Services
A76: Administration and Support Services
A77: Total Positions
A78: Ancora Psychiatric Hospital
A79: Filled positions by Funding Source
A80: State Supported
A81: All Other
A82: Total Positions
A83: Filled Positions by Program Class
A84: Patient Care and Health Services
A85: Administration and Support Services
A86: Total Positions
A87: Arthur Brisbane Child Treatment Center
A88: Filled positions by Funding Source
A89: State Supported
A90: All Other
A91: Total Positions
A92: Filled Positions by Program Class
A93: Patient Care and Health Services
A94: Administration and Support Services
A95: Total Positions
A96: Senator Garrett W. Hagedorn Gero-Psychiatric Hospital
A97: Filled positions by Funding Source
A98: State Supported
A99: All Other
A100: Total Positions
A101: Filled Positions by Program Class
A102: Patient Care and Health Services
A103: Administration and Support Services
A104: Total Positions
A106: Institutional Total
A107: Filled positions by funding source
A108: State supported | C108: 4035 | E108: 3955 | G108: 3943 | I108: 4063 | K108: 4217
A109: All other | C109: 8 | E109: 8 | G109: 11 | I109: 10 | K109: 11
A110: Total positions | C110: =SUM(C108:C109) -> 4043 | E110: =SUM(E108:E109) -> 3963 | G110: =SUM(G108:G109) -> 3954 | I110: =SUM(I108:I109) -> 4073 | K110: =SUM(K108:K109) -> 4228
A111: Filled positions by program class
A112: Patient Care and Health Services | C112: 3249 | E112: 3195 | G112: 3204 | I112: 3324 | K112: 3463
A113: Administration and Support Services | C113: 794 | E113: 768 | G113: 750 | I113: 749 | K113: 765
A114: Total positions | C114: =SUM(C112:C113) -> 4043 | E114: =SUM(E112:E113) -> 3963 | G114: =SUM(G112:G113) -> 3954 | I114: =SUM(I112:I113) -> 4073 | K114: =SUM(K112:K113) -> 4228
A117: Notes:
A118: Actual payroll counts are reported for fiscal years 2014 and 2015 as of December and revised fiscal 2016 as of January. The budget estimate for fiscal 2017 reflects the number of positions funded.

Sheet 54-24-7540
A1: Fiscal Year: | B1: 2017
A2: Fund Category: | B2: DSS | C2: Direct State Services
A3: Department: | B3: 54 | C3: Department Of Human Services
A4: Statewide Program: | B4: 24 | C4: Special Health Services
A5: Organization: | B5: 7540 | C5: Division of Medical Assistance and Health Services
A6: Number of Columns: | B6: 4
K7: Budget | M7: Budget
C8: Actual | D8: F | E8: Actual | F8: F | G8: Budgeted | H8: F | I8: Revised | J8: F | K8: Estimate | L8: F | M8: Estimate | N8: F
C9: ="FY " & FiscalYear - 3 -> FY 2014 | D9: N | E9: ="FY " & FiscalYear - 2 -> FY 2015 | F9: N | G9: ="FY " & FiscalYear - 1 -> FY 2016 | H9: N | I9: ="FY " & FiscalYear - 1 -> FY 2016 | J9: N | K9: ="FY " & FiscalYear -> FY 2017 | L9: N | M9: ="FY " & FiscalYear + 1 -> FY 2018 | N9: N
A10: PROGRAM DATA
A11: Title XIX Eligibility Groups (50% Federal Matching Rate)
A12: Aged, Blind and Disabled (ABD) with Medicare
A13: Average monthly enrollment | C13: 143418 | E13: 144808.7779 | G13: 1797121.454 | I13: 146457.1059 | K13: 148669.3512
A14: Average cost/client/year | C14: 6670.377317 | E14: 6907.597804 | I14: 6462.532333 | K14: 6484.823116
A15: Total ABD dual eligible | C15: 956652174 | E15: 1000280796 | I15: 946483782.1 | K15: 964094445.3
G16: 127291.6481
A17: Aged, Blind and Disabled (ABD) without Medicare | G17: 497.82
A18: Average monthly enrollment | C18: 113574 | E18: 116863.0706 | I18: 116505.0512 | K18: 117058.9184
A19: Average cost/client/year | C19: 19790.10524 | E19: 17991.4766 | G19: 111411.739 | I19: 18767.76907 | K19: 18832.59748
A20: Total ABD non-dual eligible | C20: 2247641413 | E20: 2102539200 | G20: 1364.17 | I20: 2186539897 | K20: 2204523491
G21: 229.05
A22: Nursing Home Residents (a)
A23: Average monthly enrollment | C23: 25384 | E23: 28493.61344 | I23: 28474.35035 | K23: 28501.45092
A24: Average cost/client/year | C24: 69313.97298 | E24: 62088.60008 | G24: 2144217000 | I24: 60747.72898 | K24: 63879.39739
A25: Total nursing home residents | C25: 1759465890 | E25: 1769128570 | G25: 175772000 | I25: 1729752118 | K25: 1820655510
A27: Community-Based Recipients (a)
A28: Average monthly enrollment | C28: 11947 | E28: 12767.48302 | I28: 16757.41201 | K28: 20453.06369
A29: Average cost/client/year | C29: 31667.78338 | E29: 39210.20205 | G29: 586159.342 | I29: 41182.78584 | K29: 42223.31147
A30: Total community-based recipients | C30: 378335008 | E30: 500615589 | G30: 546.9727149 | I30: 690116909.9 | K30: 863596078.5
G31: 3762223000
A32: Title XIX Parents | G32: 0
A33: Average monthly enrollment | C33: 103574 | E33: 96983.74625 | G33: 3785874000 | I33: 104027.0683 | K33: 105041.459
A34: Average cost/client/year | C34: 8150.006237 | E34: 8231.499399 | I34: 8565.434364 | K34: 8598.552317
A35: Total Title XIX adults | C35: 844128746 | E35: 798321649 | I35: 891037025.5 | K35: 903204481.1
G36: 12327000
A37: Title XIX Children | G37: 423669000
A38: Average monthly enrollment | C38: 560674 | E38: 607060.8921 | G38: 525551000 | I38: 616241.8746 | K38: 622864.5397
A39: Average cost/client/year | C39: 2551.951542 | E39: 2575.295896 | G39: 1843281000 | I39: 2230.014363 | K39: 2235.59785
A40: Total Title XIX children | C40: 1430812879 | E40: 1563361424 | I40: 1374228232 | K40: 1392474625
G41: 188099000
A42: Title XIX ACA Expansion Eligibility Groups (100%/95% Federal Matching Rate) (b) | G42: 6680746000
A43: Expansion Childless Adults | G43: 10443998000
A44: Average monthly enrollment | C44: 67859 | E44: 289237.6667 | I44: 328721.8257 | K44: 326163.6095
A45: Average cost/client/year | C45: 6525.941555 | E45: 7486.270128 | I45: 6990.267657 | K45: 6709.798488
A46: Total expansion childless adults | C46: 442843868 | E46: 2165311304 | I46: 2297853546 | K46: 2188492094
A48: Expansion Parents | G48: 68081000
A49: Average monthly enrollment | C49: 168342 | E49: 211972.8333 | G49: 341412000 | I49: 203849.6704 | K49: 202170.8896
A50: Average cost/client/year | C50: 3283.612266 | E50: 3770.06142 | G50: 19174000 | I50: 4365.087232 | K50: 4157.253023
A51: Total expansion parents | C51: 552769856 | E51: 799150601 | G51: 428667000 | I51: 889821593.6 | K51: 840475542
A53: Total Title XIX costs | C53: 8612649834 | E53: 10698709133 | I53: 1.10058331e+10 | K53: 1.117751627e+10
A54: State funding | C54: 3721726988 | E54: 3755469098 | I54: 3766236766 | K54: 3813785127
A55: Health Care Subsidy Fund | C55: 0 | E55: 0 | I55: 175772117 | K55: 353185000
A56: Federal funding | C56: 4890922846 | E56: 6943240035 | I56: 7063824222 | K56: 7010546140
A58: Title XXI Eligibility Groups (65%/88% Federal Matching Rate) (c)
A59: Children's Health Insurance Program - 107% to 142% of the Federal Poverty Level
A60: Average monthly enrollment | C60: 72510 | E60: 75389 | G60: 83806 | I60: 80806 | K60: 80663
A61: Average cost/client/year | C61: =C62/C60 -> 2218.324452 | E61: =E62/E60 -> 2256.761597 | G61: 2133.186823 | I61: =I62/I60 -> 2212.383423 | K61: =K62/K60 -> 2218.570243
A62: Total M-CHIP group | C62: 160850706 | E62: 170135000 | G62: 178773854.9 | I62: 178773854.9 | K62: 178956531.5
A64: Children's Health Insurance Program - 142% to 350% of the Federal Poverty Level
A65: Average monthly enrollment | C65: 93359 | E65: 96786 | I65: 94286 | K65: 93271
A66: Average cost/client/year | C66: =C67/C65 -> 1831.523292 | E66: =E67/E65 -> 1738.174943 | I66: =I67/I65 -> 2103.148738 | K66: =K67/K65 -> 2127.182865
A67: Total S-CHIP group | C67: 170989183 | E67: 168231000 | I67: 198297481.9 | K67: 198404473
A69: Total Title XXI costs | C69: 331839889 | E69: 338366000 | I69: 377071336.8 | K69: 377361004.5
A70: Client cost share | C70: 18073402 | E70: 19300053.32 | I70: 19879054.92 | K70: 20475426.57
A71: Health Care Subsidy Fund | C71: 114720513 | E71: 120792981.3 | I71: 62716694.12 | K71: 42814530.36
A72: Federal funding | C72: 199045974 | E72: 198272965.3 | I72: 294475587.7 | K72: 314071047.6
A74: Less: offsetting rebates and recoveries
A75: Pharmaceutical manufacturer rebates | C75: -537324177.4 | E75: -509551000 | I75: -719111307.8 | K75: -655552874
A76: Cost recoveries | C76: -50728580 | E76: -74665098 | I76: -75000000 | K76: -75000000
A78: Total managed care and fee-for-service costs | C78: 8356436966 | E78: 10452859035 | I78: 1.058879313e+10 | K78: 1.08243244e+10
A79: Client cost share | C79: 18073402 | E79: 19300053.32 | I79: 19879054.92 | K79: 20475426.57
A80: State funding | C80: 3466522151 | E80: 3534257000 | I80: 3496790018 | K80: 3564785127
A81: Health Care Subsidy Fund | C81: 114720513 | E81: 120792981.3 | I81: 238488811.1 | K81: 395999530.4
A82: Federal funding | C82: 4757120899 | E82: 6778509000 | I82: 6833635249 | K82: 6843064314
A84: Other Associated Costs
A85: Medicare Parts A and B premiums | C85: 338670592 | E85: 336513000 | I85: 358116990 | K85: 384726760.4
A86: Medicare Part D premiums | C86: 343597411 | E86: 344518000 | I86: 377520097 | K86: 408673478.4
A87: ACA Health Insurance Providers Fee | C87: 0 | E87: 85417000 | I87: 161798284 | K87: 161798284
A88: Provider settlements and adjustments | C88: 97465648 | E88: 58871000 | I88: 66164895.18 | K88: 76618098.95
A89: Eligibility and enrollment services | C89: 47492299 | E89: 67246000 | I89: 76731200 | K89: 80600000
A90: Total other associated costs and credits | C90: 827225950 | E90: 892565000 | I90: 1040331466 | K90: 1112416622
A91: State funding | C91: 587378849 | E91: 611102000 | I91: 651627425.1 | K91: 714643880.8
A92: Federal funding | C92: 239847101 | E92: 281463000 | I92: 388704041.1 | K92: 397772740.9
A94: Grand total cost all groups | C94: 9183662916 | E94: 11345424035 | I94: 1.16291246e+10 | K94: 1.193674102e+10
A95: Grand total average monthly enrollment | C95: 1360641 | E95: 1680363.083 | I95: 1736126.358 | K95: 1744857.282
A96: Client cost share | C96: 18073402 | E96: 19300053.32 | I96: 19879054.92 | K96: 20475426.57
A97: Health Care Subsidy Fund | C97: 114720513 | E97: 120792981.3 | I97: 238488811.1 | K97: 395999530.4
A98: State funding | C98: 4053901000 | E98: 4145359000 | I98: 4148417443 | K98: 4279429008
A99: Federal funding | C99: 4996968000 | E99: 7059972000 | I99: 7222339291 | K99: 7240837055
A101: Spending for Select Service Categories (d)
A102: Hospital services
A103: Average monthly visits | C103: 1086079.583 | E103: 1456984 | I103: 1614726.373 | K103: 1634533.096
A104: Average cost per visit | C104: 216.059888 | E104: 218.2980052 | I104: 211.2413336 | K104: 210.4675216
A105: Total hospital services | C105: 2815898797 | E105: 3816680410 | I105: 4093163428 | K105: 4128193557
A107: Prescription drugs
A108: Number of prescriptions | C108: 20251169 | E108: 25388071 | I108: 25742299.37 | K108: 25020469.99
A109: Average cost per prescription | C109: 56.63982673 | E109: 63.23899608 | I109: 70.20750385 | K109: 76.81772949
A110: Total prescription drug cost | C110: 1147022703 | E110: 1605516122 | I110: 1807302582 | K110: 1922015695
A112: Nursing home services
A113: Average monthly residents | C113: =C23 -> 25384 | E113: =E23 -> 28493.61344 | I113: =I23 -> 28474.35035 | K113: =K23 -> 28501.45092
A114: Average cost/client/month | C114: =C115/C113/12 -> 5764.72787 | E114: =E115/E113/12 -> 4969.805452 | I114: =I115/I113/12 -> 4986.892983 | K114: =I114 -> 4986.892983
A115: Total nursing home services | C115: 1755982227 | E115: 1699292585 | I115: 1703982455 | K115: =K114*K113*12 -> 1705604227
A117: Community-based long term care services
A118: Average monthly clients | C118: =C28-C123 -> 11183.71893 | E118: =E28-E123 -> 11916.75 | I118: =I28-I123 -> 15851.24755 | K118: =K28-K123 -> 19410.13603
A119: Average cost/client/month | C119: =C120/C118/12 -> 1445.893721 | E119: =E120/E118/12 -> 2163.112021 | I119: =I120/I118/12 -> 2299.432789 | K119: =K120/K118/12 -> 2474.874281
A120: Total community-based services | C120: 194045627.7 | E120: 309327182.1 | I120: 437386540.3 | K120: 576451757.4
A122: Program of All-inclusive Care for the Elderly (PACE)
A123: Average monthly clients | C123: 763.281073 | E123: 850.7330231 | I123: 906.1644561 | K123: 1042.927657
A124: Average cost/client/month | C124: 4779.283569 | E124: 4289.287261 | I124: 4350.57698 | K124: =I124 -> 4350.57698
A125: Total PACE services | C125: 43775240.29 | E125: 43788459.82 | I125: 47308058.67 | K125: =K123*K124*12 -> 54448044.67
A127: PERSONNEL DATA
A128: Position Data
A129: Filled positions by funding source
A130: State supported | C130: 151 | E130: 144 | I130: 158 | K130: 159
A131: Federal | C131: 319 | E131: 310 | I131: 313 | K131: 313
A132: Total positions | C132: 470 | E132: 454 | I132: 471 | K132: 472
A133: Filled positions by program class
A134: Health Services Administration and Management | C134: 470 | E134: 454 | I134: 471 | K134: 472
A135: Total positions | C135: 470 | E135: 454 | I135: 471 | K135: 472
A137: Notes:
A138: Actual payroll counts are reported for fiscal years 2015 and 2016 as of December and revised fiscal year 2016 as of January. The Budget Estimate for fiscal year 2017 reflects the number of positions funded.
A139: Average cost per client figures in fiscal years 2014, 2015, and 2016 are affected by the expiration of the Affordable Care Act's temporary federal funding to reimburse physicians for certain primary care services at Medicare rates.
A140: (a) Amounts for nursing home and community-based residents represent all costs, including acute care services.
A141: (b) Federal match rate for calendar years 2014 through 2016 is 100%. In 2017, the match rate declines to 95% as outlined in the Affordable Care Act. As of January 1, 2014, the General Assistance population, adults up to 133% of the Federal Poverty Line (FPL), became part of the NJ FamilyCare Adult Expansion.
A142: (c) Federal match rate for federal fiscal years through 2015 is 65%. In federal fiscal year 2016, the match rate increases to 88% as outlined in the Affordable Care Act.
A143: (d) Costs for these services are included within the total expenditures by eligibility group.

Sheet 54-26
A1: Fiscal Year: | B1: 2017
A2: Fund Category: | B2: DSS | C2: Direct State Services
A3: Department: | B3: 54 | C3: Department Of Human Services
A4: Statewide Program: | B4: 26 | C4: Aging Services
A5: Organization:
A6: Number of Columns: | B6: 4
K7: Budget | M7: Budget
C8: Actual | D8: F | E8: Actual | F8: F | G8: Budgeted | H8: F | I8: Revised | J8: F | K8: Estimate | L8: F | M8: Estimate | N8: F
C9: ="FY " & FiscalYear - 3 -> FY 2014 | D9: N | E9: ="FY " & FiscalYear - 2 -> FY 2015 | F9: N | G9: ="FY " & FiscalYear - 1 -> FY 2016 | H9: N | I9: ="FY " & FiscalYear - 1 -> FY 2016 | J9: N | K9: ="FY " & FiscalYear -> FY 2017 | L9: N | M9: ="FY " & FiscalYear + 1 -> FY 2018 | N9: N
A10: PROGRAM DATA
A11: Pharmaceutical Assistance to the Aged and Disabled
A12: Pharmaceutical Assistance to the Aged (PAA) only:
A13: Average monthly eligibles | C13: 4307 | E13: 4230.032 | G13: 4156 | I13: 4095 | K13: 3980
A14: Average monthly prescriptions per eligible | C14: 1.37 | E14: 1.35 | G14: 1.18 | I14: 1.31 | K14: 1.24
A15: Cost per prescription (excludes cost sharing) | C15: 28.16 | E15: 28.03 | G15: 29.87 | I15: 27.83 | K15: 27.0168
A16: Annual cost | C16: =PRODUCT(C13:C15)*12 -> 1993927.373 | E16: =PRODUCT(E13:E15)*12 -> 1920798.311 | G16: =PRODUCT(G13:G15)*12 -> 1757818.435 | I16: =PRODUCT(I13:I15)*12 -> 1791511.722 | K16: =PRODUCT(K13:K15)*12 -> 1599999.736
A17: Pharmaceutical Assistance to the Aged & Disabled (PAAD) only:
A18: Aged
A19: Average monthly eligibles | C19: 94603.262 | E19: 92675 | G19: 89093.04 | I19: 89100 | K19: 88600
A20: Average monthly prescriptions per eligible | C20: 2.1 | E20: 2.02 | G20: 1.99 | I20: 1.9 | K20: 1.78165746
A21: Cost per prescription (excludes cost sharing) | C21: 27.45 | E21: 28.31 | G21: 29.12 | I21: 28.77480467 | K21: 29.2741478
A22: Gross cost PAAD program (Aged only) | C22: =PRODUCT(C19:C21)*12 -> 65440860.46 | E22: =PRODUCT(E19:E21)*12 -> 63596773.02 | G22: =PRODUCT(G19:G21)*12 -> 61954017.08 | I22: =PRODUCT(I19:I21)*12 -> 58455440.19 | K22: =PRODUCT(K19:K21)*12 -> 55452794.86
A23: Disabled
A24: Average monthly eligibles | C24: 26771 | E24: 27025 | G24: =27298-4417.14 -> 22880.86 | I24: 27261 | K24: 27520
A25: Average monthly prescriptions per eligible | C25: 2.25 | E25: 2.09644171 | G25: 2.02 | I25: 2 | K25: 1.65575
A26: Cost per prescription (excludes cost sharing) | C26: 33.06 | E26: 34.08 | G26: 35.07 | I26: 33.72 | K26: 33.32
A27: Gross cost PAAD program (Disabled only) | C27: =PRODUCT(C24:C26)*12 -> 23896330.02 | E27: =PRODUCT(E24:E26)*12 -> 23170175.67 | G27: =PRODUCT(G24:G26)*12 -> 19450945.87 | I27: =PRODUCT(I24:I26)*12 -> 22061782.08 | K27: =PRODUCT(K24:K26)*12 -> 18219205.4
A28: Total State PAAD costs
A29: Prescription drug expenses | C29: =SUM(C27,C22,C16) -> 91331117.85 | E29: =SUM(E27,E22,E16) -> 88687747 | G29: =SUM(G16,G22,G27) -> 83162781.38 | I29: =SUM(I16,I22,I27) -> 82308734 | K29: =SUM(K27,K22,K16) -> 75272000
A30: Payments for Medicare Part D monthly premiums | C30: 28227560 | E30: 28432031 | G30: 29500000 | I30: 29500000 | K30: 29500000
A31: PAAD manufacturers' rebates | C31: -32605000 | E31: -39248778 | G31: -39248778 | I31: -39249000 | K31: -39249000
A32: PAAD recoveries | C32: -1698843 | E32: -2300000 | G32: -2300000 | I32: -2300000 | K32: -2300000
A33: Net annual cost | C33: =SUM(C29:C32) -> 85254834.85 | E33: =SUM(E29:E32) -> 75571000 | G33: =SUM(G29:G32) -> 71114003.38 | I33: =SUM(I29:I32) -> 70259734 | K33: =SUM(K29:K32) -> 63223000
A34: Total General Fund | C34: =C33-C35 -> 35254834.85 | E34: =(65700+610)*1000 -> 66310000 | G34: =(59424+2250)*1000 -> 61674000 | I34: =(60239+2250-854.266)*1000 -> 61634734 | K34: =(52797+2250)*1000 -> 55047000
A35: Total Casino Revenue Fund | C35: 50000000 | E35: =9261*1000 -> 9261000 | G35: 9440000 | I35: 8625000 | K35: 8176000
A37: Senior Gold Prescription Discount Program
A38: Aged
A39: Average monthly eligibles | C39: =16999+103.695 -> 17102.695 | E39: 17684 | G39: =16949+1310.935 -> 18259.935 | I39: 17780 | K39: 18317.1
A40: Average monthly prescriptions per eligible | C40: 1.53 | E40: 1.4 | G40: 1.47 | I40: 1.227851334 | K40: 1.1683763
A41: Cost per prescription (excludes cost sharing) | C41: 10.38 | E41: 10.843715 | G41: 11.01 | I41: 10.85 | K41: 10.93
A42: Gross cost Senior Gold program (Aged only) | C42: =PRODUCT(C39:C41)*12 -> 3259376.884 | E42: 3221572.302 | G42: =PRODUCT(G39:G41)*12 -> 3546378.84 | I42: =PRODUCT(I39:I41)*12 -> 2842421.813 | K42: =PRODUCT(K39:K41)*12 -> 2806989.986
A43: Disabled
A44: Average monthly eligibles | C44: 2184 | E44: 2267 | G44: 2314 | I44: 2284 | K44: 2345
A45: Average monthly prescriptions per eligible | C45: 1.66 | E45: 1.58 | G45: 1.62 | I45: 1.49 | K45: 1.47
A46: Cost per prescription (excludes cost sharing) | C46: 16.61 | E46: 17.11 | G46: 17.62 | I46: 17.12 | K46: 17.14
A47: Gross cost Senior Gold program (Disabled only) | C47: =PRODUCT(C44:C46)*12 -> 722622.7008 | E47: 735427.4952 | G47: =PRODUCT(G44:G46)*12 -> 792620.8992 | I47: =PRODUCT(I44:I46)*12 -> 699145.1904 | K47: =PRODUCT(K44:K46)*12 -> 709009.812
A49: Total State Senior Gold costs
A50: Gross annual cost Senior Gold | C50: =SUM(C42,C47) -> 3981999.585 | E50: =SUM(E47,E42) -> 3956999.797 | G50: =SUM(G42,G47) -> 4338999.739 | I50: =SUM(I42,I47) -> 3541567.003 | K50: =SUM(K42,K47) -> 3515999.798
A51: Manufacturers' rebates | C51: -103000 | E51: 0 | G51: -150000 | I51: -150000 | K51: -150000
A52: Net annual cost | C52: =C50+C51 -> 3878999.585 | E52: =E50+E51 -> 3956999.797 | G52: =G50+G51 -> 4188999.739 | I52: =I50+I51 -> 3391567.003 | K52: =SUM(K50:K51) -> 3365999.798
A53: Total General Fund (a) | C53: =3879*1000 -> 3879000 | E53: 3957000 | G53: =(7039-2850)*1000 -> 4189000 | I53: =I52 -> 3391567.003 | K53: =(6216-2850)*1000 -> 3366000
A55: Programs for the Aged
A56: Services and service units provided:
A57: Congregate meals service | C57: 1601586 | E57: 1608751 | G57: 1500000 | I57: 1610000 | K57: 1610000
A58: Home delivered meals service | C58: 3486404 | E58: 3473427 | G58: 3525000 | I58: 3475000 | K58: 3475000
A59: Transportation service | C59: 627440 | E59: 621493 | G59: 630000 | I59: 620000 | K59: 620000
A60: Information and referral service | C60: 303253 | E60: 319515 | G60: 305000 | I60: 320000 | K60: 320000
A61: Telephone reassurance service | C61: 175003 | E61: 214882 | G61: 230000 | I61: 215000 | K61: 215000
A62: Outreach service | C62: 60873 | E62: 43919 | G62: 70000 | I62: 45000 | K62: 45000
A63: Personal care service | C63: 604905 | E63: 457241 | G63: 670000 | I63: 400000 | K63: 400000
A64: Legal service | C64: 23705 | E64: 25114 | G64: 30000 | I64: 25000 | K64: 25000
A65: Housekeeping and chore services | C65: 358731 | E65: 315084 | G65: 360000 | I65: 315000 | K65: 315000
A66: Education and training services | C66: 156096 | E66: 141985 | G66: 185000 | I66: 145000 | K66: 145000
A67: Case management service | C67: 100670 | E67: 103151 | G67: 110000 | I67: 105000 | K67: 105000
A68: Physical health services | C68: 141732 | E68: 175538 | G68: 190000 | I68: 175000 | K68: 175000
A69: Congregate Housing Services Program
A70: Persons served | C70: 2929 | D70: (b) | E70: 2588 | G70: 2650 | I70: 2600 | K70: 2600
A71: Site locations | C71: 67 | E71: 69 | G71: 67 | I71: 69 | K71: 69
A72: Adult Protective Services
A73: Persons served | C73: 6665 | E73: 7144 | G73: 7658 | I73: 7492 | K73: 7800
A74: Health Insurance Counseling
A75: Clients served | C75: 78829 | E75: 86712 | G75: 95383 | I75: 82290 | K75: 87000
A76: Security Housing and Transportation
A77: Clients served | C77: 4353 | E77: 3708 | G77: 4300 | I77: 3800 | K77: 3800
A78: Gerontology services
A79: Geriatric patients served | C79: 3777 | E79: 3800 | G79: 3800 | I79: 3800 | K79: 3800
A80: Alzheimer's day care units provided | C80: 37200 | E80: 37200 | G80: 37200 | I80: 42400 | K80: 45000
A81: Persons trained in gerontology | C81: 2481 | E81: 3916 | G81: 3500 | I81: 3500 | K81: 3500
A82: Caregivers receiving respite care | C82: 1950 | E82: 1969 | G82: 1950 | I82: 2000 | K82: 2000
A83: Care to Caregivers (c) | C83: 0 | E83: 4431 | G83: 3200 | I83: 3200 | K83: 3200
A84: Office of the Public Guardian
A85: Number of inquiries | C85: 9750 | E85: 9950 | G85: 10155 | I85: 12250 | K85: 14550
A86: Number of cases handled | C86: 4933 | E86: 5312 | G86: 5721 | I86: 5980 | K86: 6578
A87: Number of court-appointed cases | C87: 406 | E87: 427 | G87: 449 | I87: 493 | K87: 542
A89: PERSONNEL DATA
A90: Position Data
A91: Filled positions by funding source
A92: State supported | C92: 198 | E92: 196 | G92: 194 | I92: 192 | K92: 195
A93: Federal | C93: 98 | E93: 94 | G93: 94 | I93: 90 | K93: 86
A94: All other | C94: 24 | E94: 23 | G94: 23 | I94: 20 | K94: 20
A95: Total positions | C95: =SUM(C92:C94) -> 320 | E95: =SUM(E92:E94) -> 313 | G95: =SUM(G92:G94) -> 311 | I95: =SUM(I92:I94) -> 302 | K95: =SUM(K92:K94) -> 301
A96: Filled positions by program class
A97: Medical Services for the Aged | C97: 139 | E97: 141 | G97: 137 | I97: 139 | K97: 132
A98: Pharmaceutical Assistance to the Aged & Disabled | C98: 107 | E98: 104 | G98: 98 | I98: 96 | K98: 105
A99: Lifeline | C99: 9 | E99: 7 | G99: 8 | I99: 6 | K99: 6
A100: Programs for the Aged | C100: 33 | E100: 28 | G100: 33 | I100: 28 | K100: 25
A101: Office of the Public Guardian | C101: 32 | E101: 33 | G101: 35 | I101: 33 | K101: 33
A102: Total positions | C102: =SUM(C97:C101) -> 320 | E102: =SUM(E97:E101) -> 313 | G102: =SUM(G97:G101) -> 311 | I102: =SUM(I97:I101) -> 302 | K102: =SUM(K97:K101) -> 301
A105: Notes:
A107: Actual payroll counts are reported for fiscal years 2014 and 2015 as of December and revised fiscal 2016 as of January. The budget estimate for fiscal 2017 reflects the number of positions funded.
A108: (a) Excludes $2,850,000 appropriated for administration.
A109: (b) A one-time resource of $300,000 from the Jersey Assistance for Community Caregiving program allowed for additional clients to be served in fiscal 2014.
A110: (c) The Care to Caregivers program was launched in fiscal 2015.

Sheet 54-27-7545
A1: Fiscal Year: | B1: 2017
A2: Fund Category: | B2: DSS | C2: Direct State Services
A3: Department: | B3: 54 | C3: Department Of Human Services
A4: Statewide Program: | B4: 27 | C4: Disability Services
A5: Organization: | B5: 7545 | C5: Division of Disability Services
A6: Number of Columns: | B6: 4
K7: Budget | M7: Budget
C8: Actual | D8: F | E8: Actual | F8: F | G8: Budgeted | H8: F | I8: Revised | J8: F | K8: Estimate | L8: F | M8: Estimate | N8: F
C9: ="FY " & FiscalYear - 3 -> FY 2014 | D9: N | E9: ="FY " & FiscalYear - 2 -> FY 2015 | F9: N | G9: ="FY " & FiscalYear - 1 -> FY 2016 | H9: N | I9: ="FY " & FiscalYear - 1 -> FY 2016 | J9: N | K9: ="FY " & FiscalYear -> FY 2017 | L9: N | M9: ="FY " & FiscalYear + 1 -> FY 2018 | N9: N
A10: OPERATING DATA
A11: Disability Services
A12: Personal Assistance Services Program
A13: Number of clients | C13: 660 | E13: 660 | G13: 660 | I13: 660 | K13: 660
A14: Total program cost | C14: 11117000 | E14: 11117000 | G14: 11117000 | I14: 11117000 | K14: 11117000
A16: PERSONNEL DATA
A17: Position Data
A18: Filled positions by funding source
A19: State supported | C19: 18 | E19: 15 | G19: 14 | I19: 15 | K19: 14
A20: Federal | C20: 10 | E20: 9 | G20: 13 | I20: 9 | K20: 13
A21: Total positions | C21: 28 | E21: 24 | G21: 27 | I21: 24 | K21: 27
A22: Filled positions by program class
A23: Disability Services | C23: 28 | E23: 24 | G23: 27 | I23: 24 | K23: 27
A24: Total positions | C24: 28 | E24: 24 | G24: 27 | I24: 24 | K24: 27
A27: Notes:
A28: Actual payroll counts are reported for fiscal years 2014 and 2015 as of December and revised fiscal 2016 as of January. The Budget Estimate for fiscal 2017 reflects the number of positions funded.
A29: (a) The evaluation data display reflects the shift in service delivery from fee-for-service to the FamilyCare managed care organizations.

Sheet 54-32-7601
A1: Fiscal Year: | B1: 2017
A2: Fund Category: | B2: DSS | C2: Direct State Services
A3: Department: | B3: 54 | C3: Department Of Human Services
A4: Statewide Program: | B4: 32 | C4: Operation and Support of Educational Institutions
A5: Organization: | B5: 7601 | C5: Community Programs
A6: Number of Columns: | B6: 4
K7: Budget | M7: Budget
C8: Actual | D8: F | E8: Actual | F8: F | G8: Budgeted | H8: F | I8: Revised | J8: F | K8: Estimate | L8: F | M8: Estimate | N8: F
C9: ="FY " & FiscalYear - 3 -> FY 2014 | D9: N | E9: ="FY " & FiscalYear - 2 -> FY 2015 | F9: N | G9: ="FY " & FiscalYear - 1 -> FY 2016 | H9: N | I9: ="FY " & FiscalYear - 1 -> FY 2016 | J9: N | K9: ="FY " & FiscalYear -> FY 2017 | L9: N | M9: ="FY " & FiscalYear + 1 -> FY 2018 | N9: N
A10: PROGRAM DATA
A11: Average Monthly Census by Selected Community Residence (a)
A12: Community Care Residence | C12: 852 | E12: 763 | I12: 693 | K12: 630
A13: Group Home/Supervised Apartment | C13: 6795 | E13: 7185 | I13: 7403 | K13: 7639
A14: Own Home | C14: 15862 | E14: 14931 | I14: 15379 | K14: 15840
A15: Supportive Living/Supportive Housing | C15: 728 | E15: 716 | I15: 685 | K15: 650
A17: Waiver Services - Gross Budget (b) (c)
A18: Community Care Waiver
A19: Average monthly enrollment | C19: 10866 | E19: 10972 | I19: 11079 | K19: 11187
A20: Average cost per individual | C20: 75359 | E20: 79660 | I20: 81674 | K20: 87276
A21: Total program cost (matchable expenditures only) | C21: =C19*C20 -> 818850894 | E21: =E19*E20 -> 874029520 | I21: =I19*I20 -> 904866246 | K21: =K19*K20 -> 976356612
A22: Average cost of Individual Supports (Licensed Residential) | C22: 83538 | E22: 86127 | I22: 88797 | K22: 90785
A24: Comprehensive Medicaid Waiver - Supports Program
A25: Average monthly enrollment (d) | I25: 250 | K25: 3971
A26: Average cost per individual (d) | I26: 20000 | K26: 20000
A27: Total program cost (matchable expenditures only) (d) | I27: 5000000 | K27: 79420000
A29: Waiver Services - Individuals accessing each service (b)(e)(f)
A30: Behavioral Management (d) | K30: 6103
A31: Career Planning (d) | K31: 484
A32: Community Inclusion Services (d) | K32: 638
A33: Day Habilitation | C33: 6247 | E33: 6509 | I33: 6783 | K33: 9626
A34: Individual Supports | C34: 7488 | E34: 7802 | I34: 8130 | K34: 8477
A35: Prevocational Training | C35: 191 | E35: 199 | I35: 208 | K35: 293
A36: Supported Employment | C36: 196 | E36: 205 | I36: 213 | K36: 301
A38: Initiative Evaluation Data
A39: Community Services Waiting List | G39: 5830
A40: Total number in priority category | C40: 3791 | E40: 3666 | I40: 3216 | K40: 2821
A41: Gross annual program budget | C41: 2968000 | E41: 2241000 | I41: 10000000 | K41: 10000000
A43: Individuals Transitioned from Institutions (Olmstead)
A44: Total number transitioned to the community | C44: 273 | E44: 146 | I44: 160 | K44: 165
A45: Average annual cost per individual | C45: 157734 | E45: 157310 | I45: 160000 | K45: 160000
A46: Gross annual program budget | C46: =C44*C45 -> 43061382 | E46: =E44*E45 -> 22967260 | I46: =I44*I45 -> 25600000 | K46: =K44*K45 -> 26400000
A48: Vouchers Managed by the Supportive Housing Connection (d) | I48: 200 | K48: 1200
A50: Out-of-State Placements
A51: Average monthly census | C51: 461 | E51: 392 | I51: 370 | K51: 370
A52: Average annual cost per individual | C52: 114996 | E52: 125640 | I52: 125000 | K52: 125000
A53: Gross annual program budget | C53: =C51*C52 -> 53013156 | E53: =E51*E52 -> 49250880 | I53: =I51*I52 -> 46250000 | K53: =K51*K52 -> 46250000
A56: PERSONNEL DATA
A57: Position Data
A58: Filled positions by funding source
A59: State supported | C59: 373 | E59: 383 | G59: 418 | I59: 358 | K59: 358
A60: Federal | C60: 493 | E60: 470 | G60: 454 | I60: 446 | K60: 413
A61: Total positions | C61: =SUM(C59:C60) -> 866 | E61: =SUM(E59:E60) -> 853 | G61: =SUM(G59:G60) -> 872 | I61: =SUM(I59:I60) -> 804 | K61: =SUM(K59:K60) -> 771
A62: Filled positions by program class
A63: Community Services | C63: 649 | E63: 580 | G63: 663 | I63: 601 | K63: 568
A64: Administration and Support Services | C64: 217 | E64: 273 | G64: 209 | I64: 203 | K64: 203
A65: Total positions | C65: =SUM(C63:C64) -> 866 | E65: =SUM(E63:E64) -> 853 | G65: =SUM(G63:G64) -> 872 | I65: =SUM(I63:I64) -> 804 | K65: =SUM(K63:K64) -> 771
A68: Notes:
A69: Actual payroll counts are reported for fiscal years 2014 and 2015 as of December and revised fiscal 2016 as of January. The budget estimate for fiscal 2017 reflects the number of positions funded.
A70: (a) Includes individuals in all programs.
A71: (b) Includes only individuals and services eligible for reimbursement under federal Medicaid programs.
A72: (c) Average cost per individual includes partial-year phase in of new participants.
A73: (d) Reflects estimates for new programs or services beginning in fiscal 2016 or 2017.
A74: (e) Fiscal 2017 service utilization is adjusted for estimated fee-for-service waiver implementation.
A75: (f) Individuals may be in more than one category.

Sheet 54-32
A1: Fiscal Year: | B1: 2017
A2: Fund Category: | B2: DSS | C2: Direct State Services
A3: Department: | B3: 54 | C3: Department Of Human Services
A4: Statewide Program: | B4: 32 | C4: Operation and Support of Educational Institutions
A5: Organization:
A6: Number of Columns: | B6: 4
K7: Budget | M7: Budget
C8: Actual | D8: F | E8: Actual | F8: F | G8: Budgeted | H8: F | I8: Revised | J8: F | K8: Estimate | L8: F | M8: Estimate | N8: F
C9: ="FY " & FiscalYear - 3 -> FY 2014 | D9: N | E9: ="FY " & FiscalYear - 2 -> FY 2015 | F9: N | G9: ="FY " & FiscalYear - 1 -> FY 2016 | H9: N | I9: ="FY " & FiscalYear - 1 -> FY 2016 | J9: N | K9: ="FY " & FiscalYear -> FY 2017 | L9: N | M9: ="FY " & FiscalYear + 1 -> FY 2018 | N9: N
A11: OPERATING DATA
A12: Residential Care and Habilitation Services (a)
A13: Green Brook Regional Center
A14: Average daily population | C14: 99 | E14: 108 | G14: 93 | I14: 109 | K14: 109
A15: Ratio: population/total positions | C15: 0.4 / 1 | E15: 0.3 / 1 | G15: 0.3 / 1 | I15: 0.4 / 1 | K15: 0.3 / 1
A16: Gross per capitas
A17: Annual | C17: 165131.567 | E17: 189015 | G17: 258441 | I17: 209901 | K17: 201752
A18: Daily | C18: 452.415252 | E18: 517.85 | G18: 708.06 | I18: 575.07 | K18: =K17/365 -> 552.7452055
A19: Vineland Developmental Center
A20: Average daily population | C20: 253 | E20: 291 | G20: 258 | I20: 243 | K20: 196
A21: Ratio: population/total positions | C21: 0.3 / 1 | E21: 0.3 / 1 | G21: 0.3 / 1 | I21: 0.3 / 1 | K21: 0.3 / 1
A22: Gross per capitas
A23: Annual | C23: 232581.9681 | E23: 208835 | G23: 246260 | I23: 242853 | K23: 285694
A24: Daily | C24: 637.2108715 | E24: 572.15 | G24: 674.68 | I24: 665.35 | K24: =K23/365 -> 782.7232877
A25: North Jersey Developmental Center
A26: Average daily population | C26: 192 | E26: 0 | G26: 0 | I26: 0 | K26: 0
A27: Ratio: population/total positions | C27: 0.2 / 1 | E27: 0 | G27: 0 | I27: 0 | K27: 0
A28: Gross per capitas
A29: Annual | C29: 334830.5389 | E29: 0 | G29: 0 | I29: 0 | K29: 0
A30: Daily | C30: 917.35 | E30: 0 | G30: 0 | I30: 0 | K30: 0
A31: Woodbine Developmental Center
A32: Average daily population | C32: 377 | E32: 372 | G32: 318 | I32: 327 | K32: 286
A33: Ratio: population/total positions | C33: 0.3 / 1 | E33: 0.3 / 1 | G33: 0.3 / 1 | I33: 0.3 / 1 | K33: 0.3 / 1
A34: Gross per capitas
A35: Annual | C35: 190562.2081 | E35: 194140 | G35: 245613 | I35: 219602 | K35: 229091
A36: Daily | C36: 522.0882413 | E36: 531.89 | G36: 672.91 | I36: 601.65 | K36: =K35/365 -> 627.6465753
A37: New Lisbon Developmental Center
A38: Average daily population | C38: 384 | E38: 404 | G38: 353 | I38: 369 | K38: 327
A39: Ratio: population/total positions | C39: 0.3 / 1 | E39: 0.3 / 1 | G39: 0.3 / 1 | I39: 0.3 / 1 | K39: 0.3 / 1
A40: Gross per capitas
A41: Annual | C41: 220965.5906 | E41: 203330 | G41: 240122 | I41: 222070 | K41: 242468
A42: Daily | C42: 605.3851797 | E42: 557.07 | G42: 657.87 | I42: =I41/365 -> 608.4109589 | K42: =K41/365 -> 664.2958904
A43: Woodbridge Developmental Center
A44: Average daily population | C44: 246 | E44: 26 | G44: 0 | I44: 0 | K44: 0
A45: Ratio: population/total positions | C45: 0.3 / 1 | E45: 0.3 / 1 | G45: 0 | I45: 0 | K45: 0
A46: Gross per capitas
A47: Annual | C47: 267373.6019 | E47: 1277011 | G47: 0 | I47: 0 | K47: 0
A48: Daily | C48: 732.5304161 | E48: 3498.66 | G48: 0 | I48: 0 | K48: 0
A49: Hunterdon Developmental Center
A50: Average daily population | C50: 505 | E50: 501 | G50: 473 | I50: 501 | K50: 500
A51: Ratio: population/total positions | C51: 0.4 / 1 | E51: 0.4 / 1 | G51: 0.3 / 1 | I51: 0.4 / 1 | K51: 0.4 / 1
A52: Gross per capitas
A53: Annual | C53: 172772.968 | E53: 163545 | G53: 220603 | I53: 183219 | K53: 168852
A54: Daily | C54: 473.3505972 | E54: 448.07 | G54: 604.39 | I54: 501.97 | K54: =K53/365 -> 462.6082192
A56: PERSONNEL DATA
A57: Position Data
A58: Green Brook Regional Center
A59: Filled positions by Funding Source
A60: State Supported
A61: Federal
A62: Total Positions
A63: Filled Positions by Program Class
A64: Residential Care and Habilitation
A65: Administration and Support Services
A66: Total Positions
A67: Vineland Developmental Center
A68: Filled positions by Funding Source
A69: State Supported
A70: Federal
A71: Total Positions
A72: Filled Positions by Program Class
A73: Residential Care and Habilitation
A74: Administration and Support Services
A75: Total Positions
A76: North Jersey Developmental Center
A77: Filled positions by Funding Source
A78: State Supported
A79: Federal
A80: Total Positions
A81: Filled Positions by Program Class
A82: Residential Care and Habilitation
A83: Administration and Support Services
A84: Total Positions
A85: Woodbine Developmental Center
A86: Filled positions by Funding Source
A87: State Supported
A88: Federal
A89: Total Positions
A90: Filled Positions by Program Class
A91: Residential Care and Habilitation Services
A92: Administration and Support Services
A93: Total Positions
A94: New Lisbon Developmental Center
A95: Filled positions by Funding Source
A96: State Supported
A97: Federal
A98: Total Positions
A99: Filled Positions by Program Class
A100: Residential Care and Habilitation
A101: Administration and Support Services
A102: Total Positions
A103: Woodbridge Developmental Center
A104: Filled positions by Funding Source
A105: State Supported
A106: Federal
A107: All Other
A108: Total Positions
A109: Filled Positions by Program Class
A110: Residential Care and Habilitation Services
A111: Administration and Support Services
A112: Total Positions
A113: Hunterdon Developmental Center
A114: Filled positions by Funding Source
A115: State Supported
A116: Federal
A117: Total Positions
A118: Filled Positions by Program Class
A119: Residential Care and Habilitation Services
A120: Administration and Support Services
A121: Total Positions
A123: Institutional Total
A124: Filled positions by funding source
A125: State supported | C125: 3655 | E125: 2905 | G125: 2391 | I125: 2294 | K125: 2222
A126: Federal | C126: 3410 | E126: 2774 | G126: 2429 | I126: 2296 | K126: 2263
A127: Total positions | C127: =SUM(C125:C126) -> 7065 | E127: =SUM(E125:E126) -> 5679 | G127: =SUM(G125:G126) -> 4820 | I127: =SUM(I125:I126) -> 4590 | K127: =SUM(K125:K126) -> 4485
A128: Filled positions by program class
A129: Residential Care and Habilitation Services | C129: 5997 | E129: 4812 | G129: 4024 | I129: 3753 | K129: 3809
A130: Administration and Support Services | C130: 1068 | E130: 867 | G130: 796 | I130: 837 | K130: 676
A131: Total positions | C131: =SUM(C129:C130) -> 7065 | E131: =SUM(E129:E130) -> 5679 | G131: =SUM(G129:G130) -> 4820 | I131: =SUM(I129:I130) -> 4590 | K131: =SUM(K129:K130) -> 4485
A133: Notes:
A134: Actual payroll counts are reported for fiscal years 2014 and 2015 as of December and revised fiscal 2016 as of January. The budget estimate for fiscal 2017 reflects the number of positions funded.
A136: (a) The average daily population figures reflect the finding of the Task Force on Developmental Center Closure to close North Jersey and Woodbridge Developmental Centers. The North Jersey Developmental Center closed on July 1, 2014. No data are therefore presented for fiscal 2015, 2016, or 2017. The Woodbridge Developmental Center closed on January 9, 2015. No data are therefore presented for fiscal 2016, or 2017. Overall census data reflect the redistribution of clients across the system.

Sheet 54-33-7560
A1: Fiscal Year: | B1: 2017
A2: Fund Category: | B2: DSS | C2: Direct State Services
A3: Department: | B3: 54 | C3: Department Of Human Services
A4: Statewide Program: | B4: 33 | C4: Supplemental Education and Training Programs
A5: Organization: | B5: 7560 | C5: Commission for the Blind and Visually Impaired
A6: Number of Columns: | B6: 4
K7: Budget | M7: Budget
C8: Actual | D8: F | E8: Actual | F8: F | G8: Budgeted | H8: F | I8: Revised | J8: F | K8: Estimate | L8: F | M8: Estimate | N8: F
C9: ="FY " & FiscalYear - 3 -> FY 2014 | D9: N | E9: ="FY " & FiscalYear - 2 -> FY 2015 | F9: N | G9: ="FY " & FiscalYear - 1 -> FY 2016 | H9: N | I9: ="FY " & FiscalYear - 1 -> FY 2016 | J9: N | K9: ="FY " & FiscalYear -> FY 2017 | L9: N | M9: ="FY " & FiscalYear + 1 -> FY 2018 | N9: N
A10: PROGRAM DATA
A11: Services for the Blind and Visually Impaired
A12: Vocational rehabilitation
A13: Total clients served | C13: 3152 | E13: 3093 | G13: 3170 | I13: 3100 | K13: 3175
A14: Clients rehabilitated | C14: 339 | E14: 291 | G14: 345 | I14: 300 | K14: 305
A15: Wage-earners | C15: 325 | E15: 282 | G15: 335 | I15: 292 | K15: 299
A16: Homemakers | C16: 14 | E16: 9 | G16: 10 | I16: 8 | K16: 6
A17: Average annual income after rehabilitation | C17: 23500 | E17: 25265 | G17: 24750 | I17: 25500 | K17: 26025
A18: Average cost per client served | C18: 5580 | E18: 5418 | G18: 5850 | I18: 5500 | K18: 5600
A19: Average cost per client rehabilitated | C19: 6665 | E19: 5815 | G19: 6750 | I19: 6250 | K19: 6500
A20: Rehabilitations per counselor | C20: 18 | E20: 17 | G20: 19 | I20: 18 | K20: 18
A22: Community service (state habilitation)
A23: Total clients receiving independent living services | C23: 4102 | E23: 3962 | G23: 4160 | I23: 4000 | K23: 4050
A24: Clients receiving orientation and mobility instruction | C24: 1846 | E24: 1805 | G24: 1875 | I24: 1825 | K24: 1850
A25: Clients receiving basic life skills instruction | C25: 1650 | E25: 1560 | G25: 1675 | I25: 1675 | K25: 1700
A26: Clients over 65 (non-VR) | C26: 1789 | E26: 1590 | G26: 1820 | I26: 1650 | K26: 1675
A28: Prevention
A29: Total persons screened | C29: 41237 | E29: 38581 | G29: 42950 | I29: 39000 | K29: 39500
A30: Adult vision screenings | C30: 7884 | E30: 6647 | G30: 7990 | I30: 6700 | K30: 6750
A31: Preschool vision screenings | C31: 24276 | E31: 22584 | G31: 25785 | I31: 22800 | K31: 23150
A32: Mobile screenings | C32: 7091 | E32: 7230 | G32: 7150 | I32: 7300 | K32: 7350
A33: Diabetic screenings | C33: 1986 | E33: 2120 | G33: 2025 | I33: 2200 | K33: 2250
A34: Referred for further evaluations | C34: 3331 | E34: 3859 | G34: 3400 | I34: 3900 | K34: 3950
A35: Referred to Commission for the Blind and Visually Impaired | C35: 529 | E35: 360 | G35: 600 | I35: 360 | K35: 365
A36: Eye health case services | C36: 2604 | E36: 2512 | G36: 2635 | I36: 2525 | K36: 2550
A37: Low vision services | C37: 1290 | E37: 1279 | G37: 1315 | I37: 1315 | K37: 1360
A39: Instruction
A40: Total clients receiving educational services | C40: 2278 | E40: 2268 | G40: 2300 | I40: 2280 | K40: 2290
A41: Preschool children receiving itinerant services | C41: 192 | E41: 205 | G41: 205 | I41: 210 | K41: 215
A42: Total number of school-aged children receiving itinerant services | C42: 2086 | E42: 2063 | G42: 2095 | I42: 2070 | K42: 2075
A43: Average lesson hours per teacher | C43: 366 | E43: 457 | G43: 400 | I43: 470 | K43: 485
A45: PERSONNEL DATA
A46: Position Data
A47: Filled positions by funding source
A48: State supported | C48: 180 | E48: 175 | G48: 174 | I48: 172 | K48: 172
A49: Federal | C49: 91 | E49: 88 | G49: 91 | I49: 89 | K49: 89
A50: Total positions | C50: =C48+C49 -> 271 | E50: =E48+E49 -> 263 | G50: =SUM(G48:G49) -> 265 | I50: =SUM(I49+I48) -> 261 | K50: =K48+K49 -> 261
A51: Filled positions by program class
A52: Services for the Blind and Visually Impaired | C52: 221 | E52: 218 | G52: 216 | I52: 220 | K52: 217
A53: Administration and Support Services | C53: 50 | E53: 45 | G53: 49 | I53: 41 | K53: 44
A54: Total positions | C54: =C52+C53 -> 271 | E54: =SUM(E52:E53) -> 263 | G54: =SUM(G52:G53) -> 265 | I54: =SUM(I52:I53) -> 261 | K54: =SUM(K52:K53) -> 261
A57: Notes:
A58: Actual payroll counts are reported for fiscal years 2014 and 2015 as of December and revised fiscal 2016 as of January. The budget estimate for fiscal 2017 reflects the number of positions funded.

Sheet 54-53-7550
A1: Fiscal Year: | B1: 2017
A2: Fund Category: | B2: DSS | C2: Direct State Services
A3: Department: | B3: 54 | C3: Department Of Human Services
A4: Statewide Program: | B4: 53 | C4: Economic Assistance and Security
A5: Organization: | B5: 7550 | C5: Division of Family Development
A6: Number of Columns: | B6: 4
K7: Budget | M7: Budget
C8: Actual | D8: F | E8: Actual | F8: F | G8: Budgeted | H8: F | I8: Revised | J8: F | K8: Estimate | L8: F | M8: Estimate | N8: F
C9: ="FY " & FiscalYear - 3 -> FY 2014 | D9: N | E9: ="FY " & FiscalYear - 2 -> FY 2015 | F9: N | G9: ="FY " & FiscalYear - 1 -> FY 2016 | H9: N | I9: ="FY " & FiscalYear - 1 -> FY 2016 | J9: N | K9: ="FY " & FiscalYear -> FY 2017 | L9: N | M9: ="FY " & FiscalYear + 1 -> FY 2018 | N9: N
A10: PROGRAM DATA
A11: Income Maintenance Management
A12: General Assistance
A13: Employable
A14: Average monthly recipients | C14: 21571 | E14: 17201 | G14: 15373 | I14: 12604 | K14: 11209
A15: Average monthly grant | C15: 144.02 | E15: 143.87 | G15: 144.27 | I15: 143.21 | K15: 143.3
A16: Burials | C16: 275880 | E16: 200924 | G16: 221158 | I16: 137826 | K16: 145072
A17: State expenditures | C17: =((C14*C15)*12)+C16 -> 37555745.04 | E17: =((E14*E15)*12)+E16 -> 29897418.44 | G17: =((G14*G15)*12)+G16 -> 26835510.52 | I17: =((I14*I15)*12)+I16 -> 21798052.08 | K17: =((K14*K15)*12)+K16 -> 19420068.4
A19: Unemployable
A20: Average monthly recipients | C20: 12684 | E20: 11870 | G20: 11767 | I20: 10383 | K20: 10051
A21: Average monthly grant | C21: 213.69 | E21: 212.48 | G21: 213.09 | I21: 212.4 | K21: 212.43
A22: Burials | C22: 147844 | E22: 154112 | G22: 123291 | I22: 158075 | K22: 148506
A23: Total assistance expenditures | C23: =((C20*C21)*12)+C22 -> 32673171.52 | E23: =((E20*E21)*12)+E22 -> 30419763.2 | G23: =((G20*G21)*12)+G22 -> 30212451.36 | I23: =((I20*I21)*12)+I22 -> 26622265.4 | K23: =((K20*K21)*12)+K22 -> 25770113.16
A24: Refunds to assistance | C24: -12578134 | E24: -12217225 | G24: -12545214 | I24: -10151279 | K24: -10384641
A25: State expenditures | C25: =C23+C24 -> 20095037.52 | E25: =E23+E24 -> 18202538.2 | G25: =G23+G24 -> 17667237.36 | I25: =I23+I24 -> 16470986.4 | K25: =K23+K24 -> 15385472.16
A27: Emergency Assistance Program
A28: Average monthly recipients | C28: 5448 | E28: 5082 | G28: 4550 | I28: 3791 | K28: 3269
A29: Average monthly grant | C29: 972.96 | E29: 1004.99 | G29: 1033.48 | I29: 1019.36 | K29: 1049
A30: State expenditures | C30: =C28*C29*12 -> 63608232.96 | E30: =E28*E29*12 -> 61288310.16 | G30: =G28*G29*12 -> 56428008 | I30: =I28*I29*12 -> 46372725.12 | K30: =K28*K29*12 -> 41150172
A32: Work First New Jersey
A33: Average monthly recipients | C33: 92061 | E33: 83199 | G33: 80567 | I33: 66478 | K33: 63295
A34: Average monthly grant | C34: 129.73 | E34: 128.86 | G34: 130.01 | I34: 128.43 | K34: 128.41
A35: Total assistance expenditures | C35: =C33*C34*12 -> 143316882.4 | E35: =E33*E34*12 -> 128652277.7 | G35: =G33*G34*12 -> 125694188 | I35: =I33*I34*12 -> 102453234.5 | K35: =K33*K34*12 -> 97532531.4
A36: Less: Credits | C36: -4845414 | E36: -3073249 | G36: -3182681 | I36: -3073249 | K36: -3073249
A37: Less: Recoveries | C37: -2740680 | E37: -2926794 | G37: -4615480 | I37: -2926794 | K37: -2926794
A38: Less: 50% gross child support collections | C38: -17599564 | E38: -18187123 | G38: -16871260 | I38: -18187123.25 | K38: -18187123.25
A39: Add: Child support disregards | C39: 2529821 | E39: 2338561 | G39: 2578875 | I39: 2338561 | K39: 2338561
A40: Add: Burials | C40: 335195 | E40: 325101 | G40: 281216 | I40: 338508 | K40: 338076
A41: Total Work First New Jersey costs | C41: =SUM(C35:C40) -> 120996240.4 | E41: =SUM(E35:E40) -> 107128773.7 | G41: =SUM(G35:G40) -> 103884858 | I41: =SUM(I35:I40) -> 80943137.23 | K41: =SUM(K35:K40) -> 76022002.15
A42: Less: Work First New Jersey county expenditures | C42: -5169834 | E42: =-E41*0.05 -> -5356438.684 | G42: -4350680 | I42: =-I41*0.05 -> -4047156.861 | K42: =-K41*0.05 -> -3801100.107
A43: State Work First New Jersey expenditures | C43: =C41+C42 -> 115826406.4 | E43: =E41+E42 -> 101772335 | G43: =G41+G42 -> 99534178.04 | I43: =I41+I42 -> 76895980.36 | K43: =K41+K42 -> 72220902.04
A45: Emergency Assistance
A46: Average monthly recipients | C46: 20430 | E46: 19139 | G46: 18432 | I46: 12741 | K46: 11600
A47: Average monthly grant | C47: 487.67 | E47: 502.79 | G47: 510.31 | I47: 544.18 | K47: 557.5
A48: Total assistance expenditures | C48: =C46*C47*12 -> 119557177.2 | E48: =E46*E47*12 -> 115474773.7 | G48: =G46*G47*12 -> 112872407 | I48: =I46*I47*12 -> 83200768.56 | K48: =K46*K47*12 -> 77604000
A49: Less: Credits | C49: -721772 | E49: -718489 | G49: -875127 | I49: -767710 | K49: -783993
A50: Net emergency assistance costs | C50: =C48+C49 -> 118835405.2 | E50: =E48+E49 -> 114756284.7 | G50: =G48+G49 -> 111997280 | I50: =I48+I49 -> 82433058.56 | K50: =K48+K49 -> 76820007
A51: Less: County expenditures | C51: -5941770 | E51: =E50*-0.05 -> -5737814.236 | G51: -5599864 | I51: =I50*-0.05 -> -4121652.928 | K51: =K50*-0.05 -> -3841000.35
A52: State Work First New Jersey expenditures | C52: =C50+C51 -> 112893635.2 | E52: =E50+E51 -> 109018470.5 | G52: =G50+G51 -> 106397416 | I52: =I50+I51 -> 78311405.63 | K52: =K50+K51 -> 72979006.65
A54: Supplemental Security Income (SSI)
A55: Average monthly recipients | C55: 191751 | E55: 187366 | G55: 188603 | I55: 187843 | K55: 191137
A56: Average monthly grant | C56: 18.57 | E56: 19.23 | G56: 18.7 | I56: 19.5 | K56: 19.53
A57: Total assistance expenditures | C57: =C55*C56*12 -> 42729792.84 | E57: =E55*E56*12 -> 43236578.16 | G57: =G55*G56*12 -> 42322513.2 | I57: =I55*I56*12 -> 43955262 | K57: =K55*K56*12 -> 44794867.32
A58: Emergency Assistance recipients | C58: 2144 | E58: 2052 | G58: 2128 | I58: 1921 | K58: 1911
A59: Emergency Assistance | C59: 22643470 | E59: =E58*914.97*12 -> 22530221.28 | G59: 23040367 | I59: =I58*914.43*12 -> 21079440.36 | K59: =K58*914.77*12 -> 20977505.64
A60: <SP><SP><SP><SP>Less: Recoveries | C60: -366886 | E60: -385171 | G60: -425272 | I60: -401516 | K60: -401516
A61: <SP><SP><SP><SP><SP><SP><SP><SP>Burials | C61: 14340909 | E61: 14712074 | G61: 13721704 | I61: 14535346 | K61: 14954816
A62: Net SSI expenditures | C62: =SUM(C57,C59,C60,C61) -> 79347285.84 | E62: =SUM(E57,E59,E60,E61) -> 80093702.44 | G62: =SUM(G57,G59,G60,G61) -> 78659312.2 | I62: =SUM(I57,I59,I60,I61) -> 79168532.36 | K62: =SUM(K57,K59,K60,K61) -> 80325672.96
A64: SSI Administrative Expenses | C64: 24701165 | E64: 25418100 | G64: 25354298 | I64: 25564633 | K64: 19959439 | L64: (a)
A66: Supplemental Nutrition Assistance Program
A67: Average monthly households participating | C67: 442235 | E67: 458599 | G67: 455213 | I67: 455213 | K67: 452641
A68: Percent of total authorized households participating | C68: 1 | E68: 1 | G68: 1 | I68: 1 | K68: 1
A69: Average monthly recipients participating | C69: 891100 | E69: 916808 | G69: 907843 | I69: 907843 | K69: 900999
A70: Total value of bonus coupons | C70: 1324780926 | E70: 1316228042 | G70: 1273480586 | I70: 1273480586 | K70: 1236738301
A71: Average monthly value of bonus coupons per person participating | C71: 123.89 | E71: =E70/E69/12 -> 119.6386486 | G71: 116.9 | I71: =I70/I69/12 -> 116.8961838 | K71: =K70/K69/12 -> 114.3858374
A73: Child Care Payments for eligible families
A74: Low income families in Child Care Assistance Program
A75: Average monthly children | C75: 30411 | E75: 35344.80556 | G75: 35510 | I75: 38130.34084 | K75: 39025.06983
A76: Total expenditures | C76: 152842456 | E76: 171436933 | G76: 175036562 | I76: 187192837.6 | K76: 190193643.6
A77: Children placed through protective services
A78: Average monthly children | C78: 2751 | E78: 2729.777778 | G78: 2725 | I78: 2652.684044 | K78: 2633.521043
A79: Total expenditures | C79: 19732087 | E79: 19373237.63 | G79: 19780752 | I79: 19529394.61 | K79: 19133826.05
A80: Active Temporary Assistance for Needy Families (TANF) recipients in work activity
A81: Average monthly children | C81: 6061 | E81: 5229.125 | G81: 5390 | I81: 4254.611717 | K81: 4164.511386
A82: Total expenditures | C82: 37405858 | E82: 31716554.03 | G82: 32134490 | I82: 25989854.99 | K82: 26348347.32
A83: Transitional child care services
A84: Average monthly children | C84: 4815 | E84: 4184.416667 | G84: 4021 | I84: 4111.436986 | K84: 4108.496095
A85: Total expenditures | C85: 26893892 | E85: 23423213.69 | G85: 22804464 | I85: 23689157.25 | K85: 23409061.58
A86: Abbott Child Care Services
A87: Average monthly children | C87: 5169 | E87: 4879.833333 | G87: 4470 | I87: 4107.753973 | K87: 4026.325236
A88: Total expenditures | C88: 20348175 | E88: 16973360.28 | G88: 16967917 | I88: 13810633.77 | K88: 12277561.34
A89: Post Transitional Child Care
A90: Average monthly children | C90: 554 | E90: 582.2083333 | G90: 590 | I90: 504.9988914 | K90: 474.1130428
A91: Total expenditures | C91: 2601632 | E91: 2618855.84 | G91: 2798015 | I91: 2010928.731 | K91: 1818681.757
A92: Total Child Care Payments for eligible families
A93: Average monthly children | C93: =C75+C78+C81+C84+C87+C90 -> 49761 | E93: =E75+E78+E81+E84+E87+E90 -> 52950.16667 | G93: =G75+G78+G81+G84+G87+G90 -> 52706 | I93: =I75+I78+I81+I84+I87+I90 -> 53761.82645 | K93: =K75+K78+K81+K84+K87+K90 -> 54432.03664
A94: Total expenditures | C94: =C91+C85+C82+C79+C76+C88 -> 259824100 | E94: =E91+E85+E82+E79+E76+E88 -> 265542154.4 | G94: =G91+G85+G82+G79+G76+G88 -> 269522200 | I94: =I91+I85+I82+I79+I76+I88 -> 272222807 | K94: =K91+K85+K82+K79+K76+K88 -> 273181121.7
A96: PERSONNEL DATA
A97: Position Data
A98: Filled positions by funding source
A99: State supported | C99: 199 | E99: 191 | G99: 190 | I99: 176 | K99: 199
A100: Federal | C100: 189 | E100: 181 | G100: 194 | I100: 161 | K100: 181
A101: Total positions | C101: =C99+C100 -> 388 | E101: =E99+E100 -> 372 | G101: =G99+G100 -> 384 | I101: =I99+I100 -> 337 | K101: =K99+K100 -> 380
A102: Filled positions by program class
A103: Income Maintenance Management | C103: 388 | E103: 372 | G103: 384 | I103: 337 | K103: 380
A104: Total positions | C104: =C103 -> 388 | E104: =E103 -> 372 | G104: =G103 -> 384 | I104: =I103 -> 337 | K104: =K103 -> 380
A107: Notes:
A108: Actual payroll counts are reported for fiscal years 2014 and 2015 as of December and revised fiscal 2016 as of January. The budget estimate for fiscal 2017 reflects the number of positions funded.
A109: (a) Administration of the SSI program will be transitioned from the federal Social Security Administration to the State of Pennsylvania during fiscal 2017.

Sheet 54-55-7580
A1: Fiscal Year: | B1: 2017
A2: Fund Category: | B2: DSS | C2: Direct State Services
A3: Department: | B3: 54 | C3: Department Of Human Services
A4: Statewide Program: | B4: 55 | C4: Social Services Programs
A5: Organization: | B5: 7580 | C5: Division of the Deaf and Hard of Hearing
A6: Number of Columns: | B6: 4
K7: Budget | M7: Budget
C8: Actual | D8: F | E8: Actual | F8: F | G8: Budgeted | H8: F | I8: Revised | J8: F | K8: Estimate | L8: F | M8: Estimate | N8: F
C9: ="FY " & FiscalYear - 3 -> FY 2014 | D9: N | E9: ="FY " & FiscalYear - 2 -> FY 2015 | F9: N | G9: ="FY " & FiscalYear - 1 -> FY 2016 | H9: N | I9: ="FY " & FiscalYear - 1 -> FY 2016 | J9: N | K9: ="FY " & FiscalYear -> FY 2017 | L9: N | M9: ="FY " & FiscalYear + 1 -> FY 2018 | N9: N
A10: PROGRAM DATA
A11: Services for the Deaf
A12: Total hearing impaired population
A13: Deaf population
A14: Persons served by Interpreter Referral Program
A15: Interpreter requests
A16: Newsletter subscribers
A17: Telecommunication Devices Distributed
A18: Newsletter Distribution
A19: Equipment distribution program - devices distributed
A20: Text telephones, amplified telephones, captioned telephones | C20: 494 | E20: 370 | G20: 500 | I20: 500 | K20: 500
A21: Smoke detectors | C21: 140 | E21: 92 | G21: 155 | I21: 155 | K21: 155
A22: Baby cry signalers | C22: 16 | E22: 6 | G22: 25 | I22: 25 | K22: 25
A23: Artificial larynx devices | C23: 16 | E23: 20 | G23: 20 | I23: 20 | K23: 20
A24: Carbon monoxide detectors | C24: 110 | E24: 86 | G24: 130 | I24: 130 | K24: 130
A26: PERSONNEL DATA
A27: Position Data
A28: Filled positions by funding source
A29: State supported | C29: 8 | E29: 7 | G29: 8 | I29: 5 | K29: 5
A30: Total positions | C30: 8 | E30: 7 | G30: =G29 -> 8 | I30: =I29 -> 5 | K30: =K29 -> 5
A31: Filled positions by program class
A32: Services for the Deaf | C32: 8 | E32: 7 | G32: 8 | I32: 5 | K32: 5
A33: Total positions | C33: 8 | E33: 7 | G33: =G32 -> 8 | I33: =I32 -> 5 | K33: =K32 -> 5
A36: Notes:
A37: Actual payroll counts are reported for fiscal years 2014 and 2015 as of December and revised fiscal 2016 as of January. The budget estimate for fiscal 2017 reflects the number of positions funded.

Sheet 54-76-7500
A1: Fiscal Year: | B1: 2017
A2: Fund Category: | B2: DSS | C2: Direct State Services
A3: Department: | B3: 54 | C3: Department Of Human Services
A4: Statewide Program: | B4: 76 | C4: Management and Administration
A5: Organization: | B5: 7500 | C5: Division of Management and Budget
A6: Number of Columns: | B6: 4
K7: Budget | M7: Budget
C8: Actual | D8: F | E8: Actual | F8: F | G8: Budgeted | H8: F | I8: Revised | J8: F | K8: Estimate | L8: F | M8: Estimate | N8: F
C9: ="FY " & FiscalYear - 3 -> FY 2014 | D9: N | E9: ="FY " & FiscalYear - 2 -> FY 2015 | F9: N | G9: ="FY " & FiscalYear - 1 -> FY 2016 | H9: N | I9: ="FY " & FiscalYear - 1 -> FY 2016 | J9: N | K9: ="FY " & FiscalYear -> FY 2017 | L9: N | M9: ="FY " & FiscalYear + 1 -> FY 2018 | N9: N
A10: PERSONNEL DATA
A11: Affirmative Action data
A12: Male minority | C12: 2733 | E12: 2740 | I12: 2522
A13: Male minority percentage | C13: 0.193 | E13: 0.217 | I13: 0.218
A14: Female minority | C14: 6292 | E14: 6118 | I14: 5407
A15: Female minority percentage | C15: 0.444 | E15: 0.485 | I15: 0.468
A16: Total minority | C16: 9025 | E16: 8858 | I16: =I12+I14 -> 7929
A17: Total minority percentage | C17: 0.637 | E17: 0.703 | I17: 0.686
A19: Position Data
A20: Filled positions by funding source
A21: State supported | C21: 319 | E21: 299 | G21: 306 | I21: 295 | K21: 295
A22: Federal | C22: 175 | E22: 162 | G22: 159 | I22: 174 | K22: 174
A23: All other | C23: 9 | E23: 8 | G23: 9 | I23: 8 | K23: 8
A24: Total positions | C24: =C23+C22+C21 -> 503 | E24: =E23+E22+E21 -> 469 | G24: =G23+G22+G21 -> 474 | H24: =H23+H22+H21 -> 0 | I24: =I23+I22+I21 -> 477 | K24: =SUM(K21:K23) -> 477
A25: Filled positions by program class
A26: Institutional Security Services | C26: 95 | E26: 88 | G26: 79 | I26: 80 | K26: 79
A27: Administration and Support Services | C27: 408 | E27: 381 | G27: 395 | I27: 397 | K27: 398
A28: Total positions | C28: =C27+C26 -> 503 | E28: =SUM(E26:E27) -> 469 | G28: =SUM(G26:G27) -> 474 | H28: =SUM(H26:H27) -> 0 | I28: =SUM(I26:I27) -> 477 | K28: =SUM(K26:K27) -> 477
A30: Notes:
A31: Actual payroll counts are reported for fiscal years 2014 and 2015 as of December and revised fiscal 2016 as of January. The budget estimate for fiscal 2017 reflects the number of positions funded.

Sheet 62-51
A1: Fiscal Year: | B1: 2017
A2: Fund Category: | B2: DSS | C2: Direct State Services
A3: Department: | B3: 62 | C3: Department Of Labor And Workforce Development
A4: Statewide Program: | B4: 51 | C4: Economic Planning and Development
A5: Organization:
A6: Number of Columns: | B6: 4
K7: Budget | M7: Budget
C8: Actual | D8: F | E8: Actual | F8: F | G8: Budgeted | H8: F | I8: Revised | J8: F | K8: Estimate | L8: F | M8: Estimate | N8: F
C9: ="FY " & FiscalYear - 3 -> FY 2014 | D9: N | E9: ="FY " & FiscalYear - 2 -> FY 2015 | F9: N | G9: ="FY " & FiscalYear - 1 -> FY 2016 | H9: N | I9: ="FY " & FiscalYear - 1 -> FY 2016 | J9: N | K9: ="FY " & FiscalYear -> FY 2017 | L9: N | M9: ="FY " & FiscalYear + 1 -> FY 2018 | N9: N
A10: PERSONNEL DATA
A11: Affirmative Action data (a)
A12: Male minority | C12: 308 | E12: 312 | I12: 312
A13: Male minority percentage | C13: 0.105 | E13: 0.111 | I13: 0.114
A14: Female minority | C14: 967 | E14: 976 | I14: 976
A15: Female minority percentage | C15: 0.331 | E15: 0.346 | I15: 0.358
A16: Total minority | C16: 1275 | E16: 1288 | I16: 1288
A17: Total minority percentage | C17: 0.436 | E17: 0.457 | I17: 0.472
A19: Position Data
A20: Filled positions by funding source
A21: State supported | C21: 27 | E21: 26 | G21: 28 | I21: 26 | K21: 28
A22: Federal | C22: 339 | E22: 308 | G22: 322 | I22: 308 | K22: 303
A23: Total positions | C23: 366 | E23: =SUM(E21:E22) -> 334 | G23: =SUM(G21:G22) -> 350 | H23: =SUM(H21:H22) -> 0 | I23: =SUM(I21:I22) -> 334 | K23: =SUM(K21:K22) -> 331
A24: Filled positions by program class
A25: Research and Information | C25: 68 | E25: 58 | G25: 62 | I25: 60 | K25: 56
A26: Administration and Support Services | C26: 298 | E26: 276 | G26: 288 | I26: 274 | K26: 275
A27: Total positions | C27: 366 | E27: =SUM(E25:E26) -> 334 | G27: =SUM(G25:G26) -> 350 | H27: =SUM(H25:H26) -> 0 | I27: =SUM(I25:I26) -> 334 | K27: =SUM(K25:K26) -> 331
A29: Notes:
A30: Actual payroll counts are reported for fiscal years 2014 and 2015 as of December and revised fiscal 2016 as of January. The budget estimate for fiscal 2017 reflects the number of positions funded.
A31: (a) Affirmative action data includes all of Labor and Workforce Development except the Civil Service Commission, which is reported separately.

Sheet 62-53
A1: Fiscal Year: | B1: 2017
A2: Fund Category: | B2: DSS | C2: Direct State Services
A3: Department: | B3: 62 | C3: Department Of Labor And Workforce Development
A4: Statewide Program: | B4: 53 | C4: Economic Assistance and Security
A5: Organization:
A6: Number of Columns: | B6: 4
K7: Budget | M7: Budget
C8: Actual | D8: F | E8: Actual | F8: F | G8: Budgeted | H8: F | I8: Revised | J8: F | K8: Estimate | L8: F | M8: Estimate | N8: F
C9: ="FY " & FiscalYear - 3 -> FY 2014 | D9: N | E9: ="FY " & FiscalYear - 2 -> FY 2015 | F9: N | G9: ="FY " & FiscalYear - 1 -> FY 2016 | H9: N | I9: ="FY " & FiscalYear - 1 -> FY 2016 | J9: N | K9: ="FY " & FiscalYear -> FY 2017 | L9: N | M9: ="FY " & FiscalYear + 1 -> FY 2018 | N9: N
A10: PROGRAM DATA
A11: Unemployment Insurance
A12: Unemployment Insurance program
A13: Covered workers | C13: 3779189 | E13: 3816400 | G13: 3839500 | I13: 3853600 | K13: 3895900
A14: Net benefits paid (millions) (a) | C14: 2585.4 | E14: 2353.3 | G14: 2536.8 | I14: 2014.5 | K14: 2016.1
A15: Average insured unemployed rate | C15: 0.035 | E15: 0.031 | G15: 0.033 | I15: 0.028 | K15: 0.027
A16: Initial claims | C16: 563796 | E16: 542009 | G16: 538500 | I16: 492900 | K16: 485600
A17: Average weekly benefit payment | C17: 380 | E17: 385 | G17: 394 | I17: 393 | K17: 400
A18: Federal Emergency Unemployment Compensation (b)
A19: Initial claims | C19: 100841 | E19: 0 | G19: 0 | I19: 0 | K19: 0
A20: Disability Determination
A21: Total claims adjudicated | C21: 96302 | E21: 96376 | G21: 102920 | I21: 93021 | K21: 95233
A22: Social Security Disability payments (millions) (c) | C22: 3342 | E22: 3430 | G22: 3543 | I22: 3543 | K22: 3645
A23: Average cost per case | C23: 646.71 | E23: 640.87 | G23: 621.93 | I23: 676.92 | K23: 654.83
A24: State Disability Insurance Plan
A25: Covered workers | C25: 2623500 | E25: 2640000 | G25: 2669600 | I25: 2665600 | K25: 2695000
A26: Claims received | C26: 159470 | E26: 152166 | G26: 161000 | I26: 149100 | K26: 146100
A27: Benefits paid (millions) | C27: 418.4 | E27: 409.4 | G27: 415.9 | I27: 405.8 | K27: 402.1
A28: Cost per claim processed | C28: 149 | E28: 142 | G28: 150 | I28: 145 | K28: 148
A29: Average weekly benefit payment | C29: 435 | E29: 440 | G29: 445 | I29: 446 | K29: 452
A30: Private Disability Insurance Plan
A31: Covered workers | C31: 682000 | E31: 707500 | G31: 694000 | I31: 714300 | K31: 722200
A32: Plans in force | C32: 6078 | E32: 6355 | G32: 6100 | I32: 6500 | K32: 6600
A33: Disability During Unemployment
A34: Disability During Unemployment
A35: Claims received | C35: 9021 | E35: 8826 | G35: 9000 | I35: 8850 | K35: 8850
A36: Benefits paid (millions) | C36: 18.3 | E36: 19.3 | G36: 18.4 | I36: 19.5 | K36: 19.5
A37: Cost per claim processed | C37: 285 | E37: 233 | G37: 288 | I37: 240 | K37: 240
A38: Family Leave Insurance
A39: State Plan
A40: Covered workers | C40: 3760600 | E40: 3803300 | G40: 3826000 | I40: 3840100 | K40: 3882000
A41: Claims received | C41: 46128 | E41: 47286 | G41: 49000 | I41: 48700 | K41: 50200
A42: Benefits paid (millions) | C42: 83.1 | E42: 85.9 | G42: 89.9 | I42: 89.3 | K42: 92.9
A43: Cost per claim processed | C43: 53 | E43: 39 | G43: 54 | I43: 40 | K43: 40
A44: Private Plan
A45: Covered workers | C45: 12666 | E45: 13073 | G45: 13500 | I45: 13500 | K45: 13900
A46: Plans in force | C46: 113 | E46: 118 | G46: 120 | I46: 120 | K46: 125
A47: Workers' Compensation
A48: First reports of accident received | C48: 142740 | E48: 138316 | G48: 128909 | H48: (f) | I48: 126856 | J48: (d) | K48: 135971 | L48: (e)
A49: Cases pending July l | C49: 96118 | E49: 98973 | G49: 99167 | I49: 100086 | K49: 103510
A50: Cases filed, reopened, reassigned | C50: 42706 | E50: 39911 | G50: 40977 | H50: (f) | I50: 39876 | J50: (d) | K50: 40831 | L50: (e)
A51: Cases closed | C51: 39851 | E51: 38798 | G51: 38996 | H51: (f) | I51: 36452 | J51: (d) | K51: 38367 | L51: (e)
A52: Cases pending June 30 | C52: 98973 | E52: 100086 | G52: 101148 | I52: 103510 | K52: 105974
A53: Special Compensation
A54: Balance July l | C54: 2891 | E54: 2782 | G54: 2704 | I54: 2704 | K54: 2494
A55: Verified petitions assigned | C55: 1023 | E55: 1016 | G55: 1171 | I55: 864 | K55: 863
A56: Advisory reports recovered | C56: 1132 | E56: 1094 | G56: 1106 | I56: 1074 | K56: 978
A57: Balance June 30 | C57: 2782 | E57: 2704 | G57: 2769 | I57: 2494 | K57: 2379
A58: Beneficiaries | C58: 9854 | E58: 9961 | G58: 10047 | I58: 10047 | K58: 9814
A60: PERSONNEL DATA
A61: Position Data
A62: Filled positions by funding source
A63: Federal | C63: 1266 | E63: 1228 | G63: 1218 | I63: 1172 | K63: 1177
A64: All other | C64: 329 | E64: 320 | G64: 321 | I64: 301 | K64: 311
A65: Total positions | C65: =SUM(C63:C64) -> 1595 | E65: =SUM(E63:E64) -> 1548 | G65: =SUM(G63:G64) -> 1539 | H65: =SUM(H63:H64) -> 0 | I65: =SUM(I63:I64) -> 1473 | K65: =SUM(K63:K64) -> 1488
A66: Filled positions by program class
A67: Unemployment Insurance | C67: 947 | E67: 902 | G67: 879 | I67: 865 | K67: 865
A68: Disability Determination | C68: 319 | E68: 326 | G68: 339 | I68: 307 | K68: 312
A69: State Disability Insurance Plan | C69: 141 | E69: 136 | G69: 134 | I69: 123 | K69: 131
A70: Private Disability Insurance Plan | C70: 41 | E70: 44 | G70: 42 | I70: 42 | K70: 45
A71: Workers' Compensation | C71: 130 | E71: 123 | G71: 128 | I71: 121 | K71: 120
A72: Special Compensation Fund | C72: 17 | E72: 17 | G72: 17 | I72: 15 | K72: 15
A73: Total positions | C73: =SUM(C66:C72) -> 1595 | E73: =SUM(E67:E72) -> 1548 | G73: 1544 | H73: 1544 | I73: =SUM(I67:I72) -> 1473 | K73: =SUM(K67:K72) -> 1488
A76: Notes:
A77: Actual payroll counts are reported for fiscal years 2014 and 2015 as of December and revised fiscal 2016 as of January. The budget estimate for fiscal 2017 reflects the number of positions funded.
A78: (a) Includes Additional Benefits During Training (ABT) under the Workforce Development Partnership Program.
A79: (b) The Federal Emergency Unemployment Compensation Program (EUC) became effective in July 2008 and ended in December 2013.
A80: (c) Paid by federal Social Security Administration.
A81: (d) Calculated based on three-month filing/closure experience for fiscal 2016.
A82: (e) Estimated based on average of prior three fiscal years.

Sheet 62-54
A1: Fiscal Year: | B1: 2017
A2: Fund Category: | B2: DSS | C2: Direct State Services
A3: Department: | B3: 62 | C3: Department Of Labor And Workforce Development
A4: Statewide Program: | B4: 54 | C4: Manpower and Employment Services
A5: Organization:
A6: Number of Columns: | B6: 4
K7: Budget | M7: Budget
C8: Actual | D8: F | E8: Actual | F8: F | G8: Budgeted | H8: F | I8: Revised | J8: F | K8: Estimate | L8: F | M8: Estimate | N8: F
C9: ="FY " & FiscalYear - 3 -> FY 2014 | D9: N | E9: ="FY " & FiscalYear - 2 -> FY 2015 | F9: N | G9: ="FY " & FiscalYear - 1 -> FY 2016 | H9: N | I9: ="FY " & FiscalYear - 1 -> FY 2016 | J9: N | K9: ="FY " & FiscalYear -> FY 2017 | L9: N | M9: ="FY " & FiscalYear + 1 -> FY 2018 | N9: N
A10: PROGRAM DATA
A11: Vocational Rehabilitation Services
A12: Total persons served | C12: 28605 | E12: 31633 | G12: 29760 | I12: 31633 | K12: 31633
A13: Total continuing to be served | C13: 16324 | E13: 18775 | G13: 16983 | I13: 18775 | K13: 18775
A14: Total persons rehabilitated | C14: 4439 | E14: 3822 | G14: 4441 | I14: 3822 | K14: 3822
A15: Average cost per rehabilitation | C15: 3661 | E15: 3661 | G15: 3661 | I15: 3661 | K15: 3661
A16: Earnings (weekly)
A17: Before rehabilitation | C17: 61 | E17: 62 | G17: 63 | I17: 63 | K17: 63
A18: After rehabilitation | C18: 370 | E18: 345 | G18: 384 | I18: 345 | K18: 345
A19: Sheltered Workshops
A20: Client slots (a) | C20: 2668 | E20: 3345 | G20: 3345 | H20: (a) | I20: 3323 | K20: 3323
A21: Appropriation per client slot (a) | C21: 7871 | E21: 7997 | G21: 7997 | H21: (a) | I21: 9082 | K21: 9082
A22: Independent Living Rehabilitation
A23: Persons served | C23: 14500 | E23: 14500 | G23: 14500 | I23: 14500 | K23: 14500
A24: Cost per person | C24: 70 | E24: 70 | G24: 70 | I24: 70 | K24: 70
A25: Employment Services
A26: Job openings received | C26: 165655 | E26: 238250 | G26: 165000 | I26: 240000 | K26: 240000
A27: Individuals entered employment | C27: 87345 | E27: 86203 | G27: 90000 | I27: 87500 | K27: 87500
A28: Individuals receiving career guidance | C28: 39305 | E28: 28864 | G28: 40000 | I28: 30000 | K28: 30000
A29: Disabled Veterans Outreach program
A30: Veterans entered employment | C30: 4618 | E30: 4243 | G30: 5000 | I30: 4250 | K30: 4250
A31: Veterans receiving career guidance | C31: 1678 | E31: 1369 | G31: 2000 | I31: 1500 | K31: 1500
A32: Employment and Training Services
A33: Workforce Development Partnership Project
A34: Customized training grants (millions) | C34: 14 | E34: 15 | G34: 15 | I34: 15 | K34: 15
A35: Individuals trained | C35: 48275 | E35: 50000 | G35: 50000 | I35: 50000 | K35: 50000
A36: Cost per individual | C36: 290 | E36: 300 | G36: 300 | I36: 300 | K36: 300
A37: Companies served | C37: 125 | E37: 200 | G37: 200 | I37: 200 | K37: 200
A38: Individual training grants-displaced workers (millions) | C38: 12 | E38: 15 | G38: 15 | I38: 15 | K38: 15
A39: Individuals trained | C39: 1556 | E39: 2000 | G39: 2000 | I39: 2000 | K39: 2000
A40: Cost per individual (b) | C40: 7712 | E40: 7500 | G40: 7500 | I40: 7500 | K40: 7500
A41: Workforce Investment Act
A42: Total participants | C42: 141232 | E42: 150000 | G42: 150000 | I42: 150000 | K42: 150000
A43: Total job placements | C43: 7513 | E43: 8000 | G43: 8000 | I43: 8000 | K43: 8000
A44: Work First New Jersey (WFNJ) Activities (c)
A45: Individuals receiving Temporary Assistance for Needy
A46: Families (TANF) participating in:
A47: Educational programs | C47: 4468 | E47: 1677 | G47: 3612 | I47: 1727 | K47: 1779
A48: Job search activities | C48: 9568 | E48: 5500 | G48: 11670 | I48: 5665 | K48: 5835
A49: On-the-job training | C49: 372 | E49: 294 | G49: 300 | I49: 303 | K49: 312
A50: Vocational training programs | C50: 4124 | E50: 3372 | G50: 7830 | I50: 3473 | K50: 3577
A51: Community Work Experience Program | C51: 6247 | E51: 4423 | G51: 14646 | I51: 4556 | K51: 4692
A52: Individuals receiving General Assistance (GA), and/or
A53: Food Stamps, participating in:
A54: Educational programs | C54: 2315 | E54: 1627 | G54: 3204 | I54: 1676 | K54: 1726
A55: Job search activities | C55: 8358 | E55: 3170 | G55: 13860 | I55: 3265 | K55: 3363
A56: On-the-job training | C56: 285 | E56: 237 | G56: 326 | I56: 244 | K56: 251
A57: Vocational training programs | C57: 3292 | E57: 2709 | G57: 8933 | I57: 2790 | K57: 2874
A58: Community Work Experience program | C58: 2612 | E58: 1935 | G58: 8040 | I58: 1993 | K58: 2053
A59: Cases closed due to employment
A60: Temporary Assistance for Needy Families (TANF) | C60: 7200 | E60: 6441 | G60: 6441 | I60: 6258 | K60: 6446
A61: General Assistance (GA) | C61: 870 | E61: 870 | G61: 870 | I61: 870 | K61: 896
A62: Workplace Standards
A63: Mine, pit, quarry and explosive inspections | C63: 2423 | E63: 2450 | G63: 2450 | I63: 2450 | K63: 2450
A64: Mechanical Inspection
A65: Boilers inspected by State | C65: 28273 | E65: 28600 | G65: 28600 | I65: 28600 | K65: 28600
A66: Boilers inspected by insurance inspectors | C66: 68114 | E66: 68200 | G66: 68200 | I66: 68200 | K66: 68200
A67: Asbestos Control and Licensing
A68: Employer licenses issued | C68: 181 | E68: 200 | G68: 200 | I68: 200 | K68: 200
A69: Employee permits issued | C69: 2150 | E69: 2200 | G69: 2200 | I69: 2200 | K69: 2200
A70: Crane Operator Inspections | C70: 592 | E70: 550 | G70: 550 | I70: 550 | K70: 550
A71: OSHA On-site Consultant Services
A72: Consultations | C72: 451 | E72: 462 | G72: 473 | I72: 465 | K72: 465
A73: Hazards identified | C73: 1057 | E73: 1036 | G73: 1200 | I73: 1050 | K73: 1050
A74: Mine Safety Training
A75: Persons trained | C75: 2356 | E75: 1749 | G75: 2360 | I75: 1000 | K75: 1000
A76: Wage and Hour, Child Labor, and Public Contracts
A77: Complaints received | C77: 7690 | E77: 7143 | G77: 8000 | I77: 7500 | K77: 7500
A78: Formal complaints filed | C78: 2085 | E78: 1826 | G78: 2500 | I78: 2000 | K78: 2000
A79: Employees receiving back wages | C79: 9006 | E79: 11212 | G79: 8500 | I79: 8000 | K79: 8000
A80: Net back wages paid to employees (millions) | C80: 8.3 | E80: 8.4 | G80: 8 | I80: 8 | K80: 8
A81: Public Employees Safety
A82: Inspections | C82: 737 | E82: 1000 | G82: 1000 | I82: 1000 | K82: 1000
A83: Hazards identified | C83: 4952 | E83: 5000 | G83: 5000 | I83: 5000 | K83: 5000
A84: Apparel Registration
A85: Registrations issued | C85: 285 | E85: 277 | G85: 300 | I85: 300 | K85: 300
A86: Firms with violations | C86: 32 | E86: 15 | G86: 25 | I86: 20 | K86: 20
A87: Public Works Contractor Registration Act
A88: Registrations issued | C88: 8112 | E88: 7204 | G88: 10000 | I88: 8000 | K88: 8000
A89: Public Sector Labor Relations
A90: Dispute Disposition
A91: Balance July l | C91: 2356 | E91: 2310 | G91: 2248 | I91: 2307 | K91: 2322
A92: Filed | C92: 1894 | E92: 1872 | G92: 1995 | I92: 1900 | K92: 1900
A93: Disposed | C93: 1940 | E93: 1875 | G93: 1984 | I93: 1885 | K93: 1910
A94: Unfair practices and representation | C94: 482 | E94: 447 | G94: 500 | I94: 450 | K94: 475
A95: Mediation, fact-finding and arbitration | C95: 1258 | E95: 1226 | G95: 1262 | I95: 1225 | K95: 1225
A96: Scope of negotiation and issue definition | C96: 94 | E96: 80 | G96: 90 | I96: 90 | K96: 90
A97: Other formal decisions | C97: 106 | E97: 122 | G97: 132 | I97: 120 | K97: 120
A98: Balance June 30 | C98: 2310 | E98: 2307 | G98: 2259 | I98: 2322 | K98: 2312
A99: Appeal Board
A100: Balance July 1 | C100: 36 | E100: 41 | G100: 36 | I100: 55 | K100: 50
A101: Petitions filed | C101: 22 | E101: 14 | G101: 15 | I101: 15 | K101: 15
A102: Petitions disposed | C102: 17 | E102: 0 | G102: 20 | I102: 20 | K102: 20
A103: Balance June 30 | C103: 41 | E103: 55 | G103: 31 | I103: 50 | K103: 45
A105: PERSONNEL DATA
A106: Position data
A107: Filled positions by funding source
A108: State supported | C108: 189 | E108: 184 | G108: 183 | I108: 180 | K108: 180
A109: Federal | C109: 746 | E109: 724 | G109: 727 | I109: 720 | K109: 718
A110: All other | C110: 28 | E110: 25 | G110: 28 | I110: 21 | K110: 21
A111: Total positions | C111: =SUM(C108:C110) -> 963 | E111: =SUM(E108:E110) -> 933 | G111: =SUM(G108:G110) -> 938 | I111: =SUM(I108:I110) -> 921 | K111: =SUM(K108:K110) -> 919
A112: Filled positions by program class
A113: Vocational Rehabilitation Services | C113: 281 | E113: 271 | G113: 271 | I113: 269 | K113: 269
A114: Employment Services | C114: 426 | E114: 416 | G114: 420 | I114: 410 | K114: 403
A115: Employment and Training Services | C115: 43 | E115: 39 | G115: 39 | I115: 39 | K115: 41
A116: Workplace Standards | C116: 176 | E116: 172 | G116: 171 | I116: 167 | K116: 169
A117: Public Sector Labor Relations | C117: 33 | E117: 32 | G117: 34 | I117: 33 | K117: 34
A118: Private Sector Labor Relations | C118: 4 | E118: 3 | G118: 3 | I118: 3 | K118: 3
A119: Total positions | C119: =SUM(C113:C118) -> 963 | E119: =SUM(E113:E118) -> 933 | G119: =SUM(G113:G118) -> 938 | I119: =SUM(I113:I118) -> 921 | K119: =SUM(K113:K118) -> 919
A122: Notes:
A123: Actual payroll counts are reported for fiscal years 2014 and 2015 as of December and revised fiscal 2016 as of January. The budget estimate for fiscal 2017 reflects the number of positions funded.
A124: (a) Consistent with the plan jointly developed by the Commissioner of Human Services and the Commissioner of Labor and Workforce Development and submitted to the Joint Budget Oversight Committee, beginning with fiscal 2015, program data have been adjusted for the transfer of sheltered workshop services, including transportation costs from the Department of Human Services, to the Department of Labor and Workforce Development.
A125: (b) Beginning in fiscal 2014, "Cost per individual" includes a placement component.
A126: (c) Temporary Assistance to Needy Families (TANF) and General Assistance (GA) data provided by the Department of Human Services, Division of Family Development (DFD).

Sheet 62-74
A1: Fiscal Year: | B1: 2017
A2: Fund Category: | B2: DSS | C2: Direct State Services
A3: Department: | B3: 62 | C3: Department Of Labor And Workforce Development
A4: Statewide Program: | B4: 74 | C4: General Government Services
A5: Organization:
A6: Number of Columns: | B6: 4
K7: Budget | M7: Budget
C8: Actual | D8: F | E8: Actual | F8: F | G8: Budgeted | H8: F | I8: Revised | J8: F | K8: Estimate | L8: F | M8: Estimate | N8: F
C9: ="FY " & FiscalYear - 3 -> FY 2014 | D9: N | E9: ="FY " & FiscalYear - 2 -> FY 2015 | F9: N | G9: ="FY " & FiscalYear - 1 -> FY 2016 | H9: N | I9: ="FY " & FiscalYear - 1 -> FY 2016 | J9: N | K9: ="FY " & FiscalYear -> FY 2017 | L9: N | M9: ="FY " & FiscalYear + 1 -> FY 2018 | N9: N
A10: PROGRAM DATA
A11: General Administration, Agency Services, Test Development and Analytics
A12: Open competitive examinations announced | C12: 948 | E12: 823 | G12: 1000 | I12: 800 | K12: 750
A13: Applications received | C13: 59536 | E13: 43005 | G13: 80000 | I13: 55000 | K13: 60000
A14: Candidates scheduled | C14: 46095 | E14: 25096 | G14: 60000 | I14: 35000 | K14: 45000
A15: Eligibles produced | C15: 42500 | E15: 13693 | G15: 50000 | I15: 25000 | K15: 35000
A16: Appointments from certifications
A17: State | C17: 3413 | E17: 2766 | G17: 3500 | I17: 2750 | K17: 2750
A18: Local | C18: 4508 | E18: 5542 | G18: 5000 | I18: 5000 | K18: 5000
A19: State service provisional appointees pending open competitive examination | C19: 252 | E19: 249 | G19: 250 | I19: 245 | K19: 240
A20: Promotional examinations announced | C20: 2480 | E20: 2542 | G20: 2500 | I20: 2500 | K20: 2500
A21: Applications received | C21: 14390 | E21: 14252 | G21: 15000 | I21: 14300 | K21: 14300
A22: Candidates scheduled | C22: 8928 | E22: 9528 | G22: 9000 | I22: 8500 | K22: 8500
A23: Eligibles produced | C23: 11850 | E23: 10797 | G23: 12000 | I23: 12500 | K23: 12000
A24: Promotions made (State) | C24: 2484 | E24: 1999 | G24: 2500 | I24: 2000 | K24: 2000
A25: Titles consolidated or abolished | C25: 57 | E25: 5 | G25: 25 | I25: 25 | K25: 25
A26: State service | C26: 31 | E26: 5 | G26: 10 | I26: 10 | K26: 10
A27: Local service | C27: 26 | E27: 0 | G27: 15 | I27: 15 | K27: 15
A28: Calendar days from request to test announcement
A29: Active job announcements older than 6 months | C29: 0.052 | E29: 0.028 | G29: 0.075 | I29: 0.05 | K29: 0.04
A30: Calendar days to date of list issuance - non-public safety | C30: 135 | E30: 118 | G30: 110 | I30: 115 | K30: 110
A31: Calendar days to date of list issuance - public safety
A32: Law enforcement open competitive | C32: 180 | E32: 0 | G32: 180 | I32: 195 | K32: 190
A33: Law enforcement promotional | C33: 260 | E33: 600 | G33: 300 | I33: 250 | K33: 250
A34: Fire service open competitive | C34: 0 | E34: 0 | G34: 270 | I34: 195 | K34: 0
A35: Fire service promotional | C35: 325 | E35: 232 | G35: 300 | I35: 300 | K35: 300
A36: Examinations developed and processed
A37: Assembled open competitive | C37: 167 | E37: 133 | G37: 150 | I37: 120 | K37: 110
A38: Assembled promotional | C38: 484 | E38: 511 | G38: 500 | I38: 500 | K38: 500
A39: Unassembled open competitive | C39: 689 | E39: 697 | G39: 820 | I39: 650 | K39: 600
A40: Unassembled promotional | C40: 1661 | E40: 1257 | G40: 1800 | I40: 1100 | K40: 1050
A41: Lists issued
A42: Open Competitive examinations | C42: 861 | E42: 839 | G42: 900 | I42: 800 | K42: 750
A43: Promotional examinations | C43: 2243 | E43: 1857 | G43: 2300 | I43: 1500 | K43: 1450
A44: Announcements processed under promotional
A45: Examination waivers
A46: State symbols | C46: 68 | E46: 218 | G46: 80 | I46: 350 | K46: 400
A47: Local symbols | C47: 50 | E47: 378 | G47: 70 | I47: 450 | K47: 500
A48: Separate test dates | C48: 114 | E48: 108 | G48: 115 | I48: 100 | K48: 100
A49: Applicants administered make-up examinations | C49: 579 | E49: 307 | G49: 600 | I49: 300 | K49: 300
A50: Applicants administered exam review | C50: 457 | E50: 670 | G50: 500 | I50: 700 | K50: 700
A51: Layoff plans acted upon within 30 days | C51: 1 | E51: 1 | G51: 1 | I51: 1 | K51: 1
A52: Workforce Initiatives and Employment Development
A53: Employee advisory service
A54: Number of clients | C54: 1863 | E54: 1933 | G54: 1200 | I54: 1500 | K54: 1500
A55: Number of counseling sessions | C55: 2396 | E55: 2281 | G55: 2500 | I55: 2300 | K55: 2300
A56: Training
A57: Trainees, alternative technologies | C57: 49084 | E57: 63831 | G57: 50000 | I57: 50000 | K57: 50000
A58: Contact hours, alternative technologies | C58: 98168 | E58: 127662 | G58: 101000 | I58: 101000 | K58: 101000
A59: Trainees, classroom | C59: 4721 | E59: 4717 | G59: 1400 | I59: 2000 | K59: 2000
A60: Contact hours, classroom | C60: 45012 | E60: 37333 | G60: 28331 | I60: 28331 | K60: 28331
A61: Appeals and Regulatory Affairs
A62: Written record appeals
A63: Total received | C63: 2549 | E63: 2702 | G63: 2675 | I63: 2750 | K63: 2750
A64: Total disposed | C64: 2893 | E64: 2939 | G64: 2730 | I64: 2885 | K64: 2885
A65: Pending | C65: 1100 | E65: 863 | G65: 1045 | I65: 728 | K65: 728
A66: Written record appeals completed within 6 months | C66: 0.779 | E66: 0.857 | G66: 0.75 | I66: 0.85 | K66: 0.85
A67: Hearings and major disciplinary matters | C67: 1188 | E67: 1130 | G67: 1225 | I67: 1150 | K67: 1150
A69: PERSONNEL DATA
A70: Affirmative Action data
A71: Male minority | C71: 25 | E71: 30 | I71: 35
A72: Male minority percentage | C72: 0.102 | E72: 0.128 | I72: 0.143
A73: Female minority | C73: 71 | E73: 67 | I73: 64
A74: Female minority percentage | C74: 0.289 | E74: 0.286 | I74: 0.261
A75: Total minority | C75: 96 | E75: 97 | I75: 99
A76: Total minority percentage | C76: 0.39 | E76: 0.415 | I76: 0.404
A78: Position Data
A79: Filled positions by funding source
A80: State supported | C80: 246 | E80: 234 | G80: 236 | I80: 245 | K80: 246
A81: Total positions | C81: 246 | E81: 234 | G81: 236 | I81: 245 | K81: 246
A82: Filled positions by program class
A83: General Administration, Agency Services, Test Development and Analytics | C83: 220 | E83: 210 | G83: 214 | I83: 223 | K83: 223
A84: Appeals and Regulatory Affairs | C84: 26 | E84: 24 | G84: 22 | I84: 22 | K84: 23
A85: Total Positions | C85: 246 | E85: 234 | G85: 236 | I85: 245 | K85: 246
A88: Notes:
A89: Actual payroll counts are reported for fiscal years 2014 and 2015 as of December and revised fiscal 2016 as of January. The budget estimate for fiscal year 2017 reflects the number of positions funded.

Sheet 66-12
A1: Fiscal Year: | B1: 2017
A2: Fund Category: | B2: DSS | C2: Direct State Services
A3: Department: | B3: 66 | C3: Department Of Law And Public Safety
A4: Statewide Program: | B4: 12 | C4: Law Enforcement
A5: Organization:
A6: Number of Columns: | B6: 4
K7: Budget | M7: Budget
C8: Actual | D8: F | E8: Actual | F8: F | G8: Budgeted | H8: F | I8: Revised | J8: F | K8: Estimate | L8: F | M8: Estimate | N8: F
C9: ="FY " & FiscalYear - 3 -> FY 2014 | D9: N | E9: ="FY " & FiscalYear - 2 -> FY 2015 | F9: N | G9: ="FY " & FiscalYear - 1 -> FY 2016 | H9: N | I9: ="FY " & FiscalYear - 1 -> FY 2016 | J9: N | K9: ="FY " & FiscalYear -> FY 2017 | L9: N | M9: ="FY " & FiscalYear + 1 -> FY 2018 | N9: N
A10: PROGRAM DATA
A11: State Police Operations
A12: Investigations
A13: Criminal | C13: 20300 | E13: 19017 | G13: 20600 | I13: 20600 | K13: 20600
A14: Accident | C14: 40000 | E14: 42364 | G14: 40000 | I14: 40000 | K14: 40000
A15: General | C15: 720000 | E15: 723550 | G15: 730000 | I15: 730000 | K15: 730000
A16: Driving While Intoxicated (DWI) arrests | C16: 6000 | E16: 6127 | G16: 6500 | I16: 6500 | K16: 6500
A17: Aid to motorists | C17: 98000 | E17: 92486 | G17: 102000 | I17: 102000 | K17: 103000
A18: Commercial vehicles inspected | C18: 30918 | E18: 30704 | G18: 32000 | I18: 32000 | K18: 32000
A19: Commercial vehicle inspection summonses | C19: 4560 | E19: 4231 | G19: 4000 | I19: 4200 | K19: 4200
A20: Commercial vehicles weighed | C20: 657401 | E20: 564163 | G20: 600000 | I20: 600000 | K20: 600000
A21: Commercial vehicle weight summonses | C21: 1185 | E21: 1109 | G21: 1900 | I21: 1200 | K21: 1300
A22: Commercial vehicles taken out of service | C22: 4269 | E22: 3799 | G22: 4000 | I22: 4000 | K22: 4000
A23: Intelligence section/Organized crime investigations | C23: 673 | E23: 766 | G23: 800 | I23: 750 | K23: 800
A24: Number of arrests | C24: 1152 | E24: 1498 | G24: 1350 | I24: 1300 | K24: 1450
A25: Racetrack Unit investigations | C25: 22 | E25: 15 | G25: 25 | I25: 25 | K25: 25
A26: Polygraph examinations | C26: 250 | E26: 183 | G26: 250 | I26: 195 | K26: 195
A27: Arson investigations | C27: 18 | E27: 20 | G27: 20 | I27: 20 | K27: 15
A28: Arson arrests | C28: 3 | E28: 5 | G28: 5 | I28: 5 | K28: 3
A29: Property damage (in millions) | C29: 1.8 | E29: 2 | G29: 2 | I29: 2 | K29: 0.5
A30: Auto Unit investigations | C30: 59 | D30: (a) | E30: 159 | G30: 140 | I30: 175 | K30: 180
A31: Auto Unit arrests | C31: 43 | D31: (a) | E31: 41 | G31: 65 | I31: 55 | K31: 60
A32: Recovered vehicles | C32: 299 | D32: (a) | E32: 228 | G32: 215 | I32: 225 | K32: 230
A33: Recovered property value (in millions) | C33: 13.7 | D33: (a) | E33: 7.46 | G33: 8.17 | I33: 9 | K33: 8
A34: Major crime investigations | C34: 151 | E34: 160 | G34: 160 | I34: 160 | K34: 175
A35: Fugitive investigations | C35: 240 | E35: 225 | G35: 260 | I35: 260 | K35: 265
A36: Cleared by arrest | C36: 350 | E36: 334 | G36: 370 | I36: 370 | K36: 370
A37: Missing persons complaints | C37: 1080 | E37: 1065 | G37: 1095 | I37: 1085 | K37: 1080
A38: Missing persons located | C38: 144 | E38: 115 | G38: 150 | I38: 145 | K38: 145
A39: Child exploitation investigations | C39: 185 | E39: 182 | G39: 190 | I39: 190 | K39: 190
A40: Cyber crimes investigations | C40: 265 | E40: 278 | G40: 280 | I40: 280 | K40: 285
A41: Unidentified persons investigations | C41: 420 | E41: 343 | G41: 420 | I41: 340 | K41: 340
A42: Solid/Hazardous waste investigations | C42: 580 | E42: 600 | G42: 600 | I42: 600 | K42: 600
A43: Approvals | C43: 85 | E43: 90 | G43: 90 | I43: 90 | K43: 90
A44: Rejections | C44: 10 | E44: 12 | G44: 12 | I44: 12 | K44: 12
A45: Firearms applications received | C45: 15556 | E45: 16250 | G45: 16750 | I45: 16750 | K45: 16500
A46: Laboratory cases received | C46: 40745 | E46: 40265 | G46: 43000 | I46: 40500 | K46: 40500
A47: Laboratory cases completed | C47: 41472 | E47: 40566 | G47: 39000 | I47: 39000 | K47: 36000
A48: Crime scene investigations | C48: 1323 | E48: 1500 | G48: 1500 | I48: 1500 | K48: 1500
A49: Laboratory cases received/DNA analysis | C49: 5376 | E49: 4934 | G49: 5100 | I49: 5000 | K49: 5000
A50: Laboratory cases completed/DNA analysis | C50: 5488 | E50: 5147 | G50: 4900 | I50: 4700 | K50: 4400
A51: Private detective licenses issued | C51: 763 | E51: 722 | G51: 750 | I51: 750 | K51: 750
A52: Private detective employee registrations | C52: 810 | E52: 815 | G52: 820 | I52: 820 | K52: 820
A53: Security Officer Registration Act (SORA) registrations | C53: 13428 | E53: 12235 | G53: 13000 | I53: 13000 | K53: 13000
A54: SORA agency licenses | C54: 255 | E54: 153 | G54: 250 | I54: 250 | K54: 250
A55: Bounty hunter licenses | C55: 45 | E55: 28 | G55: 45 | I55: 45 | K55: 35
A56: Criminal history records information unit
A57: Inquiries | C57: 6225000 | E57: 6200000 | G57: 6000000 | I57: 6100000 | K57: 6100000
A58: Responses | C58: 5225000 | E58: 5700000 | G58: 6000000 | I58: 6100000 | K58: 6100000
A59: Updates/modifications | C59: 7725000 | E59: 7300000 | G59: 7500000 | I59: 7600000 | K59: 7600000
A60: Composite drawing cases | C60: 136 | E60: 145 | G60: 145 | I60: 145 | K60: 150
A61: Marine police investigations
A62: Criminal-marine | C62: 146 | E62: 158 | G62: 140 | I62: 150 | K62: 160
A63: Accident-marine | C63: 107 | E63: 133 | G63: 125 | I63: 125 | K63: 125
A64: General-marine | C64: 1210 | E64: 1711 | G64: 1500 | I64: 1600 | K64: 1600
A65: Boardings | C65: 2014 | E65: 4094 | G65: 3000 | I65: 4000 | K65: 4000
A66: Assists | C66: 323 | E66: 573 | G66: 500 | I66: 500 | K66: 500
A67: Pollution investigations | C67: 26 | E67: 46 | G67: 45 | I67: 45 | K67: 45
A68: DWI arrests | C68: 4 | E68: 5 | G68: 5 | I68: 20 | J68: (b) | K68: 24 | L68: (b)
A69: Aviation Bureau
A70: Inter-hospital flights | C70: 139 | E70: 101 | G70: 150 | I70: 125 | K70: 125
A71: On-scene pick-ups | C71: 500 | E71: 449 | G71: 500 | I71: 450 | K71: 450
A72: Criminal Justice
A73: Complaints, inquiries, other matters (opened) | C73: 8511 | E73: 8800 | G73: 8700 | I73: 8810 | K73: 8820
A74: Expungements opened | C74: 10000 | E74: 10000 | G74: 10200 | I74: 10010 | K74: 10020
A75: Complaints, inquiries, other matters (closed) | C75: 8157 | E75: 8200 | G75: 8307 | I75: 8210 | K75: 8220
A76: Expungements closed | C76: 10000 | E76: 10000 | G76: 10200 | I76: 10010 | K76: 10020
A77: Investigations opened | C77: 1414 | E77: 1642 | G77: 1434 | I77: 1644 | K77: 1646
A78: Investigations closed | C78: 834 | E78: 964 | G78: 854 | I78: 974 | K78: 984
A79: Convictions (plea and trial) | C79: 482 | E79: 436 | G79: 500 | I79: 446 | K79: 456
A80: Briefs received | C80: 1104 | E80: 1273 | G80: 1160 | I80: 1275 | K80: 1277
A81: Briefs filed | C81: 224 | E81: 263 | G81: 260 | I81: 265 | K81: 267
A82: Forfeitures-state share (in millions) | C82: 9 | E82: 4 | G82: 1 | I82: 1 | K82: 1
A83: Amount of penalties and awards levied (in millions) | C83: 0.34 | E83: 0.35 | G83: 0.36 | I83: 0.35 | K83: 0.36
A84: State grand jury indictments | C84: 202 | E84: 205 | G84: 210 | I84: 206 | K84: 207
A85: County indictments/accusations | C85: 376 | E85: 482 | G85: 385 | I85: 483 | K85: 484
A86: Defendants disposed | C86: 894 | E86: 915 | G86: 905 | I86: 920 | K86: 925
A87: Fines ordered (in millions) | C87: 0.36 | E87: 0.6 | G87: 0.38 | I87: 0.61 | K87: 0.62
A88: Restitution ordered (in millions) | C88: 17 | E88: 8 | G88: 18 | I88: 9 | K88: 10
A89: Criminal Justice training programs | C89: 180 | E89: 176 | G89: 182 | I89: 177 | K89: 178
A90: Number trained | C90: 5400 | E90: 5280 | G90: 5460 | I90: 5310 | K90: 5340
A91: Police Training Commission training programs | C91: 140 | E91: 151 | G91: 142 | I91: 152 | K91: 153
A92: Number of trainees certified | C92: 2700 | E92: 3202 | G92: 2760 | I92: 3210 | K92: 3220
A93: State Medical Examiner
A94: Toxicological cases received | C94: 2338 | E94: 2243 | G94: 2342 | I94: 2245 | K94: 2250
A95: Statewide autopsies performed | C95: 1838 | E95: 1530 | G95: 2000 | I95: 1540 | K95: 1550
A96: Number of deaths investigated | C96: 6290 | E96: 6266 | G96: 6500 | I96: 6265 | K96: 6270
A97: Law enforcement drug tests | C97: 13718 | E97: 15703 | G97: 13722 | I97: 15704 | K97: 15705
A98: Gaming Enforcement (c)
A99: New applications to be processed
A100: Individual applications | C100: 5942 | E100: 4892 | G100: 6000 | I100: 4600 | K100: 4600
A101: Hotels/Casino | C101: 0 | E101: 0 | G101: 0 | I101: 1 | K101: 1
A102: Casino service industries/vendors | C102: 1414 | E102: 1680 | G102: 1900 | I102: 1850 | K102: 1800
A103: Renewal applications processed
A104: Individual applications (d) | C104: 192 | E104: 75 | G104: 185 | I104: 85 | K104: 130
A105: Hotels/Casino | C105: 0 | E105: 2 | G105: 2 | I105: 2 | K105: 2
A106: Casino service industries | C106: 51 | E106: 10 | G106: 10 | I106: 21 | K106: 18
A107: Arrest notifications | C107: 405 | E107: 415 | G107: 421 | I107: 423 | K107: 431
A108: Casino licensing investigations | C108: 6027 | E108: 5715 | G108: 6119 | I108: 5420 | K108: 5585
A109: Casino enforcement investigations | C109: 2604 | E109: 2828 | G109: 2600 | I109: 2900 | K109: 2900
A110: Casino enforcement arrests | C110: 1529 | E110: 1842 | G110: 1560 | I110: 1850 | K110: 1850
A111: Slot modifications/inspections | C111: 79660 | E111: 167266 | F111: (e) | G111: 128621 | H111: (k) | I111: 105000 | K111: 105000
A112: Number of persons employed by the casino industry | C112: 31960 | E112: 25059 | G112: 28800 | I112: 25000 | K112: 25000
A113: Casino industry gross revenue (in billions) | C113: 2.84 | E113: 2.6 | G113: 2.62 | I113: 2.52 | K113: 2.43
A114: Slot machine licenses issued | C114: 25979 | E114: 23599 | G114: 19639 | I114: 16683 | K114: 16683
A115: Casino table games in operation | C115: 1520 | E115: 1187 | G115: 1374 | I115: 1150 | K115: 1150
A116: Contested case hearings:
A117: Financial objections | C117: 451 | E117: 248 | G117: 445 | I117: 275 | K117: 275
A118: Revocations and violation complaints | C118: 195 | E118: 178 | G118: 185 | I118: 185 | K118: 185
A119: Miscellaneous | C119: 35 | E119: 35 | G119: 30 | I119: 30 | K119: 30
A120: Exclusions | C120: 40 | E120: 62 | G120: 38 | I120: 50 | K120: 50
A121: Motion for relief from Casino Control Commission orders and other reasons | C121: 45 | E121: 35 | G121: 42 | I121: 42 | K121: 42
A122: Reapplication for permission to work with or without credentials | C122: 14 | E122: 8 | G122: 14 | I122: 10 | K122: 10
A123: Administration and Support Services
A124: State Police Training Academy:
A125: State Police recruits enrolled (f) | C125: 200 | E125: 346 | G125: 200 | I125: 200 | K125: 200
A126: State Police recruits graduated (f) | C126: 209 | E126: 258 | G126: 130 | I126: 134 | K126: 130
A127: Special schools training | C127: 15000 | E127: 15000 | G127: 15000 | I127: 15000 | K127: 15000
A129: PERSONNEL DATA
A130: Position Data
A131: Filled positions by funding source
A132: State supported | C132: 3366 | E132: 3420 | G132: 3544 | I132: 3415 | K132: 3454
A133: Federal | C133: 57 | E133: 50 | G133: 54 | I133: 54 | K133: 58
A134: All other | C134: 1131 | E134: 1144 | G134: 1168 | I134: 1102 | K134: 1126
A135: Total positions | C135: =SUM(C132:C134) -> 4554 | E135: =SUM(E132:E134) -> 4614 | G135: =SUM(G132:G134) -> 4766 | I135: =SUM(I132:I134) -> 4571 | K135: =SUM(K132:K134) -> 4638
A136: Filled positions by program class
A137: State Police Operations | C137: 3386 | E137: 3481 | G137: 3625 | I137: 3480 | K137: 3541
A138: Criminal Justice | C138: 544 | E138: 518 | G138: 526 | I138: 517 | K138: 522
A139: State Medical Examiner | C139: 71 | E139: 69 | G139: 72 | I139: 64 | K139: 64
A140: Gaming Enforcement | C140: 267 | E140: 259 | G140: 253 | I140: 225 | K140: 225
A141: Administration and Support Services | C141: 286 | E141: 287 | G141: 290 | I141: 285 | K141: 286
A142: Total positions | C142: =SUM(C137:C141) -> 4554 | E142: =SUM(E137:E141) -> 4614 | G142: =SUM(G137:G141) -> 4766 | I142: =SUM(I137:I141) -> 4571 | K142: =SUM(K137:K141) -> 4638
A145: Notes:
A146: Actual payroll counts are reported for fiscal years 2014 and 2015 as of December and revised fiscal 2016 as of January. The budget estimate for fiscal 2017 reflects the number of positions funded.
A147: (a) All evaluation data involving Auto Unit investigations in fiscal 2014 are impacted by the Auto Unit's primary focus on "Operation Jacked." This investigation resulted in the increased recovery of high-end vehicles.
A148: (b) Increase in DWI arrests is a result of the Marine Safety Bureau conducting joint DWI patrols with the U.S. Coast Guard.
A149: (c) All evaluation data for the Division of Gaming Enforcement are impacted by four casino closures.
A150: (d) Renewal of individual applications, as noted in prior years, are based on four and five year renewal cycles. The reason for the decline is attributable to the elimination of employee licenses and renewals as a result of P.L. 2011, c.19.
A151: (e) The Division of Gaming Enforcement requires inspections on all slot machines upon the opening and closing of a casino. The fiscal 2015 actual is increased due to multiple casino closures.
A152: (f) The 152nd and 153rd recruit classes began in fiscal 2013 and graduated in fiscal 2014. The 154th class began in fiscal 2014 and graduated in fiscal 2015. The 155th class began and graduated in fiscal 2015. The 156th class began and graduated in fiscal 2016. The 157th class will enter the academy in fiscal 2017 and graduate in fiscal 2017.

Sheet 66-13
A1: Fiscal Year: | B1: 2017
A2: Fund Category: | B2: DSS | C2: Direct State Services
A3: Department: | B3: 66 | C3: Department Of Law And Public Safety
A4: Statewide Program: | B4: 13 | C4: Special Law Enforcement Activities
A5: Organization:
A6: Number of Columns: | B6: 4
K7: Budget | M7: Budget
C8: Actual | D8: F | E8: Actual | F8: F | G8: Budgeted | H8: F | I8: Revised | J8: F | K8: Estimate | L8: F | M8: Estimate | N8: F
C9: ="FY " & FiscalYear - 3 -> FY 2014 | D9: N | E9: ="FY " & FiscalYear - 2 -> FY 2015 | F9: N | G9: ="FY " & FiscalYear - 1 -> FY 2016 | H9: N | I9: ="FY " & FiscalYear - 1 -> FY 2016 | J9: N | K9: ="FY " & FiscalYear -> FY 2017 | L9: N | M9: ="FY " & FiscalYear + 1 -> FY 2018 | N9: N
A10: PROGRAM DATA
A11: Office of Highway Traffic Safety
A12: Highway safety grants received | C12: 765 | E12: 735 | G12: 785 | I12: 745 | K12: 750
A13: Highway safety grants funded | C13: 748 | E13: 711 | G13: 760 | I13: 722 | K13: 735
A15: Election Law Enforcement
A16: Disclosure reports total | C16: 30931 | E16: 32075 | G16: 33500 | I16: 32700 | K16: 33700
A17: Campaign and quarterly | C17: 22628 | E17: 23351 | G17: 25000 | I17: 24000 | K17: 25000
A18: Lobbyists | C18: 5808 | E18: 6200 | G18: 6000 | I18: 6200 | K18: 6200
A19: Pay-to-Play | C19: 2495 | E19: 2524 | G19: 2500 | I19: 2500 | K19: 2500
A20: Investigations | C20: 34 | E20: 50 | G20: 45 | I20: 45 | K20: 50
A21: Civil prosecutions | C21: 94 | E21: 153 | G21: 95 | I21: 95 | K21: 95
A22: Public assistance requests | C22: 9378 | E22: 9595 | G22: 9300 | I22: 9300 | K22: 9300
A24: Review and Enforcement of Ethical Standards
A25: State Ethics Commission
A26: Hearings | C26: 4 | E26: 2 | G26: 3 | I26: 2 | K26: 2
A27: Investigations | C27: 1700 | E27: 1700 | G27: 1700 | I27: 1700 | K27: 1700
A28: Financial disclosure reports | C28: 2100 | E28: 1666 | G28: 1900 | I28: 1650 | K28: 1700
A30: Regulation of Alcoholic Beverages
A31: Alcoholic Beverage Control items processed | C31: 132542 | E31: 150010 | G31: 132542 | I31: 150010 | K31: 150010
A32: Licenses (state issued only) | C32: 1241 | E32: 1282 | G32: 1241 | I32: 1282 | K32: 1282
A33: Permits (a) | C33: 59078 | E33: 61885 | G33: 59078 | I33: 61885 | K33: 61885
A34: Penalties | C34: 558 | E34: 560 | G34: 558 | I34: 560 | K34: 560
A35: Fees (a) | C35: 71665 | E35: 86283 | G35: 71665 | I35: 86283 | K35: 86283
A36: Total Inspections | C36: 248 | E36: 487 | G36: 248 | I36: 487 | K36: 487
A37: Total inspections | C37: 248 | E37: 487 | G37: 248 | I37: 487 | K37: 487
A38: Total civil investigations | C38: 344 | E38: 335 | G38: 344 | I38: 335 | K38: 335
A39: Total criminal investigations | C39: 1033 | E39: 1140 | G39: 1033 | I39: 1140 | K39: 1140
A40: Total arrests | C40: 153 | E40: 203 | G40: 153 | I40: 203 | K40: 203
A42: Regulation of Racing Activities
A43: Racing days allotted | C43: 259 | E43: 272 | G43: 250 | I43: 270 | K43: 270
A44: Licenses issued | C44: 9922 | E44: 9343 | G44: 10000 | I44: 9300 | K44: 9300
A45: Fingerprints taken | C45: 2425 | E45: 2142 | G45: 2400 | I45: 2100 | K45: 2100
A46: Samples taken | C46: 14086 | E46: 13421 | G46: 12000 | I46: 13400 | K46: 13300
A47: Number of tests performed on samples | C47: 91453 | E47: 37951 | F47: (b) | G47: 37200 | I47: 37500 | K47: 37200
A48: Breathalyzer tests | C48: 500 | E48: 600 | G48: 600 | I48: 550 | K48: 550
A49: Simulcasting programs allotted | C49: 27035 | E49: 27000 | G49: 26500 | I49: 26500 | K49: 26500
A50: Rulings issued | C50: 248 | E50: 215 | G50: 250 | I50: 200 | K50: 200
A52: State Athletic Control
A53: Total number of professional shows | C53: 41 | E53: 24 | G53: 24 | I53: 22 | K53: 22
A54: Professional boxing shows | C54: 20 | E54: 12 | G54: 12 | I54: 10 | K54: 10
A55: Professional Mixed Martial Arts (MMA) shows | C55: 21 | E55: 12 | G55: 12 | I55: 12 | K55: 12
A56: Total number of licenses | C56: 1350 | E56: 1100 | G56: 1100 | I56: 1100 | K56: 1100
A57: Professional boxers licensed | C57: 250 | E57: 200 | G57: 200 | I57: 300 | K57: 300
A58: Licenses (other) | C58: 1100 | E58: 900 | G58: 900 | I58: 900 | K58: 900
A59: USA boxing shows | C59: 40 | E59: 40 | G59: 40 | I59: 40 | K59: 40
A60: Amateur MMA shows | C60: 26 | E60: 20 | G60: 20 | I60: 20 | K60: 20
A62: PERSONNEL DATA
A63: Position Data
A64: Filled positions by funding source
A65: State supported | C65: 78 | E65: 73 | G65: 75 | I65: 72 | K65: 81
A66: Federal | C66: 16 | E66: 15 | G66: 21 | I66: 13 | K66: 13
A67: All other | C67: 98 | E67: 89 | G67: 99 | I67: 91 | K67: 93
A68: Total positions | C68: =SUM(C65:C67) -> 192 | E68: =SUM(E65:E67) -> 177 | G68: =SUM(G65:G67) -> 195 | H68: 0 | I68: =SUM(I65:I67) -> 176 | K68: 187 | M68: 0 | N68: 0
A69: Filled positions by program class
A70: Office of Highway Traffic Safety | C70: 16 | E70: 15 | G70: 21 | I70: 13 | K70: 13
A71: Election Law Enforcement | C71: 67 | E71: 62 | G71: 63 | I71: 62 | K71: 69
A72: Review and Enforcement of Ethical Standards | C72: 11 | E72: 11 | G72: 12 | I72: 10 | K72: 12
A73: Regulation of Alcoholic Beverages | C73: 52 | E73: 48 | G73: 51 | I73: 50 | K73: 51
A74: Regulation of Racing Activities | C74: 42 | E74: 37 | G74: 44 | I74: 38 | K74: 38
A75: State Athletic Control | C75: 4 | E75: 4 | G75: 4 | I75: 3 | K75: 4
A76: Total positions | C76: =SUM(C70:C75) -> 192 | E76: =SUM(E70:E75) -> 177 | G76: 195 | I76: =SUM(I70:I75) -> 176 | K76: =SUM(K70:K75) -> 187
A78: Notes:
A79: Actual payroll counts are reported for fiscal years 2014 and 2015 as of December and revised fiscal 2016 as of January. The budget estimate for fiscal 2017 reflects the number of positions funded.
A80: (a) Permits represents items originally being issued, while fees represents renewals or amendments processed.
A81: (b) Samples are tested out of state due to the closing of the Forensic Laboratory at the Meadowlands.

Sheet 66-18
A1: Fiscal Year: | B1: 2017
A2: Fund Category: | B2: DSS | C2: Direct State Services
A3: Department: | B3: 66 | C3: Department Of Law And Public Safety
A4: Statewide Program: | B4: 18 | C4: Juvenile Services
A5: Organization:
A6: Number of Columns: | B6: 4
K7: Budget | M7: Budget
C8: Actual | D8: F | E8: Actual | F8: F | G8: Budgeted | H8: F | I8: Revised | J8: F | K8: Estimate | L8: F | M8: Estimate | N8: F
C9: ="FY " & FiscalYear - 3 -> FY 2014 | D9: N | E9: ="FY " & FiscalYear - 2 -> FY 2015 | F9: N | G9: ="FY " & FiscalYear - 1 -> FY 2016 | H9: N | I9: ="FY " & FiscalYear - 1 -> FY 2016 | J9: N | K9: ="FY " & FiscalYear -> FY 2017 | L9: N | M9: ="FY " & FiscalYear + 1 -> FY 2018 | N9: N
A10: PROGRAM DATA
A11: Juvenile Community Programs
A12: Design capacity | C12: 358 | E12: 358 | G12: 358 | I12: 338 | K12: 338
A13: Residential/Transitional living programs | C13: 328 | E13: 328 | G13: 328 | I13: 328 | K13: 328
A14: Day programs | C14: 30 | E14: 30 | G14: 30 | I14: 10 | J14: (a) | K14: 10
A16: Average daily population (b) | C16: 232 | E16: 191 | G16: 170 | I16: 171 | K16: 171
A17: Residential/Transitional living programs | C17: 221 | E17: 184 | G17: 165 | I17: 169 | K17: 169
A18: Day programs | C18: 11 | E18: 7 | G18: 5 | I18: 2 | K18: 2
A20: Ratio: population/positions (c) | C20: .6/1 | E20: .5/1 | G20: .4/1 | I20: .4/1 | K20: .4/1
A21: Annual per capita cost (d) | C21: 108750 | E21: 133869 | G21: 152553 | I21: 151661 | K21: 153123
A22: Daily per capita cost | C22: 297.95 | E22: 366.76 | G22: 417.95 | I22: 415.51 | K22: 419.51
A24: Institutional Operating Data
A25: Design capacity | C25: 511 | E25: 511 | G25: 511 | I25: 511 | K25: 511
A26: New Jersey Training School for Boys | C26: 300 | E26: 300 | G26: 300 | I26: 300 | K26: 300
A27: Johnstone campus | C27: 211 | E27: 211 | G27: 211 | I27: 211 | K27: 211
A29: Average daily population (b) | C29: 278 | E29: 256 | G29: 246 | I29: 268 | K29: 316
A30: New Jersey Training School for Boys | C30: 195 | E30: 169 | G30: 162 | I30: 152 | K30: 152
A31: Johnstone campus | C31: 83 | E31: 87 | G31: 84 | I31: 116 | K31: 164
A33: Ratio: population/positions (c) | C33: .5/1 | E33: .5/1 | G33: .4/1 | I33: .5/1 | K33: .5/1
A34: Annual per capita cost | C34: 194914 | E34: 211051 | G34: 228045 | I34: 208500 | K34: 175582
A35: Daily per capita cost | C35: 534.01 | E35: 578.22 | G35: 624.78 | I35: 571.23 | K35: 481.05
A37: Juvenile Parole and Transitional Services
A38: Active parole caseload | C38: 292 | E38: 252 | G38: 267 | I38: 227 | K38: 227
A40: PERSONNEL DATA
A41: Position Data
A42: Filled positions by funding source
A43: State supported | C43: 987 | E43: 960 | G43: 975 | I43: 950 | K43: 999
A44: Federal | C44: 7 | E44: 5 | G44: 5 | I44: 4 | K44: 1
A45: All other | C45: 162 | E45: 161 | G45: 164 | I45: 152 | K45: 152
A46: Total positions | C46: 1156 | E46: =SUM(E43:E45) -> 1126 | G46: =SUM(G43:G45) -> 1144 | I46: =SUM(I43:I45) -> 1106 | K46: =SUM(K43:K45) -> 1152
A47: Filled positions by program class
A48: Juvenile Community Programs | C48: 393 | E48: 390 | G48: 397 | I48: 391 | K48: 388
A49: Institutional Control and Supervision | C49: 350 | E49: 344 | G49: 359 | I49: 344 | K49: 393
A50: Institutional Care and Treatment | C50: 221 | E50: 204 | G50: 201 | I50: 191 | K50: 191
A51: Juvenile Parole and Transitional Services | C51: 59 | E51: 59 | G51: 59 | I51: 57 | K51: 57
A52: Administration and Support Services | C52: 133 | E52: 129 | G52: 128 | I52: 123 | K52: 123
A53: Total positions | C53: 1156 | E53: =SUM(E48:E52) -> 1126 | G53: =SUM(G48:G52) -> 1144 | I53: =SUM(I48:I52) -> 1106 | K53: =SUM(K48:K52) -> 1152
A56: Notes:
A57: Actual payroll counts are reported for fiscal years 2014 and 2015 as of December and revised fiscal 2016 as of January. The budget estimate for fiscal 2017 reflects the number of positions funded.
A58: (a) The capacity decreased due to the closure of one day program.
A59: (b) Beginning in fiscal 2015, average daily population is based on average monthly reporting by the Commission.
A60: (c) Population position ratios do not include administrative functions.
A61: (d) Community programs annual per capita cost is based on the Juvenile Community Programs Direct State Services appropriation.

Sheet 66-19
A1: Fiscal Year: | B1: 2017
A2: Fund Category: | B2: DSS | C2: Direct State Services
A3: Department: | B3: 66 | C3: Department Of Law And Public Safety
A4: Statewide Program: | B4: 19 | C4: Central Planning, Direction and Management
A5: Organization:
A6: Number of Columns: | B6: 4
K7: Budget | M7: Budget
C8: Actual | D8: F | E8: Actual | F8: F | G8: Budgeted | H8: F | I8: Revised | J8: F | K8: Estimate | L8: F | M8: Estimate | N8: F
C9: ="FY " & FiscalYear - 3 -> FY 2014 | D9: N | E9: ="FY " & FiscalYear - 2 -> FY 2015 | F9: N | G9: ="FY " & FiscalYear - 1 -> FY 2016 | H9: N | I9: ="FY " & FiscalYear - 1 -> FY 2016 | J9: N | K9: ="FY " & FiscalYear -> FY 2017 | L9: N | M9: ="FY " & FiscalYear + 1 -> FY 2018 | N9: N
A10: PERSONNEL DATA
A11: Affirmative Action data (a)
A12: Male minority | C12: 1225 | E12: 1222 | I12: 1222
A13: Male minority percentage | C13: 0.165 | E13: 0.164 | I13: 0.166
A14: Female minority | C14: 1016 | E14: 1016 | I14: 1016
A15: Female minority percentage | C15: 0.137 | E15: 0.137 | I15: 0.138
A16: Total minority | C16: 2241 | E16: 2238 | I16: 2238
A17: Total minority percentage | C17: 0.302 | E17: 0.301 | I17: 0.304
A19: Position Data
A20: Filled positions by funding source
A21: State supported | C21: 170 | E21: 161 | G21: 170 | I21: 160 | K21: 171
A22: Federal | C22: 20 | E22: 16 | G22: 21 | I22: 23 | K22: 23
A23: Total positions | C23: =SUM(C21:C22) -> 190 | E23: =SUM(E21:E22) -> 177 | G23: =SUM(G21:G22) -> 191 | I23: =SUM(I21:I22) -> 183 | K23: =SUM(K21:K22) -> 194
A24: Filled positions by program class
A25: Homeland Security and Preparedness | C25: 99 | E25: 91 | G25: 104 | I25: 92 | K25: 99
A26: Central Library Services | C26: 6 | E26: 5 | G26: 5 | I26: 5 | K26: 5
A27: Administration and Support Services | C27: 85 | E27: 81 | G27: 82 | I27: 86 | K27: 90
A28: Total positions | C28: =SUM(C25:C27) -> 190 | E28: =SUM(E25:E27) -> 177 | G28: =SUM(G25:G27) -> 191 | I28: =SUM(I25:I27) -> 183 | K28: =SUM(K25:K27) -> 194
A30: Notes:
A31: Actual payroll counts are reported for fiscal years 2014 and 2015 as of December and revised fiscal 2016 as of January. The budget estimate for fiscal 2017 reflects the number of positions funded.
A32: (a) Affirmative action data includes all of Law and Public Safety except the Office of Homeland Security and Preparedness.

Sheet 66-74
A1: Fiscal Year: | B1: 2017
A2: Fund Category: | B2: DSS | C2: Direct State Services
A3: Department: | B3: 66 | C3: Department Of Law And Public Safety
A4: Statewide Program: | B4: 74 | C4: General Government Services
A5: Organization:
A6: Number of Columns: | B6: 4
K7: Budget | M7: Budget
C8: Actual | D8: F | E8: Actual | F8: F | G8: Budgeted | H8: F | I8: Revised | J8: F | K8: Estimate | L8: F | M8: Estimate | N8: F
C9: ="FY " & FiscalYear - 3 -> FY 2014 | D9: N | E9: ="FY " & FiscalYear - 2 -> FY 2015 | F9: N | G9: ="FY " & FiscalYear - 1 -> FY 2016 | H9: N | I9: ="FY " & FiscalYear - 1 -> FY 2016 | J9: N | K9: ="FY " & FiscalYear -> FY 2017 | L9: N | M9: ="FY " & FiscalYear + 1 -> FY 2018 | N9: N
A10: PROGRAM DATA
A11: Legal Services
A12: Appeals pending | C12: 2148 | E12: 1883 | G12: 2150 | I12: 2150 | K12: 2000
A13: Appeals disposed | C13: 1888 | E13: 1865 | G13: 1800 | I13: 1800 | K13: 1800
A14: Formal administrative agency advice pending | C14: 31 | E14: 27 | G14: 32 | I14: 32 | K14: 30
A15: Administrative agency advice completed | C15: 42 | E15: 55 | G15: 54 | I15: 54 | K15: 55
A16: Litigation pending | C16: 17263 | E16: 17163 | G16: 16900 | I16: 16900 | K16: 17000
A17: Litigation concluded | C17: 10065 | E17: 10445 | G17: 9500 | I17: 9500 | K17: 10000
A18: Other matters pending | C18: 6112 | E18: 6172 | G18: 5601 | I18: 5601 | K18: 6150
A19: Other matters concluded | C19: 4548 | E19: 5295 | G19: 4500 | I19: 4500 | K19: 4800
A20: Administrative hearings pending | C20: 2945 | E20: 2616 | G20: 3000 | I20: 3000 | K20: 2660
A21: Administrative hearings concluded | C21: 2009 | E21: 1805 | G21: 2000 | I21: 2000 | K21: 1805
A22: Workers Compensation pending | C22: 6563 | E22: 6558 | G22: 6560 | I22: 6560 | K22: 6557
A23: Workers Compensation completed | C23: 1057 | E23: 1056 | G23: 1059 | I23: 1059 | K23: 1055
A24: Second Injury pending | C24: 5154 | E24: 5156 | G24: 5150 | I24: 5150 | K24: 5152
A25: Second Injury completed | C25: 858 | E25: 862 | G25: 860 | I25: 860 | K25: 860
A27: PERSONNEL DATA
A28: Position Data
A29: Filled positions by funding source
A30: State supported | C30: 559 | E30: 555 | G30: 559 | I30: 556 | K30: 560
A31: All other | C31: 274 | E31: 269 | G31: 269 | I31: 247 | K31: 247
A32: Total positions | C32: =SUM(C30:C31) -> 833 | E32: =SUM(E30:E31) -> 824 | G32: =SUM(G30:G31) -> 828 | H32: =SUM(H30:H31) -> 0 | I32: =SUM(I30:I31) -> 803 | K32: =SUM(K30:K31) -> 807 | L32: (a)
A33: Filled positions by program class
A34: Legal Services | C34: 833 | E34: 824 | G34: 828 | I34: 803 | K34: 807
A35: Total positions | C35: =SUM(C34) -> 833 | E35: 824 | G35: =SUM(G34) -> 828 | I35: =I34 -> 803 | K35: 807
A38: Notes:
A39: Actual payroll counts are reported for fiscal years 2014 and 2015 as of December and revised fiscal 2016 as of January. The budget estimate for fiscal 2017 reflects the number of positions funded.
A40: (a) The funded position counts for fiscal 2017 are based on estimated legal service reimbursements from client agencies. These counts are subject to negotiated client agency agreements and the actual funded position counts could change.

Sheet 66-82
A1: Fiscal Year: | B1: 2017
A2: Fund Category: | B2: DSS | C2: Direct State Services
A3: Department: | B3: 66 | C3: Department Of Law And Public Safety
A4: Statewide Program: | B4: 82 | C4: Protection of Citizens' Rights
A5: Organization:
A6: Number of Columns: | B6: 4
K7: Budget | M7: Budget
C8: Actual | D8: F | E8: Actual | F8: F | G8: Budgeted | H8: F | I8: Revised | J8: F | K8: Estimate | L8: F | M8: Estimate | N8: F
C9: ="FY " & FiscalYear - 3 -> FY 2014 | D9: N | E9: ="FY " & FiscalYear - 2 -> FY 2015 | F9: N | G9: ="FY " & FiscalYear - 1 -> FY 2016 | H9: N | I9: ="FY " & FiscalYear - 1 -> FY 2016 | J9: N | K9: ="FY " & FiscalYear -> FY 2017 | L9: N | M9: ="FY " & FiscalYear + 1 -> FY 2018 | N9: N
A10: PROGRAM DATA
A11: Consumer Affairs
A12: Weights and Measures
A13: Licenses and permits issued | C13: 1625 | E13: 1559 | G13: 1700 | I13: 1600 | K13: 1600
A14: Devices tested (a) | C14: 84977 | E14: 55374 | G14: 85500 | I14: 57000 | K14: 57000
A15: Penalties collected | C15: 1685169 | E15: 1787511 | G15: 1800000 | I15: 1750000 | K15: 1750000
A16: Commodity checks (a) | C16: 245476 | E16: 165143 | G16: 275000 | I16: 170000 | K16: 170000
A17: Securities Bureau
A18: Special investigations | C18: 38 | E18: 29 | G18: 40 | I18: 30 | K18: 30
A19: Inquiries | C19: 17960 | E19: 18019 | G19: 20000 | I19: 18000 | K19: 18000
A20: Hearings and conferences | C20: 53 | E20: 63 | G20: 50 | I20: 60 | K20: 60
A21: Applications | C21: 266072 | E21: 272768 | G21: 260000 | I21: 275000 | K21: 275000
A22: Administrative orders | C22: 26 | E22: 23 | G22: 40 | I22: 30 | K22: 30
A23: Registrations | C23: 233518 | E23: 239032 | G23: 230000 | I23: 240000 | K23: 240000
A24: Consumer Protection programs
A25: Consumer complaints opened | C25: 9287 | E25: 9567 | G25: 9250 | I25: 10000 | K25: 10000
A26: Consumer complaints closed | C26: 6696 | E26: 4674 | G26: 6950 | I26: 5000 | K26: 5000
A27: Value of restitutions made | C27: 674127 | E27: 3310709 | F27: (b) | G27: 400000 | I27: 500000 | K27: 500000
A28: Penalties collected | C28: 5102060 | E28: 6477485 | G28: 5000000 | I28: 13000000 | J28: (c) | K28: 5000000
A29: Number of controlled dangerous substance manufacturers registrations | C29: 50876 | E29: 51788 | G29: 51000 | I29: 52000 | K29: 52000
A30: Licenses issued - Public Movers and Warehouseman | C30: 304 | E30: 306 | G30: 300 | I30: 306 | K30: 306
A31: Operation of State Professional Boards
A32: Licenses in Force (end of year)
A33: Certified Public Accountants | C33: 28391 | E33: 27380 | G33: 28400 | I33: 28000 | K33: 28000
A34: Architects | C34: 8801 | E34: 9070 | G34: 8900 | I34: 9100 | K34: 9100
A35: Dentists and Dental Hygienists | C35: 22390 | E35: 23359 | G35: 22400 | I35: 23400 | K35: 23400
A36: Mortuary Science | C36: 2514 | E36: 2342 | G36: 2520 | I36: 2340 | K36: 2340
A37: Professional Engineers and Land Surveyors | C37: 19536 | E37: 19496 | G37: 19600 | I37: 19500 | K37: 19500
A38: Medical Examiners | C38: 45454 | E38: 46429 | G38: 45500 | I38: 46500 | K38: 46500
A39: Nursing | C39: 196329 | E39: 210818 | G39: 197000 | I39: 215000 | K39: 215000
A40: Optometrists | C40: 2292 | E40: 2254 | G40: 2300 | I40: 2300 | K40: 2300
A41: Pharmacy | C41: 34412 | E41: 34009 | G41: 34500 | I41: 34500 | K41: 34500
A42: Veterinary Medical Examiners | C42: 2525 | E42: 2848 | G42: 2575 | I42: 2850 | K42: 2850
A43: Court Reporting | C43: 981 | E43: 951 | G43: 985 | I43: 955 | K43: 955
A44: Ophthalmic Dispensers and Ophthalmic Technicians | C44: 1764 | E44: 1823 | G44: 1770 | I44: 1825 | K44: 1825
A45: Cosmetology and Hairstyling | C45: 88760 | E45: 85442 | G45: 89000 | I45: 88000 | K45: 88000
A46: Professional Planners | C46: 2594 | E46: 2639 | G46: 2600 | I46: 2650 | K46: 2650
A47: Electrical Contractors | C47: 21465 | E47: 19582 | G47: 21500 | I47: 20000 | K47: 20000
A48: Psychological Examiners | C48: 3442 | E48: 3548 | G48: 3450 | I48: 3600 | K48: 3600
A49: Master Plumbers | C49: 6229 | E49: 6226 | G49: 6250 | I49: 6230 | K49: 6230
A50: Marriage Counselor Examiners | C50: 7849 | E50: 8168 | G50: 7850 | I50: 8000 | K50: 8000
A51: Chiropractic Examiners | C51: 3219 | E51: 3228 | G51: 3250 | I51: 3330 | K51: 3330
A52: Physical Therapists | C52: 10400 | E52: 11061 | G52: 10425 | I52: 11100 | K52: 11100
A53: Audiology and Speech Pathology | C53: 5903 | E53: 6315 | G53: 5950 | I53: 6325 | K53: 6325
A54: Real Estate Appraisal | C54: 2764 | E54: 2836 | G54: 2875 | I54: 2875 | K54: 2875
A55: Respiratory Care | C55: 3539 | E55: 3720 | G55: 3550 | I55: 3750 | K55: 3750
A56: Social Work Examiners | C56: 18885 | E56: 18937 | G56: 19000 | I56: 19000 | K56: 19000
A57: Orthotics and Prosthetics | C57: 239 | E57: 214 | G57: 240 | I57: 220 | K57: 220
A58: Occupational Therapists | C58: 5994 | E58: 6491 | G58: 6000 | I58: 6500 | K58: 6500
A59: Cemetery Companies | C59: 163 | E59: 163 | G59: 163 | I59: 163 | K59: 163
A60: Polysomnography | C60: 442 | E60: 409 | G60: 450 | I60: 410 | K60: 410
A61: Massage Therapists | C61: 6635 | E61: 7286 | G61: 6700 | I61: 7350 | K61: 7350
A62: Heating, Ventilation & Air Conditioning (d) | C62: 0 | E62: 587 | G62: 1600 | I62: 4383 | K62: 4383
A63: Certified Psychoanalysts (d) | C63: 0 | E63: 7 | I63: 18 | K63: 18
A64: Protection of Civil Rights
A65: Caseload
A66: Cases received (docketed) | C66: 660 | E66: 661 | G66: 700 | I66: 700 | K66: 700
A67: Cases closed (resolved) | C67: 621 | E67: 645 | G67: 650 | I67: 650 | K67: 650
A68: Ending balance (cumulative) | C68: 819 | E68: 835 | G68: 919 | I68: 885 | K68: 935
A69: Complaints received (not docketed) | C69: 6800 | E69: 7000 | G69: 7000 | I69: 7000 | K69: 7000
A70: Monetary awards | C70: 1779838 | E70: 2089927 | G70: 2000000 | I70: 2100000 | K70: 2100000
A71: Victims of Crime Compensation Office
A72: Claims pending, July 1 | C72: 1554 | E72: 1755 | G72: 1956 | I72: 1508 | K72: 1261
A73: Cases re-opened | C73: 426 | E73: 307 | G73: 400 | I73: 307 | K73: 307
A74: Claims received | C74: 3917 | E74: 3596 | G74: 4200 | H74: (f) | I74: 3596 | K74: 3596
A75: Claims concluded | C75: 4142 | E75: 4150 | G75: 4522 | I75: 4150 | K75: 4150
A76: Approved for payments | C76: 1872 | E76: 1779 | G76: 2000 | I76: 1779 | K76: 1779
A77: Denied (e) | C77: 2270 | E77: 2371 | G77: 2522 | I77: 2371 | K77: 2371
A78: Ending balance, June 30 | C78: 1755 | E78: 1508 | G78: 2034 | I78: 1261 | K78: 1014
A79: Average award | C79: 5285 | E79: 5285 | G79: 5285 | I79: 5285 | K79: 5285
A81: PERSONNEL DATA
A82: Position Data
A83: Filled positions by funding source
A84: State supported | C84: 141 | E84: 137 | G84: 154 | I84: 145 | K84: 152
A85: All other | C85: 474 | E85: 466 | G85: 477 | I85: 469 | K85: 479
A86: Total positions | C86: 615 | E86: =SUM(E84:E85) -> 603 | G86: =SUM(G84:G85) -> 631 | I86: =SUM(I84:I85) -> 614 | K86: =SUM(K84:K85) -> 631
A87: Filled positions by program class
A88: Consumer Affairs | C88: 351 | E88: 343 | G88: 352 | I88: 356 | K88: 358
A89: Operation of State Professional Boards | C89: 183 | E89: 182 | G89: 188 | I89: 173 | K89: 179
A90: Protection of Civil Rights | C90: 53 | E90: 50 | G90: 59 | I90: 54 | K90: 59
A91: Victims of Crime Compensation Office | C91: 28 | E91: 28 | G91: 32 | I91: 31 | K91: 35
A92: Total positions | C92: 615 | E92: =SUM(E88:E91) -> 603 | G92: =SUM(G88:G91) -> 631 | I92: =SUM(I88:I91) -> 614 | K92: =SUM(K88:K91) -> 631
A95: Notes:
A96: Actual payroll counts are reported for fiscal years 2014 and 2015 as of December and revised fiscal 2016 as of January. The budget estimate for fiscal 2017 reflects the number of positions funded.
A97: (a) Decrease beginning in fiscal 2015 is due to loss of inspector personnel and staff redirected to other initiatives.
A98: (b) Reflects five cases involving large restitution settlements.
A99: (c) Reflects two large non-recurring, multi-state settlements in addition to other projected settlements.
A100: (d) Low number of licensees in fiscal 2015 reflects start-up year. Fiscal 2016 reflects projected total number of licensees.
A101: (e) Reflects active cases denied, cases without compensation and administrative closures.

Sheet 67-14
A1: Fiscal Year: | B1: 2017
A2: Fund Category: | B2: DSS | C2: Direct State Services
A3: Department: | B3: 67 | C3: Department Of Military And Veterans' Affairs
A4: Statewide Program: | B4: 14 | C4: Military Services
A5: Organization:
A6: Number of Columns: | B6: 4
K7: Budget | M7: Budget
C8: Actual | D8: F | E8: Actual | F8: F | G8: Budgeted | H8: F | I8: Revised | J8: F | K8: Estimate | L8: F | M8: Estimate | N8: F
C9: ="FY " & FiscalYear - 3 -> FY 2014 | D9: N | E9: ="FY " & FiscalYear - 2 -> FY 2015 | F9: N | G9: ="FY " & FiscalYear - 1 -> FY 2016 | H9: N | I9: ="FY " & FiscalYear - 1 -> FY 2016 | J9: N | K9: ="FY " & FiscalYear -> FY 2017 | L9: N | M9: ="FY " & FiscalYear + 1 -> FY 2018 | N9: N
A10: PROGRAM DATA
A11: New Jersey National Guard Support Services
A12: Armory use data (days) | C12: 26148 | E12: 24571 | G12: 22500 | I12: 24400 | K12: 24400
A13: Military | C13: 14415 | E13: 14771 | G13: 14000 | I13: 14700 | K13: 14700
A14: Other State agencies | C14: 4334 | E14: 2343 | G14: 3500 | I14: 2700 | K14: 2700
A15: Private/public | C15: 7399 | E15: 7457 | G15: 5000 | I15: 7000 | K15: 7000
A16: Land management (acres) | C16: 11480 | E16: 11440 | G16: 11440 | I16: 11440 | K16: 11440
A17: Authorized strength of Army National Guard | C17: 6009 | E17: 6081 | G17: 6081 | I17: 6170 | K17: 6110
A18: Strength of Army National Guard, June 30 | C18: 1 | E18: 1 | G18: 1 | I18: 1.02 | K18: 1.02
A19: Authorized strength of Air National Guard | C19: 2285 | E19: 2229 | G19: 2229 | I19: 2238 | K19: 2238
A20: Strength of Air National Guard, June 30 | C20: 1.08 | E20: 1 | G20: 1 | I20: 1.09 | K20: 1.08
A21: Joint Training Center Management and Operations
A22: Individuals trained (person days)
A23: New Jersey National Guard troops | C23: 34267 | E23: 21431 | G23: 36500 | I23: 19800 | K23: 20000
A24: State Police (a) | C24: =12000+27500 -> 39500 | E24: 49649 | G24: 30000 | I24: 45060 | K24: 45000
A25: Criminal Justice | C25: 11317 | E25: 12177 | G25: 12665 | I25: 10600 | K25: 10500
A26: Juvenile Justice Commission | C26: 3601 | E26: 3994 | G26: 4000 | I26: 4900 | K26: 5000
A27: Department of Corrections | C27: 36338 | E27: 37780 | G27: 37780 | I27: 35340 | K27: 36000
A28: ChalleNGe Youth Program | C28: 36763 | E28: 39362 | G28: 39362 | I28: 37926 | K28: 38000
A29: All others | C29: 87946 | E29: 77087 | G29: 115000 | I29: 74400 | K29: 80000
A31: PERSONNEL DATA
A32: Affirmative Action data
A33: Male minority | C33: 244 | E33: 245 | I33: 218
A34: Male minority percentage | C34: 0.166 | E34: 0.169 | I34: 0.145
A35: Female minority | C35: 746 | E35: 909 | I35: 704
A36: Female minority percentage | C36: 0.506 | E36: 0.627 | I36: 0.469
A37: Total minority | C37: 990 | E37: 1154 | I37: 922
A38: Total minority percentage | C38: 0.672 | E38: 0.796 | I38: 0.618
A40: Position Data
A41: Filled positions by funding source
A42: State supported | C42: 47 | E42: 47 | G42: 51 | I42: 51 | K42: 52
A43: Federal | C43: 154 | E43: 150 | G43: 163 | I43: 145 | K43: 163
A44: Total positions | C44: =SUM(C42:C43) -> 201 | E44: =SUM(E42:E43) -> 197 | G44: =SUM(G42:G43) -> 214 | I44: =SUM(I42:I43) -> 196 | K44: =SUM(K42:K43) -> 215
A45: Filled positions by program class
A46: New Jersey National Guard Support Services | C46: 157 | E46: 152 | G46: 168 | I46: 151 | K46: 169
A47: Joint Training Center Management and Operations | C47: 4 | E47: 5 | G47: 5 | I47: 4 | K47: 5
A48: Administration and Support Services | C48: 40 | E48: 40 | G48: 41 | I48: 41 | K48: 41
A49: Total positions | C49: =SUM(C46:C48) -> 201 | E49: =SUM(E46:E48) -> 197 | G49: =SUM(G46:G48) -> 214 | I49: =SUM(I46:I48) -> 196 | K49: =SUM(K46:K48) -> 215
A52: Notes:
A53: Actual payroll counts are reported for fiscal years 2014 and 2015 as of December and revised fiscal 2016 as of January. The budget estimate for fiscal 2017 reflects the number of positions funded.
A54: (a) Data for State Police reflects training for officers and recruits which had been listed separately.

Sheet 67-83-3610
A1: Fiscal Year: | B1: 2017
A2: Fund Category: | B2: DSS | C2: Direct State Services
A3: Department: | B3: 67 | C3: Department Of Military And Veterans' Affairs
A4: Statewide Program: | B4: 83 | C4: Services to Veterans
A5: Organization: | B5: 3610 | C5: Veterans' Program Support
A6: Number of Columns: | B6: 4
K7: Budget | M7: Budget
C8: Actual | D8: F | E8: Actual | F8: F | G8: Budgeted | H8: F | I8: Revised | J8: F | K8: Estimate | L8: F | M8: Estimate | N8: F
C9: ="FY " & FiscalYear - 3 -> FY 2014 | D9: N | E9: ="FY " & FiscalYear - 2 -> FY 2015 | F9: N | G9: ="FY " & FiscalYear - 1 -> FY 2016 | H9: N | I9: ="FY " & FiscalYear - 1 -> FY 2016 | J9: N | K9: ="FY " & FiscalYear -> FY 2017 | L9: N | M9: ="FY " & FiscalYear + 1 -> FY 2018 | N9: N
A10: PROGRAM DATA
A11: Veterans' Outreach and Assistance
A12: Number of veterans served | C12: 80000 | E12: 81000 | G12: 81000 | I12: 91000 | K12: 91000
A13: Number of claims processed | C13: 6046 | E13: 6542 | G13: 6542 | I13: 8400 | K13: 9000
A14: VA special monetary benefits provided (in millions) | C14: 64 | E14: 67 | G14: 67 | I14: 70 | K14: 75
A15: Veterans' Tuition Credit program participants | C15: 4 | E15: 6 | G15: 6 | I15: 2 | K15: 3
A16: Blind veterans receiving allowances | C16: 48 | E16: 48 | G16: 48 | I16: 30 | K16: 29
A17: Paraplegic and hemiplegic veterans receiving allowances | C17: 252 | E17: 252 | G17: 252 | I17: 188 | K17: 185
A18: Veterans' orphans receiving educational grants | C18: 1 | E18: 1 | G18: 1 | I18: 0 | K18: 0
A19: Veterans' transportation (trips) | C19: 25716 | E19: 19800 | G19: 22800 | I19: 22800 | K19: 24000
A20: Post-traumatic stress disorder counseling sessions | C20: 20232 | E20: 18240 | G20: 19200 | I20: 19200 | K20: 20000
A21: Veterans' Haven residents | C21: 200 | E21: 200 | G21: 200 | I21: 165 | K21: 190
A22: State approving agency
A23: Approved program sites (cumulative) | C23: 730 | E23: 730 | G23: 730 | I23: 871 | K23: 925
A24: Program approving actions | C24: 607 | E24: 652 | G24: 635 | I24: 675 | K24: 700
A25: Approving agency visits to program sites | C25: 254 | E25: 255 | G25: 255 | I25: 488 | K25: 500
A26: Other activities | C26: 229 | E26: 225 | G26: 225 | I26: 237 | K26: 250
A27: Burial Services
A28: Brigadier General William C. Doyle Veterans Memorial Cemetery
A29: Rated capacity (a) | C29: 171070 | E29: 171070 | G29: 215000 | I29: 215000 | K29: 215000
A30: Number of new interments | C30: 3053 | E30: 3000 | G30: 3048 | I30: 3048 | K30: 3084
A31: Total interments | C31: 59703 | E31: =C31+E30 -> 62703 | G31: 65703 | I31: =E31+I30 -> 65751 | K31: =I31+K30 -> 68835
A33: PERSONNEL DATA
A34: Position Data
A35: Filled positions by funding source
A36: State supported | C36: 113 | E36: 116 | G36: 125 | I36: 119 | K36: 125
A37: Federal | C37: 4 | E37: 4 | G37: 4 | I37: 4 | K37: 4
A38: Total positions | C38: =SUM(C36:C37) -> 117 | E38: =SUM(E36:E37) -> 120 | G38: =G36+G37 -> 129 | I38: =I36+I37 -> 123 | K38: =K36+K37 -> 129
A39: Filled positions by program class
A40: Veterans' Outreach and Assistance | C40: 45 | E40: 46 | G40: 50 | I40: 46 | K40: 45
A41: Veterans' Haven | C41: 43 | E41: 43 | G41: 47 | I41: 43 | K41: 49
A42: Burial Services | C42: 29 | E42: 31 | G42: 32 | I42: 34 | K42: 35
A43: Total positions | C43: =SUM(C40:C42) -> 117 | E43: =SUM(E40:E42) -> 120 | G43: =SUM(G40:G42) -> 129 | I43: =SUM(I40:I42) -> 123 | K43: =SUM(K40:K42) -> 129
A46: Notes:
A47: Actual payroll counts are reported for fiscal years 2014 and 2015 as of December and revised fiscal 2016 as of January. The budget estimate for fiscal 2017 reflects the number of positions funded.
A48: (a) Assumes full federal funding of the expansion and improvements outlined in the Cemetery Master Plan.

Sheet 67-83-3630
A1: Fiscal Year: | B1: 2017
A2: Fund Category: | B2: DSS | C2: Direct State Services
A3: Department: | B3: 67 | C3: Department Of Military And Veterans' Affairs
A4: Statewide Program: | B4: 83 | C4: Services to Veterans
A5: Organization: | B5: 3630 | C5: Menlo Park Veterans' Memorial Home
A6: Number of Columns: | B6: 4
K7: Budget | M7: Budget
C8: Actual | D8: F | E8: Actual | F8: F | G8: Budgeted | H8: F | I8: Revised | J8: F | K8: Estimate | L8: F | M8: Estimate | N8: F
C9: ="FY " & FiscalYear - 3 -> FY 2014 | D9: N | E9: ="FY " & FiscalYear - 2 -> FY 2015 | F9: N | G9: ="FY " & FiscalYear - 1 -> FY 2016 | H9: N | I9: ="FY " & FiscalYear - 1 -> FY 2016 | J9: N | K9: ="FY " & FiscalYear -> FY 2017 | L9: N | M9: ="FY " & FiscalYear + 1 -> FY 2018 | N9: N
A10: OPERATING DATA
A11: Domiciliary and Treatment Services
A12: Rated capacity | C12: 312 | E12: 312 | G12: 312 | I12: 312 | K12: 312
A13: Average daily population | C13: 303 | E13: 304 | G13: 304 | I13: 300 | K13: 305
A14: Ratio: daily population/total positions | C14: =TEXT(ROUND(C13/C22,1),"0.0")&"/1" -> 0.8/1 | E14: =TEXT(ROUND(E13/E22,1),"0.0")&"/1" -> 0.8/1 | G14: =TEXT(ROUND(G13/G22,1),"0.0")&"/1" -> 0.8/1 | H14: =TEXT(ROUND(H13/H22,1),"0.0")&"/1" ->  | I14: =TEXT(ROUND(I13/I22,1),"0.0")&"/1" -> 0.8/1 | K14: =TEXT(ROUND(K13/K22,1),"0.0")&"/1" -> 0.8/1
A15: Annual per capita | C15: =(29217)*1000/C13 -> 96425.74257 | E15: =(29831)*1000/E13 -> 98128.28947 | G15: =(29547)*1000/G13 -> 97194.07895 | I15: 105885 | K15: 101152
A16: Daily per capita | C16: =C15/365 -> 264.1801166 | E16: =E15/365 -> 268.8446287 | G16: =G15/365 -> 266.2851478 | I16: 281.5 | K16: 277.13
A18: PERSONNEL DATA
A19: Position Data
A20: Filled positions by funding source
A21: State supported | C21: 388 | E21: 384 | G21: 386 | I21: 378 | K21: 378
A22: Total positions | C22: 388 | E22: =E21 -> 384 | G22: 386 | I22: 378 | K22: 378
A23: Filled positions by program class
A24: Domiciliary and Treatment Services | C24: 308 | E24: 308 | G24: 309 | I24: 298 | K24: 301
A25: Administration and Support Services | C25: 80 | E25: 76 | G25: 77 | I25: 80 | K25: 77
A26: Total positions | C26: =SUM(C24:C25) -> 388 | E26: =SUM(E24:E25) -> 384 | G26: =SUM(G24:G25) -> 386 | I26: =SUM(I24:I25) -> 378 | K26: =SUM(K24:K25) -> 378
A28: Notes:
A29: Actual payroll counts are reported for fiscal years 2014 and 2015 as of December and revised fiscal 2016 as of January. The budget estimate for fiscal 2017 reflects the number of positions funded.

Sheet 67-83-3640
A1: Fiscal Year: | B1: 2017
A2: Fund Category: | B2: DSS | C2: Direct State Services
A3: Department: | B3: 67 | C3: Department Of Military And Veterans' Affairs
A4: Statewide Program: | B4: 83 | C4: Services to Veterans
A5: Organization: | B5: 3640 | C5: Paramus Veterans' Memorial Home
A6: Number of Columns: | B6: 4
K7: Budget | M7: Budget
C8: Actual | D8: F | E8: Actual | F8: F | G8: Budgeted | H8: F | I8: Revised | J8: F | K8: Estimate | L8: F | M8: Estimate | N8: F
C9: ="FY " & FiscalYear - 3 -> FY 2014 | D9: N | E9: ="FY " & FiscalYear - 2 -> FY 2015 | F9: N | G9: ="FY " & FiscalYear - 1 -> FY 2016 | H9: N | I9: ="FY " & FiscalYear - 1 -> FY 2016 | J9: N | K9: ="FY " & FiscalYear -> FY 2017 | L9: N | M9: ="FY " & FiscalYear + 1 -> FY 2018 | N9: N
A10: OPERATING DATA
A11: Domiciliary and Treatment Services
A12: Rated capacity | C12: 336 | E12: 336 | G12: 336 | I12: 336 | K12: 336
A13: Average daily population | C13: 322 | E13: 323 | G13: 323 | I13: 323 | K13: 323
A14: Ratio: daily population/total positions | C14: =TEXT(ROUND(C13/C22,1),"0.0")&"/1" -> 0.9/1 | E14: =TEXT(ROUND(E13/E22,1),"0.0")&"/1" -> 0.9/1 | G14: =TEXT(ROUND(G13/G22,1),"0.0")&"/1" -> 0.9/1 | H14: =TEXT(ROUND(H13/H22,1),"0.0")&"/1" ->  | I14: =TEXT(ROUND(I13/I22,1),"0.0")&"/1" -> 1.0/1 | K14: =TEXT(ROUND(K13/K22,1),"0.0")&"/1" -> 1.0/1
A15: Annual per capita | C15: =(29300)*1000/C13 -> 90993.78882 | E15: =(30264)*1000/E13 -> 93696.59443 | G15: =(29924)*1000/G13 -> 92643.96285 | I15: 94477 | K15: 94837
A16: Daily per capita | C16: =C15/365 -> 249.2980516 | E16: =E15/365 -> 256.7029984 | G16: =G15/365 -> 253.8190763 | I16: =I15/365 -> 258.8410959 | K16: =K15/365 -> 259.8273973
A18: PERSONNEL DATA
A19: Position Data
A20: Filled positions by funding source
A21: State supported | C21: 370 | E21: 353 | G21: 363 | I21: 334 | K21: 339
A22: Total positions | C22: =SUM(C21) -> 370 | E22: =E21 -> 353 | G22: 363 | I22: 334 | K22: 339
A23: Filled positions by program class
A24: Domiciliary and Treatment Services | C24: 309 | E24: 300 | G24: 305 | I24: 281 | K24: 281
A25: Administration and Support Services | C25: 61 | E25: 53 | G25: 58 | I25: 53 | K25: 58
A26: Total positions | C26: =SUM(C24:C25) -> 370 | E26: =SUM(E24:E25) -> 353 | G26: =SUM(G24:G25) -> 363 | I26: =SUM(I24:I25) -> 334 | K26: =SUM(K24:K25) -> 339
A28: Notes:
A29: Actual payroll counts are reported for fiscal years 2014 and 2015 as of December and revised fiscal 2016 as of January. The budget estimate for fiscal 2017 reflects the number of positions funded.

Sheet 67-83-3650
A1: Fiscal Year: | B1: 2017
A2: Fund Category: | B2: DSS | C2: Direct State Services
A3: Department: | B3: 67 | C3: Department Of Military And Veterans' Affairs
A4: Statewide Program: | B4: 83 | C4: Services to Veterans
A5: Organization: | B5: 3650 | C5: Vineland Veterans' Memorial Home
A6: Number of Columns: | B6: 4
K7: Budget | M7: Budget
C8: Actual | D8: F | E8: Actual | F8: F | G8: Budgeted | H8: F | I8: Revised | J8: F | K8: Estimate | L8: F | M8: Estimate | N8: F
C9: ="FY " & FiscalYear - 3 -> FY 2014 | D9: N | E9: ="FY " & FiscalYear - 2 -> FY 2015 | F9: N | G9: ="FY " & FiscalYear - 1 -> FY 2016 | H9: N | I9: ="FY " & FiscalYear - 1 -> FY 2016 | J9: N | K9: ="FY " & FiscalYear -> FY 2017 | L9: N | M9: ="FY " & FiscalYear + 1 -> FY 2018 | N9: N
A10: OPERATING DATA
A11: Domiciliary and Treatment Services
A12: Rated capacity | C12: 300 | E12: 300 | G12: 300 | I12: 300 | K12: 300
A13: Average daily population | C13: 286 | E13: 288 | G13: 290 | I13: 291 | K13: 292
A14: Ratio: daily population/total positions | C14: =TEXT(ROUND(C13/C22,1),"0.0")&"/1" -> 0.7/1 | E14: =TEXT(ROUND(E13/E22,1),"0.0")&"/1" -> 0.7/1 | G14: 0.8/1 | I14: =TEXT(ROUND(I13/420,1),"0.0")&"/1" -> 0.7/1 | K14: 0.8/1
A15: Annual per capita | C15: =(29246)*1000/C13 -> 102258.7413 | E15: =(30414)*1000/E13 -> 105604.1667 | G15: =(30148)*1000/G13 -> 103958.6207 | I15: =(30148)*1000/I13 -> 103601.3746 | K15: =(30148)*1000/K13 -> 103246.5753
A16: Daily per capita | C16: =C15/365 -> 280.160935 | E16: =E15/365 -> 289.326484 | G16: =G15/365 -> 284.8181389 | I16: =I15/365 -> 283.8393824 | K16: =K15/365 -> 282.8673297
A18: PERSONNEL DATA
A19: Position Data
A20: Filled positions by funding source
A21: State supported | C21: 397 | E21: 393 | G21: 386 | I21: 375 | K21: 377
A22: Total positions | C22: =SUM(C21) -> 397 | E22: =E21 -> 393 | G22: 386 | I22: 375 | K22: 377
A23: Filled positions by program class
A24: Domiciliary and Treatment Services | C24: 309 | E24: 305 | G24: 300 | I24: 291 | K24: 291
A25: Administration and Support Services | C25: 88 | E25: 88 | G25: 86 | I25: 84 | K25: 86
A26: Total positions | C26: =SUM(C24:C25) -> 397 | E26: =SUM(E24:E25) -> 393 | G26: =SUM(G24:G25) -> 386 | I26: =SUM(I24:I25) -> 375 | K26: =SUM(K24:K25) -> 377
A28: Notes:
A29: Actual payroll counts are reported for fiscal years 2014 and 2015 as of December and revised fiscal 2016 as of January. The budget estimate for fiscal 2017 reflects the number of positions funded.

Sheet 74-36-2405
A1: Fiscal Year: | B1: 2017
A2: Fund Category: | B2: DSS | C2: Direct State Services
A3: Department: | B3: 74 | C3: Department Of State
A4: Statewide Program: | B4: 36 | C4: Higher Educational Services
A5: Organization: | B5: 2405 | C5: Higher Education Student Assistance Authority
A6: Number of Columns: | B6: 4
K7: Budget | M7: Budget
C8: Actual | D8: F | E8: Actual | F8: F | G8: Budgeted | H8: F | I8: Revised | J8: F | K8: Estimate | L8: F | M8: Estimate | N8: F
C9: ="FY " & FiscalYear - 3 -> FY 2014 | D9: N | E9: ="FY " & FiscalYear - 2 -> FY 2015 | F9: N | G9: ="FY " & FiscalYear - 1 -> FY 2016 | H9: N | I9: ="FY " & FiscalYear - 1 -> FY 2016 | J9: N | K9: ="FY " & FiscalYear -> FY 2017 | L9: N | M9: ="FY " & FiscalYear + 1 -> FY 2018 | N9: N
A10: PROGRAM DATA
A11: Student Assistance Programs
A12: Veterinary Medical Education Program
A13: Veterinary Medical Education Program (value) (a) | C13: 0 | E13: 0 | G13: 0 | I13: 0 | K13: 0
A14: Student enrollment | C14: 0 | E14: 0 | G14: 0 | I14: 0 | K14: 0
A15: Schools with contracts | C15: 0 | E15: 0 | G15: 0 | I15: 0 | K15: 0
A16: Teaching Fellows Program - Cumulative loans in redemption | C16: 6 | E16: 0 | G16: 0 | I16: 0 | K16: 0
A17: Teaching Fellows Program (value) | C17: 22004 | E17: 0 | G17: 0 | I17: 0 | K17: 0
A18: Coordinated Garden State Scholarship Programs (a) | C18: 39 | E18: 0 | G18: 0 | I18: 0 | K18: 0
A19: Coordinated Garden State Scholarship Programs (value) | C19: 35340 | E19: 0 | G19: 0 | I19: 0 | K19: 0
A20: Edward J. Bloustein Distinguished Scholars (a) | C20: 32 | E20: 0 | G20: 0 | I20: 0 | K20: 0
A21: Edward J. Bloustein Distinguished Scholars (value) | C21: 29295 | E21: 0 | G21: 0 | I21: 0 | K21: 0
A22: Urban Scholars | C22: 7 | E22: 0 | G22: 0 | I22: 0 | K22: 0
A23: Urban Scholars (value) | C23: 6045 | E23: 0 | G23: 0 | I23: 0 | K23: 0
A24: Governors Urban Scholars | C24: 428 | E24: 508 | G24: 895 | I24: 627 | K24: 635
A25: Governors Urban Scholars (value) | C25: 429600 | E25: 506500 | G25: 945000 | I25: 677000 | K25: 945000
A26: World Trade Center Scholarship Program (b) (c) | C26: 85 | E26: 89 | G26: 75 | I26: 99 | K26: 88
A27: World Trade Center Scholarship Program (value) | C27: 202000 | E27: 202000 | G27: 202000 | I27: 202000 | K27: 202000
A28: Dana Christmas Scholarship for Heroism | C28: 0 | E28: 0 | G28: 0 | I28: 0 | K28: 0
A29: Dana Christmas Scholarship for Heroism (value) (d) | C29: 0 | E29: 0 | G29: 0 | I29: 0 | K29: 0
A30: Outstanding Scholars Recruitment Program Freshman Awards
A31: Outstanding Scholars Recruitment Program Renewal Awards | C31: 0
A32: Outstanding Scholars Recruitment Program (Value) | C32: 0
A33: Survivor Tuition Benefits (a) | C33: 6 | E33: 4 | G33: 4 | I33: 5 | K33: 5
A34: Survivor Tuition Benefits (value) | C34: 37405 | E34: 30459 | G34: 38210 | I34: 49448 | K34: 49448
A35: Part-Time Tuition Aid Grants for Educational
A36: Opportunity Fund Students (a) | C36: 447 | E36: 481 | G36: 700 | I36: 700 | K36: 700
A37: Part-Time Tuition Aid Grants for Educational
A38: Opportunity Fund Students (value) | C38: 392969 | E38: 459200 | G38: 558000 | I38: 558000 | K38: 558000
A39: Part-Time Tuition Aid Grants for County Colleges (a) | C39: 9907 | E39: 9803 | G39: 9970 | I39: 9970 | K39: 9971
A40: Part-Time Tuition Aid Grants for County Colleges (value) | C40: 8295365 | E40: 8406536 | G40: 8737000 | I40: 8737000 | K40: 8737000
A41: Tuition Aid Grants (a) | C41: =C43+C45+C47+C49 -> 62927 | E41: =E43+E45+E47+E49 -> 64113 | G41: =G43+G45+G47+G49 -> 66048 | H41: 0 | I41: 66048 | K41: =K43+K45+K47+K49 -> 68048
A42: Tuition Aid Grants (value) | C42: =C44+C46+C48+C50 -> 350523000 | E42: =E44+E46+E48+E50 -> 367481213 | G42: 386388000 | H42: 0 | I42: 384606000 | K42: =K44+K46+K48+K50 -> 404205000
A43: County Colleges | C43: 18224 | E43: 17334 | G43: 17889 | I43: 17867 | K43: 18412
A44: County Colleges (value) | C44: 39417000 | E44: 37545619 | G44: 39829000 | I44: 39650000 | K44: 41675000
A45: State Colleges | C45: 15144 | E45: 15799 | G45: 16302 | I45: 16264 | K45: 16759
A46: State Colleges (value) | C46: 78445000 | E46: 83150491 | G46: 87541000 | I46: 86927000 | K46: 91369000
A47: Research Institutions | C47: 16484 | E47: 17435 | G47: 17920 | I47: 17961 | K47: =2808+15693 -> 18501
A48: Research Institutions (value) | C48: 116933000 | E48: 125040021 | G48: 131175000 | I48: 130714000 | K48: =16087000+121282000 -> 137369000
A49: Nonpublic | C49: 13075 | E49: 13545 | G49: 13937 | I49: 13956 | K49: 14376
A50: Nonpublic (value) | C50: 115728000 | E50: 121745082 | G50: 127843000 | I50: 127315000 | K50: 133792000
A51: New Jersey Student Tuition Assistance Reward Scholarship
A52: (NJSTARS I & II) | C52: =C55+C57 -> 2543 | E52: =E55+E57 -> 2679 | G52: =G55+G57 -> 2360 | I52: =I55+I57 -> 2360 | K52: =+K55+K57 -> 2360
A53: New Jersey Student Tuition Assistance Reward Scholarship
A54: (NJSTARS I & II) (value) | C54: =C56+C58 -> 7114642 | E54: =E56+E58 -> 6590108 | G54: 6906460 | I54: =I56+I58 -> 6906460 | K54: 6906460
A55: NJSTARS I | C55: 1729 | E55: 1763 | G55: 1580 | I55: 1580 | K55: 1580
A56: NJSTARS I (value) | C56: 5098890 | E56: 4675020 | G56: 4956460 | I56: 4956460 | K56: 4956460
A57: NJSTARS II | C57: 814 | E57: 916 | G57: 780 | I57: 780 | K57: 780
A58: NJSTARS II (value) | C58: 2015752 | E58: 1915088 | G58: 1950000 | I58: 1950000 | K58: 1950000
A59: Social Services Student Loan Redemption Program | C59: 0 | E59: 0 | G59: 0 | I59: 0
A60: Social Services Student Loan Redemption Program (value) | C60: 0 | E60: 0 | G60: 0 | I60: 0
A61: Total awards - all programs (d) | C61: =C18+C26+C28+C31+C33+C39+C41+C52+C24 -> 75935 | E61: =E18+E26+E28+E31+E33+E39+E41+E52+E24 -> 77196 | G61: 79352 | I61: =I18+I26+I28+I31+I33+I39+I41+I52+I24 -> 79109 | K61: =K18+K26+K28+K31+K33+K39+K41+K52+K24 -> 81107
A62: Total awards - all programs (value) | C62: 366637352 | E62: =E17+E19+E25+E27+E34+E40+E42+E54 -> 383216816 | G62: 403216670 | I62: =I17+I19+I25+I27+I34+I40+I42+I54 -> 401177908 | K62: =K19+K27+K29+K32+K34 +K40+K42+K54+K25 -> 421044908
A63: Law Enforcement Officers' Memorial Scholarship | C63: 4 | E63: 6 | G63: 4 | I63: 8 | K63: 7
A64: Law Enforcement Officers' Memorial Scholarship (value) | C64: 115316 | E64: 116099 | G64: 115316 | I64: 171376 | K64: 158376
A65: NJBEST Program - participants | C65: 316805 | E65: 335873 | G65: 339049 | I65: 338115 | K65: 336835
A66: NJBEST Program - funds invested as of June 30 | C66: 4496609820 | E66: 4712767458 | G66: 6249096436 | I66: 4819486558 | K66: 5002262558
A67: NJBEST scholarships awarded | C67: 650 | E67: 561 | G67: 900 | I67: 650 | K67: 650
A68: NJBEST scholarships awarded (value) | C68: 605500 | E68: 650000 | G68: 875000 | I68: 700000 | K68: 700000
A69: Guaranteed Student Loan Program
A70: Loans outstanding--June 30 | C70: 272596 | E70: 233229 | G70: 210694.3765 | I70: 198245 | K70: 168508
A71: Loans outstanding--June 30 (value) | C71: 907793933 | E71: 789314228 | G71: 706459543.3 | I71: 670917179 | K71: 570279602
A72: Parent Loans for Undergraduate Students
A73: Loans outstanding--June 30 | C73: 12742 | E73: 9383 | G73: 8710.661984 | I73: 7037 | K73: 5278
A74: Loans outstanding--June 30 (value) | C74: 118917823 | E74: 90007653 | G74: 83763048.7 | I74: 67505740 | K74: 50629305
A75: Consolidated Loans
A76: Loans outstanding--June 30 | C76: 49347 | E76: 45288 | G76: 42413.29074 | I76: 42118 | K76: 39170
A77: Loans outstanding--June 30 (value) | C77: 1207263436 | E77: 1132084071 | G77: 1071942220 | I77: 1052838186 | K77: 979139513
A78: New Jersey College Loans to Assist State Students (NJCLASS)
A79: Loans outstanding--June 30 | C79: 149731 | E79: 160183 | G79: 174359 | I79: 132951.89 | K79: 111679.5876
A80: Loans outstanding--June 30 (value) | C80: 1982666724 | E80: 2122570387 | G80: 2154977896 | I80: 2271150314 | K80: 2305826349
A82: PERSONNEL DATA
A83: Affirmative Action Data
A84: Male minority | C84: 11 | E84: 9 | I84: 10
A85: Male minority percentage | C85: 0.07333333333 | E85: =E84/E99 -> 0.06569343066 | I85: =I84/I99 -> 0.078125
A86: Female minority | C86: 36 | E86: 34 | I86: 28
A87: Female minority percentage | C87: 0.24 | E87: =E86/E99 -> 0.2481751825 | I87: =I86/I99 -> 0.21875
A88: Total minority | C88: 47 | E88: 43 | I88: 38
A89: Total minority percentage | C89: 0.3133333333 | E89: =E88/E99 -> 0.3138686131 | I89: =I88/I99 -> 0.296875
A91: Position Data
A92: Filled positions by funding source
A93: State supported
A94: Federal | C94: 141 | E94: 130 | G94: 135 | I94: 121 | K94: 131
A95: All other | C95: 9 | E95: 7 | G95: 8 | I95: 7 | K95: 7
A96: Total positions | C96: 150 | E96: 137 | G96: 143 | I96: =SUM(I94:I95) -> 128 | K96: =SUM(K94:K95) -> 138
A97: Filled positions by program class
A98: Student Assistance programs | C98: 150 | E98: 137 | G98: 143 | I98: 128 | K98: 138
A99: Total positions | C99: 150 | E99: 137 | G99: 143 | I99: 128 | K99: 138
A101: Notes:
A102: Actual payroll counts are reported for fiscal years 2014 and 2015 as of December and revised fiscal 2016 as of January. The budget estimate for fiscal 2017 reflects the number of positions funded.
A103: (a) Student Assistance Programs expenditure and award recipients data for fiscal 2014 and 2015 represent actual counts as of September 2015. Further payments and adjustments are anticipated as institutional payments and reconciliation reports are received.
A104: (b) Prior-period carryforward used to pay expenditures exceeding State appropriation during fiscal 2014.
A105: (c) Private donations as well as State appropriations contribute to the scholarship fund.
A106: (d) Totals include all programs, with the exception of Teaching Fellows Program, Coordinated Garden State Scholarship Programs, Law Enforcement Officers' Memorial Scholarship, NJBEST Program, Guaranteed Student Loan Program, Parent Loans for Undergraduate Students, Consolidated Loans, and NJCLASS Program; students may be counted more than once if they are receiving aid from more than one program. Part-Time TAG for Educational Opportunity Fund Students program data is included in Full-Time TAG program data.

Sheet 74-36-2410
A1: Fiscal Year: | B1: 2017
A2: Fund Category: | B2: DSS | C2: Direct State Services
A3: Department: | B3: 74 | C3: Department Of State
A4: Statewide Program: | B4: 36 | C4: Higher Educational Services
A5: Organization: | B5: 2410 | C5: Rutgers, The State University
A6: Number of Columns: | B6: 4
K7: Budget | M7: Budget
C8: Actual | D8: F | E8: Actual | F8: F | G8: Budgeted | H8: F | I8: Revised | J8: F | K8: Estimate | L8: F | M8: Estimate | N8: F
C9: ="FY " & FiscalYear - 3 -> FY 2014 | D9: N | E9: ="FY " & FiscalYear - 2 -> FY 2015 | F9: N | G9: ="FY " & FiscalYear - 1 -> FY 2016 | H9: N | I9: ="FY " & FiscalYear - 1 -> FY 2016 | J9: N | K9: ="FY " & FiscalYear -> FY 2017 | L9: N | M9: ="FY " & FiscalYear + 1 -> FY 2018 | N9: N
A10: PROGRAM DATA
A11: Institutional Support
A12: Enrollment total | C12: =C14+C20 -> 41245 | E12: =E14+E20 -> 41807 | G12: =G14+G20 -> 41948 | I12: =I14+I20 -> 42804 | K12: =K14+K20 -> 42804
A13: Enrollment total (weighted) (a) | C13: =C15+C21 -> 35553 | E13: =E15+E21 -> 35785 | G13: =G15+G21 -> 36214 | I13: =I15+I21 -> 36747 | K13: =K15+K21 -> 36747
A14: Undergraduate total | C14: =C16+C18 -> 32273 | E14: =E16+E18 -> 33078 | G14: =G16+G18 -> 33075 | I14: =I16+I18 -> 33940 | K14: =K16+K18 -> 33940
A15: Undergraduate total (weighted) (a) | C15: =C17+C19 -> 29755 | E15: =E17+E19 -> 30402 | G15: =G17+G19 -> 30487 | I15: =I17+I19 -> 31294 | K15: =K17+K19 -> 31294
A16: Full-time | C16: 30420 | E16: 31200 | G16: 31162 | I16: 32187 | K16: 32187
A17: Full-time (weighted) (a) | C17: 29022 | E17: 29702 | G17: 29730 | I17: 30640 | K17: 30640
A18: Part-time | C18: 1853 | E18: 1878 | G18: 1913 | I18: 1753 | K18: 1753
A19: Part-time (weighted) (a) | C19: 733 | E19: 700 | G19: 757 | I19: 654 | K19: 654
A20: Graduate total | C20: =C22+C24 -> 8972 | E20: =E22+E24 -> 8729 | G20: =G22+G24 -> 8873 | I20: =I22+I24 -> 8864 | K20: =K22+K24 -> 8864
A21: Graduate total (weighted) (a) | C21: =C23+C25 -> 5798 | E21: =E23+E25 -> 5383 | G21: =G23+G25 -> 5727 | I21: =I23+I25 -> 5453 | K21: =K23+K25 -> 5453
A22: Full-time | C22: 4812 | E22: 4834 | G22: 4783 | I22: 4953 | K22: 4953
A23: Full-time (weighted) (a) | C23: 2458 | E23: 2328 | G23: 2443 | I23: 2385 | K23: 2385
A24: Part-time | C24: 4160 | E24: 3895 | G24: 4090 | I24: 3911 | K24: 3911
A25: Part-time (weighted) (a) | C25: 3340 | E25: 3055 | G25: 3284 | I25: 3068 | K25: 3068
A26: Summer session total (b) | C26: 14887 | E26: 15087 | G26: 14887 | I26: 15087 | K26: 15087
A27: Enrollment total - Medical Education (c) (d) | C27: =C29+C28 -> 4673 | E27: =E29+E28 -> 4422 | G27: =G29+G28 -> 4450 | I27: =I29+I28 -> 4652 | K27: =K29+K28 -> 4652
A28: Undergraduate total | C28: 662 | E28: 643 | G28: 634 | I28: 693 | K28: 693
